{"text_format":"2","workbook":"xlsx","n_sheets":17,"sheets":["global_setting","road","zhuti","zhuti_new","meiriyaoqing","choujiang","huoyue","huoyuereward","item","paihang","roadcolor","signin","weiji","yaoqing","virtual_user","rank_rewards","rank_level"],"not_rendered":{"charts":0,"images":0,"macros":0,"external_links":0,"defined_names":1,"comments":0,"pivot_tables":0},"unopened":[],"bounds":{"document_bytes":16777216,"sheet_cells":100000,"run_cost":"one","rows_first":2000,"rows_last":500,"rows_between":2000,"halvings":0,"cell_chars":16384,"cell_head_chars":4096},"cells_cut":0,"cells_raw":0,"read":"whole","date_system":"1900"}

{"sheet":"global_setting","index":0,"n_rows":5,"n_cols":2,"rows_kept":5,"cut":false,"hidden":false,"merged":[]}
["键名","键值"]
["key","value"]
["string","string"]
["rank_consume",20]
["rank_player_count",10]

{"sheet":"road","index":1,"n_rows":409,"n_cols":11,"rows_kept":409,"cut":false,"hidden":false,"merged":[]}
["自增id","难度编号","路段编号","路段权重","物件编号","距离","物件类型","物件颜色","横移速度","加速速度","加速时间"]
["id","nandu","luduan","quanzhong","wujian","juli","type","color","sudu","jiasu","jiasushijain"]
["number","number","number","number","number","float","string","string","float","float","number"]
[1,1,1,1,1,5.6,"1;1;1","2;1;3",0,0,0]
[2,1,1,1,2,0.8,"1;1;1","2;1;3",0,0,0]
[3,1,1,1,3,0.8,"1;1;1","3;1;2",0,0,0]
[4,1,1,1,4,0.8,"1;1;1","2;1;3",0,0,0]
[5,1,2,1,1,5.6,"1;1;1","2;1;3",0,0,0]
[6,1,2,1,2,0.8,"1;1;1","2;1;3",0,0,0]
[7,1,2,1,3,0.8,"1;1;1","2;1;3",0,0,0]
[8,1,2,1,4,0.8,"1;1;1","2;3;1",0,0,0]
[9,1,3,1,1,5.6,"1;1;1","3;1;2",0,0,0]
[10,1,3,1,2,0.8,"1;1;1","2;1;3",0,0,0]
[11,1,3,1,3,0.8,"1;1;1","2;1;3",0,0,0]
[12,1,3,1,4,0.8,"1;1;1","1;3;2",0,0,0]
[13,1,4,1,1,5.6,"1;1;1","2;1;3",0,0,0]
[14,1,4,1,2,0.8,"1;1;1","2;1;3",0,0,0]
[15,1,4,1,3,0.8,"1;1;1","3;1;2",0,0,0]
[16,1,4,1,4,0.8,"1;1;1","3;1;2",0,0,0]
[17,1,5,1,1,5.6,"1;1;1","3;1;2",0,0,0]
[18,1,5,1,2,0.8,"1;1;1","3;1;2",0,0,0]
[19,1,5,1,3,0.8,"1;1;1","2;1;3",0,0,0]
[20,1,5,1,4,0.8,"1;1;1","3;2;1",0,0,0]
[21,2,1,1,1,1.1000000000000001,"1;1;1","2;3;1",0,0,0]
[22,2,1,1,2,0.8,"1;1;1","2;3;1",0,0,0]
[23,2,2,1,1,1.1000000000000001,"1;1;1","2;3;1",0,0,0]
[24,2,2,1,2,0.8,"3;3;3","3;3;3",0,0,0]
[25,2,3,1,1,1.1000000000000001,"1;1;1","2;3;1",0,0,0]
[26,2,3,1,2,0.8,"1;1;1","3;1;2",0,0,0]
[27,2,4,1,1,1.1000000000000001,"1;1;1","3;2;1",0,0,0]
[28,2,4,1,2,0.8,"1;1;1","3;1;2",0,0,0]
[29,2,5,1,1,1.1000000000000001,"3;3;3","2;2;2",0,0,0]
[30,2,5,1,2,0.8,"1;1;1","3;2;1",0,0,0]
[31,3,1,4,1,1.5349999999999999,"3;3;3","3;3;3",0,0,0]
[32,3,1,4,2,1.5760000000000001,"1;1;1","2;3;1",0,0,0]
[33,3,1,4,3,0.9,"1;1;1","2;3;1",0,0,0]
[34,3,1,4,4,0.9,"1;1;1","2;1;3",0,0,0]
[35,3,1,4,5,0.36299999999999999,"1;1;1","2;1;3",0,0,0]
[36,3,1,4,6,0.36299999999999999,"1;1;1","1;2;3",0,0,0]
[37,3,1,4,7,0.36299999999999999,"1;1;1","2;1;3",0,0,0]
[38,3,2,4,1,1.5349999999999999,"3;3;3","2;2;2",0,0,0]
[39,3,2,4,2,0.9,"1;1;1","2;1;3",0,0,0]
[40,3,2,4,3,0.6,"1;1;1","2;1;3",0,0,0]
[41,3,2,4,4,0.6,"1;1;1","2;1;3",0,0,0]
[42,3,2,4,5,0.6,"1;1;1","2;1;3",0,0,0]
[43,3,3,4,1,1.4350000000000001,"3;3;3","3;3;3",0,0,0]
[44,3,3,4,2,0.9,"1;2;1","1;3;2",0,0,0]
[45,3,3,4,3,0.9,"1;2;1","1;3;2",0,0,0]
[46,3,4,4,1,1.3936999999999999,"3;3;3","2;2;2",0,0,0]
[47,3,4,4,2,1.1575,"3;3;3","3;3;3",0,0,0]
[48,3,4,4,3,1.1575,"3;3;3","1;1;1",0,0,0]
[49,3,4,4,4,1.2912999999999999,"0;2;0","0;1;0",0.05,0,0]
[50,3,5,4,1,1.0874999999999999,"1;1;1","3;1;2",0,0,0]
[51,3,5,4,2,0.9,"1;1;1","3;1;2",0,0,0]
[52,3,6,4,1,1.4650000000000001,"3;3;3","3;3;3",0,0,0]
[53,3,6,4,2,0.9,"0;0;2","0;0;3",0.05,0,0]
[54,3,7,4,1,1.3149999999999999,"3;3;3","1;1;1",0,0,0]
[55,3,7,4,2,1.3819999999999999,"0;0;2","0;0;1",0.05,0,0]
[56,3,7,4,3,1.0349999999999999,"1;1;1","3;1;2",0,0,0]
[57,3,7,4,4,0.98399999999999999,"1;1;1","3;2;1",0,0,0]
[58,3,7,4,5,0.98399999999999999,"1;1;1","3;1;2",0,0,0]
[59,3,7,4,6,1.3,"0;0;2","0;0;1",0.05,0,0]
[60,3,8,4,1,1.264,"1;1;1","3;1;2",0,0,0]
[61,3,8,4,2,0.68400000000000005,"1;1;1","2;1;3",0,0,0]
[62,3,8,4,3,0.68400000000000005,"1;1;1","3;1;2",0,0,0]
[63,3,8,4,4,0.68400000000000005,"1;1;1","3;2;1",0,0,0]
[64,3,8,4,5,0.68400000000000005,"1;1;1","3;1;2",0,0,0]
[65,3,9,4,1,1.3,"3;3;3","3;3;3",0,0,0]
[66,3,9,4,2,1.1000000000000001,"2;1;1","3;1;2",0,0,0]
[67,3,9,4,3,1.1000000000000001,"1;1;2","2;1;3",0,0,0]
[68,3,10,1,1,1.3,"0;7;0","0;4;0",0,0,0]
[69,3,10,1,2,0.6,"0;6;0","0;4;0",0,0,0]
[70,3,10,1,3,0.4,"6;0;0","4;0;0",0,0,0]
[71,3,10,1,4,0.4,"0;0;6","0;0;4",0,0,0]
[72,3,10,1,5,0.4,"0;6;0","0;4;0",0,0,0]
[73,3,10,1,6,0.4,"0;0;6","0;0;4",0,0,0]
[74,3,10,1,7,0.4,"0;6;0","0;4;0",0,0,0]
[75,3,10,1,8,0.4,"0;0;6","0;0;4",0,0,0]
[76,3,10,1,9,0.4,"0;6;0","0;4;0",0,0,0]
[77,3,10,1,10,0.4,"0;6;0","0;4;0",0,0,0]
[78,3,10,1,11,0.4,"0;6;0","0;4;0",0,0,0]
[79,3,11,2,1,1.3149999999999999,"0;0;6","0;0;4",0,0,0]
[80,3,11,2,2,0.4,"0;0;6","0;0;4",0,0,0]
[81,3,11,2,3,0.4,"0;0;6","0;0;4",0,0,0]
[82,3,11,2,4,0.4,"0;6;0","0;4;0",0,0,0]
[83,3,11,2,5,0.4,"0;0;6","0;0;4",0,0,0]
[84,3,11,2,6,0.4,"0;6;0","0;4;0",0,0,0]
[85,3,11,2,7,0.4,"6;0;0","4;0;0",0,0,0]
[86,3,11,2,8,0.4,"6;0;0","4;0;0",0,0,0]
[87,3,11,2,9,0.4,"6;0;0","4;0;0",0,0,0]
[88,3,11,2,10,0.4,"0;0;6","0;0;4",0,0,0]
[89,3,11,2,11,0.4,"0;0;6","0;0;4",0,0,0]
[90,3,12,1,1,1.3149999999999999,"0;7;0","0;4;0",0,0,0]
[91,3,12,1,2,0.4,"6;0;6","4;0;4",0,0,0]
[92,3,12,1,3,0.4,"6;6;0","4;4;0",0,0,0]
[93,3,12,1,4,0.4,"0;6;6","0;4;4",0,0,0]
[94,3,12,1,5,0.4,"6;6;0","4;4;0",0,0,0]
[95,3,12,1,6,0.4,"6;0;6","4;0;4",0,0,0]
[96,3,12,1,7,0.4,"6;6;0","4;4;0",0,0,0]
[97,3,12,1,8,0.4,"6;6;6","4;4;4",0,0,0]
[98,3,12,1,9,0.4,"6;6;6","4;4;4",0,0,0]
[99,3,12,1,10,0.4,"6;6;6","4;4;4",0,0,0]
[100,3,13,2,1,1.264,"0;0;6","0;0;4",0,0,0]
[101,3,13,2,2,0.5,"0;6;0","0;4;0",0,0,0]
[102,3,13,2,3,0.5,"0;0;6","0;0;4",0,0,0]
[103,3,13,2,4,0.5,"0;6;0","0;4;0",0,0,0]
[104,3,13,2,5,0.5,"0;6;0","0;4;0",0,0,0]
[105,4,1,4,1,1.3145,"3;3;3","2;2;2",0,0,0]
[106,4,1,4,2,1.5245,"0;0;1","0;0;2",7.4999999999999997E-2,0,0]
[107,4,1,4,3,0.9,"0;0;2","0;0;2",7.4999999999999997E-2,0,0]
[108,4,1,4,4,1.087,"0;0;2","0;0;2",7.4999999999999997E-2,0,0]
[109,4,1,4,5,1.087,"0;0;1","0;0;2",7.4999999999999997E-2,0,0]
[110,4,1,4,6,1.087,"0;0;2","0;0;2",7.4999999999999997E-2,0,0]
[111,4,2,4,1,1.3,"3;3;3","2;2;2",0,0,0]
[112,4,2,4,2,0.9,"0;0;2","0;0;2",7.4999999999999997E-2,0,0]
[113,4,2,4,3,0.9,"1;1;1","1;3;2",0,0,0]
[114,4,2,4,4,0.9,"1;1;1","2;3;1",0,0,0]
[115,4,3,4,1,1.3525,"3;3;3","2;2;2",0,0,0]
[116,4,3,4,2,1.5325,"0;2;0","0;2;0",7.4999999999999997E-2,0,0]
[117,4,3,4,3,1.115,"1;1;1","2;3;1",0,0,0]
[118,4,4,4,1,1.3525,"3;3;3","3;3;3",0,0,0]
[119,4,4,4,2,0.96350000000000002,"0;0;2","0;0;3",7.4999999999999997E-2,0,0]
[120,4,4,4,3,0.68400000000000005,"1;1;1","3;1;2",0,0,0]
[121,4,5,4,1,1.3525,"3;3;3","1;1;1",0,0,0]
[122,4,5,4,2,0.96350000000000002,"0;0;2","0;0;1",7.4999999999999997E-2,0,0]
[123,4,5,4,3,0.68400000000000005,"2;1;1","1;3;2",0,0,0]
[124,4,6,4,1,1.3525,"3;3;3","1;1;1",0,0,0]
[125,4,6,4,2,0.96350000000000002,"0;0;2","0;0;1",7.4999999999999997E-2,0,0]
[126,4,6,4,3,0.56399999999999995,"1;1;1","3;2;1",0,0,0]
[127,4,6,4,4,0.56000000000000005,"1;1;1","3;2;1",0,0,0]
[128,4,6,4,5,0.56000000000000005,"1;1;1","3;2;1",0,0,0]
[129,4,7,4,1,1.3525,"3;3;3","2;2;2",0,0,0]
[130,4,7,4,2,0.94750000000000001,"0;0;2","0;0;2",7.4999999999999997E-2,0,0]
[131,4,7,4,3,0.9,"1;1;1","3;2;1",0,0,0]
[132,4,7,4,4,0.9,"1;1;1","3;1;2",0,0,0]
[133,4,7,4,5,0.9,"1;1;1","1;2;3",0,0,0]
[134,4,8,4,1,1.3525,"3;3;3","3;3;3",0,0,0]
[135,4,8,4,2,0.94750000000000001,"0;0;2","0;0;3",7.4999999999999997E-2,0,0]
[136,4,8,4,3,1.125,"1;0;1","1;0;2",0,0,0]
[137,4,8,4,4,1.575,"0;1;1","0;2;1",0,0,0]
[138,4,9,4,1,1.3525,"3;3;3","2;2;2",0,0,0]
[139,4,9,4,2,1.3474999999999999,"0;0;2","0;0;2",7.4999999999999997E-2,0,0]
[140,4,9,4,3,0.9,"1;1;1","1;2;3",0,0,0]
[141,4,9,4,4,0.9,"1;1;1","3;1;2",0,0,0]
[142,4,9,4,5,0.9,"1;1;1","3;2;1",0,0,0]
[143,4,9,4,6,0.9,"1;1;1","2;3;1",0,0,0]
[144,4,9,4,7,0.9,"1;1;1","1;2;3",0,0,0]
[145,4,9,4,8,0.9,"1;1;1","3;1;2",0,0,0]
[146,4,9,4,9,0.9,"0;2;0","0;2;0",0,0,0]
[147,4,10,4,1,1.2275,"3;3;3","3;3;3",0,0,0]
[148,4,10,4,2,0.96,"0;2;0","0;3;0",7.4999999999999997E-2,0,0]
[149,4,10,4,3,0.5625,"1;1;1","1;2;3",0,0,0]
[150,4,10,4,4,0.5625,"1;1;1","1;2;3",0,0,0]
[151,4,10,4,5,0.5625,"1;1;1","2;1;3",0,0,0]
[152,4,10,4,6,0.5625,"1;1;1","2;3;1",0,0,0]
[153,4,10,4,7,0.5625,"0;2;0","0;3;0",7.4999999999999997E-2,0,0]
[154,4,11,2,1,1.3525,"0;0;6","0;0;4",0,0,0]
[155,4,11,2,2,0.45,"0;0;6","0;0;4",0,0,0]
[156,4,11,2,3,0.45,"6;0;0","4;0;0",0,0,0]
[157,4,11,2,4,0.45,"0;6;0","0;4;0",0,0,0]
[158,4,11,2,5,0.45,"0;0;6","0;0;4",0,0,0]
[159,4,11,2,6,0.45,"6;0;0","4;0;0",0,0,0]
[160,4,11,2,7,0.45,"6;0;0","4;0;0",0,0,0]
[161,4,11,2,8,0.45,"0;0;6","0;0;4",0,0,0]
[162,4,11,2,9,0.45,"0;6;0","0;4;0",0,0,0]
[163,4,12,2,1,1.2275,"6;0;0","4;0;0",0,0,0]
[164,4,12,2,2,0.5625,"0;0;6","0;0;4",0,0,0]
[165,4,12,2,3,0.5625,"6;0;0","4;0;0",0,0,0]
[166,4,12,2,4,0.5625,"6;0;0","4;0;0",0,0,0]
[167,4,12,2,5,0.5625,"0;0;6","0;0;4",0,0,0]
[168,4,12,2,6,0.5625,"0;6;0","0;4;0",0,0,0]
[169,4,12,2,7,0.5625,"0;6;0","0;4;0",0,0,0]
[170,4,13,1,1,1.3525,"0;0;7","0;0;4",0,0,0]
[171,4,13,1,2,0.5,"6;0;0","4;0;0",0,0,0]
[172,4,13,1,3,0.5,"6;0;0","4;0;0",0,0,0]
[173,4,13,1,4,0.5,"0;0;6","0;0;4",0,0,0]
[174,4,13,1,5,0.5,"0;0;6","0;0;4",0,0,0]
[175,4,13,1,6,0.5,"6;0;0","4;0;0",0,0,0]
[176,4,13,1,7,0.5,"0;0;6","0;0;4",0,0,0]
[177,4,13,1,8,0.5,"0;6;0","0;4;0",0,0,0]
[178,4,13,1,9,0.5,"0;6;0","0;4;0",0,0,0]
[179,4,14,1,1,1.2275,"0;7;0","0;4;0",0,0,0]
[180,4,14,1,2,0.5625,"0;6;0","0;4;0",0,0,0]
[181,4,14,1,3,0.5625,"6;0;6","4;0;4",0,0,0]
[182,4,14,1,4,0.5625,"6;0;6","4;0;4",0,0,0]
[183,4,14,1,5,0.5625,"6;6;0","4;4;0",0,0,0]
[184,4,14,1,6,0.5625,"0;6;6","0;4;4",0,0,0]
[185,4,14,1,7,0.5625,"0;6;0","0;4;0",0,0,0]
[186,4,15,2,1,1.3525,"6;0;6","4;4;4",0,0,0]
[187,4,15,2,2,0.5,"0;0;6","0;0;4",0,0,0]
[188,4,15,2,3,0.5,"6;0;0","4;0;0",0,0,0]
[189,4,15,2,4,0.5,"0;6;0","0;4;0",0,0,0]
[190,4,15,2,5,0.5,"0;0;6","0;0;4",0,0,0]
[191,4,15,2,6,0.5,"6;0;0","4;0;0",0,0,0]
[192,4,15,2,7,0.5,"6;0;0","4;0;0",0,0,0]
[193,4,15,2,8,0.5,"0;0;6","0;0;4",0,0,0]
[194,4,15,2,9,0.5,"0;6;0","0;4;0",0,0,0]
[195,5,1,4,1,1.29,"3;3;3","1;1;1",0,0,0]
[196,5,1,4,2,0.96,"0;0;1","0;0;2",7.4999999999999997E-2,0,0]
[197,5,1,4,3,0.75,"1;0;0","2;0;0",7.4999999999999997E-2,0,0]
[198,5,1,4,4,0.75,"0;0;1","0;0;2",7.4999999999999997E-2,0,0]
[199,5,1,4,5,0.75,"1;0;0","2;0;0",7.4999999999999997E-2,0,0]
[200,5,1,4,6,0.75,"0;0;1","0;0;2",7.4999999999999997E-2,0,0]
[201,5,1,4,7,0.75,"1;0;0","2;0;0",7.4999999999999997E-2,0,0]
[202,5,2,4,1,1.3,"3;3;3","3;3;3",0,0,0]
[203,5,2,4,2,1.1000000000000001,"2;0;0","3;0;0",8.5000000000000006E-2,0,0]
[204,5,2,4,3,0.9,"2;0;0","3;0;0",8.5000000000000006E-2,0,0]
[205,5,2,4,4,0.9,"2;0;0","3;0;0",8.5000000000000006E-2,0,0]
[206,5,2,4,5,0.9,"2;0;0","3;0;0",8.5000000000000006E-2,0,0]
[207,5,2,4,6,0.9,"2;0;0","3;0;0",8.5000000000000006E-2,0,0]
[208,5,3,4,1,1.3,"3;3;3","1;1;1",0,0,0]
[209,5,3,4,2,0.9,"0;0;1","0;0;3",0,0,0]
[210,5,3,4,3,0.9,"1;0;0","3;0;0",0,0,0]
[211,5,3,4,4,0.9,"0;0;1","0;0;3",0,0,0]
[212,5,4,4,1,1.3,"3;3;3","3;3;3",0,0,0]
[213,5,4,4,2,1.008,"0;0;2","0;0;3",8.5000000000000006E-2,0,0]
[214,5,4,4,3,0.68400000000000005,"0;2;0","0;3;0",0,0,0]
[215,5,4,4,4,0.5,"0;2;0","0;3;0",0,0,0]
[216,5,4,4,5,0.5,"0;2;0","0;3;0",0,0,0]
[217,5,4,4,6,1.008,"0;0;2","0;0;3",8.5000000000000006E-2,0,0]
[218,5,5,4,1,1.3,"3;3;3","2;2;2",0,0,0]
[219,5,5,4,2,1.1000000000000001,"1;0;0","3;0;0",8.5000000000000006E-2,0,0]
[220,5,5,4,3,0.8,"0;1;0","0;3;0",8.5000000000000006E-2,0,0]
[221,5,5,4,4,0.8,"0;0;1","0;0;3",8.5000000000000006E-2,0,0]
[222,5,6,4,1,1.3,"3;3;3","1;1;1",0,0,0]
[223,5,6,4,2,1.1000000000000001,"0;1;0","0;1;0",8.5000000000000006E-2,0,0]
[224,5,6,4,3,0.8,"1;0;0","1;0;0",8.5000000000000006E-2,0,0]
[225,5,6,4,4,0.8,"0;1;0","0;1;0",8.5000000000000006E-2,0,0]
[226,5,7,4,1,1.35,"3;3;3","2;2;2",0,0,0]
[227,5,7,4,2,1.1499999999999999,"0;0;2","0;0;2",0,0,0]
[228,5,7,4,3,0.5,"0;2;1","0;2;1",0,0,0]
[229,5,7,4,4,0.5,"2;1;0","2;1;0",0,0,0]
[230,5,7,4,5,0.5,"1;1;1","2;3;1",0,0,0]
[231,5,7,4,6,0.5,"1;1;1","2;1;3",0,0,0]
[232,5,7,4,7,0.5,"1;1;1","2;3;1",0,0,0]
[233,5,8,4,1,1.35,"3;3;3","3;3;3",0,0,0]
[234,5,8,4,2,1.1499999999999999,"0;1;0","0;2;0",0,0,0]
[235,5,8,4,3,0.9,"0;0;1","0;0;2",0,0,0]
[236,5,8,4,4,0.9,"0;1;0","0;2;0",0,0,0]
[237,5,8,4,5,0.9,"1;0;0","2;0;0",0,0,0]
[238,5,8,4,6,0.9,"0;1;0","0;2;0",0,0,0]
[239,5,8,4,7,0.9,"0;0;1","0;0;2",0,0,0]
[240,5,9,4,1,1.35,"3;3;3","2;2;2",0,0,0]
[241,5,9,4,2,1.1499999999999999,"0;0;1","0;0;3",0,0,0]
[242,5,9,4,3,0.96,"1;0;0","3;0;0",0,0,0]
[243,5,9,4,4,1,"0;0;2","0;0;2",0,0,0]
[244,5,9,4,5,0.5,"0;0;2","0;0;2",0,0,0]
[245,5,9,4,6,0.5,"0;0;2","0;0;2",0,0,0]
[246,5,10,4,1,1.35,"3;3;3","1;1;1",0,0,0]
[247,5,10,4,2,1.1499999999999999,"0;0;1","0;0;2",8.5000000000000006E-2,0,0]
[248,5,10,4,3,0.96,"0;1;0","0;2;0",8.5000000000000006E-2,0,0]
[249,5,10,4,4,0.96,"1;0;0","2;0;0",8.5000000000000006E-2,0,0]
[250,5,10,4,5,0.96,"0;1;0","0;2;0",8.5000000000000006E-2,0,0]
[251,5,10,4,6,0.96,"1;0;0","2;0;0",8.5000000000000006E-2,0,0]
[252,5,11,2,1,1.35,"0;0;6","0;0;4",0,0,0]
[253,5,11,2,2,0.5,"0;0;6","0;0;4",0,0,0]
[254,5,11,2,3,0.5,"6;0;0","4;0;0",0,0,0]
[255,5,11,2,4,0.5,"0;0;6","0;0;4",0,0,0]
[256,5,11,2,5,0.5,"6;0;0","4;0;0",0,0,0]
[257,5,11,2,6,0.5,"0;0;6","0;0;4",0,0,0]
[258,5,11,2,7,0.5,"0;0;6","0;0;4",0,0,0]
[259,5,11,2,8,0.5,"6;0;0","4;0;0",0,0,0]
[260,5,11,2,9,0.5,"0;0;6","0;0;4",0,0,0]
[261,5,12,2,1,1.35,"0;0;6","0;0;4",0,0,0]
[262,5,12,2,2,0.5,"0;0;6","0;0;4",0,0,0]
[263,5,12,2,3,0.5,"0;6;0","0;4;0",0,0,0]
[264,5,12,2,4,0.5,"6;0;0","4;0;0",0,0,0]
[265,5,12,2,5,0.5,"6;0;0","4;0;0",0,0,0]
[266,5,12,2,6,0.5,"0;6;0","0;4;0",0,0,0]
[267,5,12,2,7,0.5,"0;6;0","0;4;0",0,0,0]
[268,5,12,2,8,0.5,"6;0;0","4;0;0",0,0,0]
[269,5,12,2,9,0.5,"6;0;0","4;0;0",0,0,0]
[270,5,13,1,1,1.35,"0;7;0","0;4;0",0,0,0]
[271,5,13,1,2,0.5,"0;0;6","0;0;4",0,0,0]
[272,5,13,1,3,0.5,"6;0;0","4;0;0",0,0,0]
[273,5,13,1,4,0.5,"0;0;6","0;0;4",0,0,0]
[274,5,13,1,5,0.5,"6;0;0","4;0;0",0,0,0]
[275,5,13,1,6,0.5,"0;0;6","0;0;4",0,0,0]
[276,5,13,1,7,0.5,"6;0;0","4;0;0",0,0,0]
[277,5,13,1,8,0.5,"0;0;6","0;0;4",0,0,0]
[278,5,13,1,9,0.5,"6;0;0","4;0;0",0,0,0]
[279,5,13,1,10,0.5,"0;0;6","0;0;4",0,0,0]
[280,5,14,2,1,1.35,"6;6;6","4;4;4",0,0,0]
[281,5,14,2,2,0.5,"0;0;6","0;0;4",0,0,0]
[282,5,14,2,3,0.5,"0;6;0","0;4;0",0,0,0]
[283,5,14,2,4,0.5,"6;0;0","4;0;0",0,0,0]
[284,5,14,2,5,0.5,"6;0;0","6;0;0",0,0,0]
[285,5,14,2,6,0.5,"0;6;0","0;4;0",0,0,0]
[286,5,14,2,7,0.5,"0;0;6","0;0;4",0,0,0]
[287,5,14,2,8,0.5,"0;6;0","0;4;0",0,0,0]
[288,5,14,2,9,0.5,"6;0;0","4;0;0",0,0,0]
[289,5,14,2,10,0.5,"6;0;0","6;0;0",0,0,0]
[290,5,14,2,11,0.5,"0;6;0","0;4;0",0,0,0]
[291,5,15,2,1,1.35,"3;3;3","3;3;3",0,0,0]
[292,5,15,2,2,1.1000000000000001,"0;0;6","0;0;4",0,0,0]
[293,5,15,2,3,0.5,"6;0;6","4;0;4",0,0,0]
[294,5,15,2,4,0.5,"0;6;6","0;4;4",0,0,0]
[295,5,15,2,5,0.5,"6;0;6","4;0;4",0,0,0]
[296,5,15,2,6,0.5,"6;6;0","4;4;0",0,0,0]
[297,5,15,2,7,0.5,"6;0;6","4;0;4",0,0,0]
[298,5,15,2,8,0.5,"0;6;6","0;4;4",0,0,0]
[299,5,15,2,9,0.5,"6;0;6","4;0;4",0,0,0]
[300,5,15,2,10,0.5,"6;6;0","4;4;0",0,0,0]
[301,6,1,1,1,1.35,"3;3;3","2;2;2",0,0,0]
[302,6,1,1,2,0.35,"4;4;4","4;4;4",0,0.6,5]
[303,6,1,1,3,1.3,"0;0;2","0;0;2",0.1,0,0]
[304,6,1,1,4,1.125,"0;0;2","0;0;2",0.1,0,0]
[305,6,1,1,5,0.5,"0;2;0","0;2;0",0,0,0]
[306,6,1,1,6,0.5,"0;2;0","0;2;0",0,0,0]
[307,6,1,1,7,1.125,"3;3;3","3;3;3",0,0,0]
[308,6,1,1,8,1.125,"1;0;1","2;0;1",0,0,0]
[309,6,1,1,9,1.125,"0;1;1","0;2;1",0,0,0]
[310,6,1,1,10,1.125,"1;0;1","1;0;2",0,0,0]
[311,6,2,1,1,1.5149999999999999,"3;3;3","1;1;1",0,0,0]
[312,6,2,1,2,0.5,"4;4;4","4;4;4",0,0.6,5]
[313,6,2,1,3,0.5,"0;0;1","0;0;1",0,0,0]
[314,6,2,1,4,0.5,"0;0;1","0;0;1",0,0,0]
[315,6,2,1,5,0.75,"0;1;0","0;1;0",0,0,0]
[316,6,2,1,6,0.75,"1;0;0","1;0;0",0,0,0]
[317,6,2,1,7,1.125,"3;3;3","3;3;3",0,0,0]
[318,6,2,1,8,1.125,"0;0;2","0;0;3",0.1,0,0]
[319,6,2,1,9,1.125,"2;0;0","3;0;0",0.1,0,0]
[320,6,2,1,10,1.125,"0;0;2","0;0;3",0.1,0,0]
[321,7,1,1,1,1.35,"3;3;3","1;1;1",0,0,0]
[322,7,1,1,2,0.35,"4;4;4","4;4;4",0,0.6,5]
[323,7,1,1,3,1,"0;0;2","0;0;2",0.1,0,0]
[324,7,1,1,4,1,"0;0;2","0;0;2",0.1,0,0]
[325,7,1,1,5,0.5,"0;1;1","0;2;3",0,0,0]
[326,7,1,1,6,0.5,"1;1;0","2;3;0",0,0,0]
[327,7,1,1,7,1,"3;3;3","3;3;3",0,0,0]
[328,7,1,1,8,1,"1;0;1","2;0;1",0,0,0]
[329,7,1,1,9,1,"0;1;1","0;2;1",0,0,0]
[330,7,1,1,10,1,"1;0;1","1;0;2",0,0,0]
[331,7,1,1,11,1,"0;1;1","0;2;1",0,0,0]
[332,7,2,1,1,1.35,"3;3;3","2;2;2",0,0,0]
[333,7,2,1,2,0.35,"4;4;4","4;4;4",0,0.6,5]
[334,7,2,1,3,1,"0;0;2","0;0;1",0.15,0,0]
[335,7,2,1,4,1,"0;0;2","0;0;1",0.15,0,0]
[336,7,2,1,5,0.5,"0;2;0","0;1;0",0.15,0,0]
[337,7,2,1,6,0.5,"2;0;0","1;0;0",0.15,0,0]
[338,7,2,1,7,1,"3;3;3","1;1;1",0,0,0]
[339,7,2,1,8,1,"0;1;1","0;2;3",0,0,0]
[340,7,2,1,9,1,"1;0;1","3;0;2",0,0,0]
[341,7,2,1,10,1,"0;1;1","0;2;3",0,0,0]
[342,7,2,1,11,1,"1;0;1","2;0;3",0,0,0]
[343,7,3,1,1,1.35,"3;3;3","3;3;3",0,0,0]
[344,7,3,1,2,0.35,"4;4;4","4;4;4",0,0.6,5]
[345,7,3,1,3,0.75,"1;0;1","2;0;1",0.1,0,0]
[346,7,3,1,4,0.75,"0;1;1","0;2;1",0.1,0,0]
[347,7,3,1,5,0.75,"1;0;1","1;0;2",0,0,0]
[348,7,3,1,6,0.75,"0;1;1","0;2;1",0,0,0]
[349,7,3,1,7,1,"3;3;3","2;2;2",0,0,0]
[350,7,3,1,8,1,"0;1;1","0;1;3",0,0,0]
[351,7,3,1,9,1,"1;0;1","3;0;1",0,0,0]
[352,7,3,1,10,1,"0;1;1","0;1;3",0,0,0]
[353,7,3,1,11,1,"1;0;1","1;0;3",0,0,0]
[354,8,1,1,1,1.3,"3;3;3","2;2;2",0,0,0]
[355,8,1,1,2,0.35,"4;4;4","4;4;4",0,0.6,5]
[356,8,1,1,3,0.35,"6;0;0","4;0;0",0,0,0]
[357,8,1,1,4,0.35,"0;0;6","0;0;4",0,0,0]
[358,8,1,1,5,0.35,"6;0;0","4;0;0",0,0,0]
[359,8,1,1,6,0.35,"0;0;6","0;0;4",0,0,0]
[360,8,1,1,7,0.35,"6;0;0","4;0;0",0,0,0]
[361,8,1,1,8,0.35,"0;0;6","0;0;4",0,0,0]
[362,8,1,1,9,0.35,"6;0;0","4;0;0",0,0,0]
[363,8,1,1,10,0.35,"0;0;6","0;0;4",0,0,0]
[364,8,1,1,11,0.35,"6;0;0","4;0;0",0,0,0]
[365,8,1,1,12,0.35,"0;0;6","0;0;4",0,0,0]
[366,8,1,1,13,0.35,"6;0;0","4;0;0",0,0,0]
[367,8,1,1,14,0.35,"0;0;6","0;0;4",0,0,0]
[368,8,1,1,15,0.35,"6;0;0","4;0;0",0,0,0]
[369,8,1,1,16,0.35,"0;0;6","0;0;4",0,0,0]
[370,8,1,1,17,0.35,"6;0;0","4;0;0",0,0,0]
[371,8,1,1,18,0.35,"0;0;6","0;0;4",0,0,0]
[372,8,1,1,19,0.35,"6;0;0","4;0;0",0,0,0]
[373,8,1,1,20,0.35,"0;0;6","0;0;4",0,0,0]
[374,8,1,1,21,0.35,"0;0;6","0;0;4",0,0,0]
[375,8,1,1,22,0.35,"6;0;0","4;0;0",0,0,0]
[376,8,1,1,23,0.35,"0;0;6","0;0;4",0,0,0]
[377,8,1,1,24,0.35,"6;0;0","4;0;0",0,0,0]
[378,9,1,1,1,0,"1;1;1","0;0;0",0,0,0]
[379,9,1,1,2,1.3,"0;1;0","0;1;0",0,0,0]
[380,9,1,1,3,0.6,"0;1;0","0;1;0",0,0,0]
[381,9,1,1,4,0.6,"0;1;0","0;1;0",0,0,0]
[382,9,1,1,5,0.6,"0;1;0","0;1;0",0,0,0]
[383,9,1,1,6,1.3,"3;3;3","0;0;0",0,0,0]
[384,9,1,1,7,1.3,"3;3;3","3;3;3",0,0,0]
[385,9,1,1,8,1,"0;1;0","0;3;0",0,0,0]
[386,9,1,1,9,0.8,"0;1;0","0;3;0",0,0,0]
[387,9,1,1,10,0.8,"1;0;0","3;0;0",0,0,0]
[388,9,1,1,11,0.8,"1;0;0","3;0;0",0,0,0]
[389,9,1,1,12,1.3,"2;2;2","0;0;0",0,0,0]
[390,9,1,1,13,1,"0;2;0","0;3;0",0,0,0]
[391,9,1,1,14,0.8,"0;2;0","0;3;0",0,0,0]
[392,9,1,1,15,0.8,"0;2;0","0;3;0",0.1,0,0]
[393,9,1,1,16,1.3,"6;6;6","0;0;0",0,0,0]
[394,9,1,1,17,0.33,"6;0;0","4;0;0",0,0,0]
[395,9,1,1,18,0.33,"6;0;0","4;0;0",0,0,0]
[396,9,1,1,19,0.33,"6;0;0","4;0;0",0,0,0]
[397,9,1,1,20,0.33,"0;0;6","0;0;4",0,0,0]
[398,9,1,1,21,0.33,"0;6;0","0;4;0",0,0,0]
[399,9,1,1,22,1,"7;7;7","0;0;0",0,0,0]
[400,9,1,1,23,1.3,"7;7;7","4;4;4",0,0,0]
[401,9,1,1,24,0.33,"6;0;0","4;0;0",0,0,0]
[402,9,1,1,25,0.33,"0;0;6","0;0;4",0,0,0]
[403,9,1,1,26,0.33,"6;0;0","4;0;0",0,0,0]
[404,9,1,1,27,0.33,"0;0;6","0;0;4",0,0,0]
[405,9,1,1,28,0.33,"6;0;0","4;0;0",0,0,0]
[406,9,1,1,29,0.33,"0;0;6","0;0;4",0,0,0]

{"sheet":"zhuti","index":2,"n_rows":273,"n_cols":9,"rows_kept":273,"cut":false,"hidden":false,"merged":[]}
["唯一id","下一等级id","主题序号","主题名称","主题等级","获得金币比例","描述","升级消耗金币","资源名"]
["id","next_id","sequence","name","lv","moregold","des","costgold","pic"]
["number","number","number","string","number","float","string","number","string"]
[{"$f":"C4*100+E4","v":101},102,1,"水果幻境",1,1,"在游戏中可以获得金币",50,"s0"]
[{"$f":"C5*100+E5","v":102},103,1,"水果幻境",2,1.05,{"$f":"\"游戏中获得金币增加\"&ROUND(F5-1,3)*100&\"%\"","v":"游戏中获得金币增加5%"},75,"s0"]
[103,104,1,"水果幻境",3,1.06,{"$f":"\"游戏中获得金币增加\"&ROUND(F6-1,3)*100&\"%\"","v":"游戏中获得金币增加6%"},100,"s0"]
[104,105,1,"水果幻境",4,1.07,"游戏中获得金币增加7%",125,"s0"]
[105,106,1,"水果幻境",5,1.08,"游戏中获得金币增加8%",150,"s0"]
[106,107,1,"水果幻境",6,1.0900000000000001,"游戏中获得金币增加9%",175,"s0"]
[107,108,1,"水果幻境",7,1.1000000000000001,"游戏中获得金币增加10%",200,"s0"]
[108,109,1,"水果幻境",8,1.1100000000000001,"游戏中获得金币增加11%",225,"s0"]
[109,110,1,"水果幻境",9,1.1200000000000001,"游戏中获得金币增加12%",250,"s0"]
[110,201,1,"水果幻境",10,1.1299999999999999,"游戏中获得金币增加13%",275,"s0"]
[201,202,2,"音乐世界",1,1.1399999999999999,"游戏中获得金币增加14%",300,"s1"]
[202,203,2,"音乐世界",2,1.1499999999999999,"游戏中获得金币增加15%",350,"s1"]
[203,204,2,"音乐世界",3,1.1599999999999999,"游戏中获得金币增加16%",400,"s1"]
[204,205,2,"音乐世界",4,1.17,"游戏中获得金币增加17%",450,"s1"]
[205,206,2,"音乐世界",5,1.18,"游戏中获得金币增加18%",500,"s1"]
[206,207,2,"音乐世界",6,1.19,"游戏中获得金币增加19%",550,"s1"]
[207,208,2,"音乐世界",7,1.2,"游戏中获得金币增加20%",600,"s1"]
[208,209,2,"音乐世界",8,1.21,"游戏中获得金币增加21%",650,"s1"]
[209,210,2,"音乐世界",9,1.22,"游戏中获得金币增加22%",700,"s1"]
[210,301,2,"音乐世界",10,1.23,"游戏中获得金币增加23%",750,"s1"]
[301,302,{"$f":"C14+1","v":3},"卖萌猫",1,1.24,"游戏中获得金币增加24%",800,"s7"]
[302,303,{"$f":"C15+1","v":3},"卖萌猫",2,1.25,"游戏中获得金币增加25%",850,"s7"]
[303,304,3,"卖萌猫",3,1.26,"游戏中获得金币增加26%",900,"s7"]
[304,305,3,"卖萌猫",4,1.27,"游戏中获得金币增加27%",950,"s7"]
[305,306,3,"卖萌猫",5,1.28,"游戏中获得金币增加28%",1000,"s7"]
[306,307,3,"卖萌猫",6,1.29,"游戏中获得金币增加29%",1050,"s7"]
[307,308,3,"卖萌猫",7,1.3,"游戏中获得金币增加30%",1100,"s7"]
[308,309,3,"卖萌猫",8,1.31,"游戏中获得金币增加31%",1150,"s7"]
[309,310,3,"卖萌猫",9,1.32,"游戏中获得金币增加32%",1200,"s7"]
[310,401,3,"卖萌猫",10,1.33,"游戏中获得金币增加33%",1250,"s7"]
[401,402,{"$f":"C24+1","v":4},"灵活猴",1,1.34,"游戏中获得金币增加34%",1350,"s16"]
[402,403,4,"灵活猴",2,1.35,"游戏中获得金币增加35%",1450,"s16"]
[403,404,4,"灵活猴",3,1.36,"游戏中获得金币增加36%",1550,"s16"]
[404,405,4,"灵活猴",4,1.37,"游戏中获得金币增加37%",1650,"s16"]
[405,406,4,"灵活猴",5,1.38,"游戏中获得金币增加38%",1750,"s16"]
[406,407,4,"灵活猴",6,1.39,"游戏中获得金币增加39%",1850,"s16"]
[407,408,4,"灵活猴",7,1.4,"游戏中获得金币增加40%",1950,"s16"]
[408,409,4,"灵活猴",8,1.41,"游戏中获得金币增加41%",2050,"s16"]
[409,410,4,"灵活猴",9,1.42,"游戏中获得金币增加42%",2150,"s16"]
[410,501,4,"灵活猴",10,1.43,"游戏中获得金币增加43%",2250,"s16"]
[501,502,{"$f":"C34+1","v":5},"小浣熊",1,1.44,"游戏中获得金币增加44%",2350,"s21"]
[502,503,5,"小浣熊",2,1.45,"游戏中获得金币增加45%",2450,"s21"]
[503,504,5,"小浣熊",3,1.46,"游戏中获得金币增加46%",2550,"s21"]
[504,505,5,"小浣熊",4,1.47,"游戏中获得金币增加47%",2650,"s21"]
[505,506,5,"小浣熊",5,1.48,"游戏中获得金币增加48%",2750,"s21"]
[506,507,5,"小浣熊",6,1.49,"游戏中获得金币增加49%",2850,"s21"]
[{"$f":"C50*100+E50","v":507},508,5,"小浣熊",7,1.5,"游戏中获得金币增加50%",2950,"s21"]
[508,509,5,"小浣熊",8,1.51,"游戏中获得金币增加51%",3050,"s21"]
[509,510,5,"小浣熊",9,1.52,"游戏中获得金币增加52%",3150,"s21"]
[510,{"$f":"A54","v":601},5,"小浣熊",10,1.53,"游戏中获得金币增加53%",3250,"s21"]
[601,{"$f":"A55","v":602},{"$f":"C44+1","v":6},"憨厚狗",1,1.54,"游戏中获得金币增加54%",3350,"s9"]
[602,603,{"$f":"C45+1","v":6},"憨厚狗",2,1.55,"游戏中获得金币增加55%",3450,"s9"]
[603,604,6,"憨厚狗",3,1.56,"游戏中获得金币增加56%",3550,"s9"]
[604,605,6,"憨厚狗",4,1.57,"游戏中获得金币增加57%",3650,"s9"]
[605,606,6,"憨厚狗",5,1.58,"游戏中获得金币增加58%",3750,"s9"]
[606,607,6,"憨厚狗",6,1.59,"游戏中获得金币增加59%",3850,"s9"]
[607,608,6,"憨厚狗",7,1.6,"游戏中获得金币增加60%",3950,"s9"]
[608,609,6,"憨厚狗",8,1.61,"游戏中获得金币增加61%",4050,"s9"]
[609,610,6,"憨厚狗",9,1.62,"游戏中获得金币增加62%",4150,"s9"]
[610,701,6,"憨厚狗",10,1.63,"游戏中获得金币增加63%",4250,"s9"]
[701,702,7,"粉嫩猪",1,1.64,"游戏中获得金币增加64%",4350,"s19"]
[702,703,7,"粉嫩猪",2,1.65,"游戏中获得金币增加65%",4450,"s19"]
[703,704,7,"粉嫩猪",3,1.66,"游戏中获得金币增加66%",4550,"s19"]
[704,705,7,"粉嫩猪",4,1.67,"游戏中获得金币增加67%",4650,"s19"]
[705,706,7,"粉嫩猪",5,1.68,"游戏中获得金币增加68%",4750,"s19"]
[{"$f":"C69*100+E69","v":706},707,7,"粉嫩猪",6,1.69,"游戏中获得金币增加69%",4850,"s19"]
[707,708,7,"粉嫩猪",7,1.7,{"$f":"\"游戏中获得金币增加\"&ROUND(F70-1,3)*100&\"%\"","v":"游戏中获得金币增加70%"},4950,"s19"]
[708,709,7,"粉嫩猪",8,1.71,"游戏中获得金币增加71%",5050,"s19"]
[709,710,7,"粉嫩猪",9,1.72,"游戏中获得金币增加72%",5150,"s19"]
[710,801,7,"粉嫩猪",10,1.73,"游戏中获得金币增加73%",5250,"s19"]
[801,802,8,"呆山羊",1,1.74,"游戏中获得金币增加74%",5350,"s11"]
[802,803,8,"呆山羊",2,1.75,"游戏中获得金币增加75%",5450,"s11"]
[803,804,8,"呆山羊",3,1.76,"游戏中获得金币增加76%",5550,"s11"]
[804,805,8,"呆山羊",4,1.77,"游戏中获得金币增加77%",5650,"s11"]
[805,806,8,"呆山羊",5,1.78,"游戏中获得金币增加78%",5750,"s11"]
[806,807,8,"呆山羊",6,1.79,"游戏中获得金币增加79%",5850,"s11"]
[807,808,8,"呆山羊",7,1.8,"游戏中获得金币增加80%",5950,"s11"]
[808,809,8,"呆山羊",8,1.81,"游戏中获得金币增加81%",6050,"s11"]
[809,810,8,"呆山羊",9,1.82,"游戏中获得金币增加82%",6150,"s11"]
[810,901,8,"呆山羊",10,1.83,"游戏中获得金币增加83%",6250,"s11"]
[901,902,9,"软绵羊",1,1.84,"游戏中获得金币增加84%",6350,"s23"]
[902,903,9,"软绵羊",2,1.85,"游戏中获得金币增加85%",6450,"s23"]
[903,904,9,"软绵羊",3,1.86,"游戏中获得金币增加86%",6550,"s23"]
[904,905,9,"软绵羊",4,1.87,"游戏中获得金币增加87%",6650,"s23"]
[905,906,9,"软绵羊",5,1.88,"游戏中获得金币增加88%",6750,"s23"]
[906,907,9,"软绵羊",6,1.89,"游戏中获得金币增加89%",6850,"s23"]
[907,908,9,"软绵羊",7,1.9,"游戏中获得金币增加90%",6950,"s23"]
[908,909,9,"软绵羊",8,1.91,"游戏中获得金币增加91%",7050,"s23"]
[909,910,9,"软绵羊",9,1.92,"游戏中获得金币增加92%",7150,"s23"]
[910,1001,9,"软绵羊",10,1.93,"游戏中获得金币增加93%",7250,"s23"]
[1001,1002,10,"实诚牛",1,1.94,"游戏中获得金币增加94%",7350,"s8"]
[1002,1003,10,"实诚牛",2,1.95,"游戏中获得金币增加95%",7450,"s8"]
[1003,1004,10,"实诚牛",3,1.96,"游戏中获得金币增加96%",7550,"s8"]
[1004,1005,10,"实诚牛",4,1.97,"游戏中获得金币增加97%",7650,"s8"]
[1005,1006,10,"实诚牛",5,1.98,"游戏中获得金币增加98%",7750,"s8"]
[1006,1007,10,"实诚牛",6,1.99,"游戏中获得金币增加99%",7850,"s8"]
[1007,1008,10,"实诚牛",7,2,"游戏中获得金币增加100%",7950,"s8"]
[1008,1009,10,"实诚牛",8,2.0099999999999998,"游戏中获得金币增加101%",8050,"s8"]
[1009,1010,10,"实诚牛",9,2.02,"游戏中获得金币增加102%",8150,"s8"]
[1010,1101,10,"实诚牛",10,2.0299999999999998,"游戏中获得金币增加103%",8250,"s8"]
[1101,1102,{"$f":"C94+1","v":11},"威猛虎",1,2.04,"游戏中获得金币增加104%",8350,"s25"]
[1102,1103,11,"威猛虎",2,2.0499999999999998,"游戏中获得金币增加105%",8450,"s25"]
[1103,1104,11,"威猛虎",3,2.06,"游戏中获得金币增加106%",8550,"s25"]
[1104,1105,11,"威猛虎",4,2.0699999999999998,"游戏中获得金币增加107%",8650,"s25"]
[1105,1106,11,"威猛虎",5,2.08,"游戏中获得金币增加108%",8750,"s25"]
[1106,1107,11,"威猛虎",6,2.09,"游戏中获得金币增加109%",8850,"s25"]
[1107,1108,11,"威猛虎",7,2.1,"游戏中获得金币增加110%",8950,"s25"]
[1108,1109,11,"威猛虎",8,2.11,"游戏中获得金币增加111%",9050,"s25"]
[1109,1110,11,"威猛虎",9,2.12,"游戏中获得金币增加112%",9150,"s25"]
[1110,1201,11,"威猛虎",10,2.13,"游戏中获得金币增加113%",9250,"s25"]
[1201,1202,12,"笑河马",1,2.14,"游戏中获得金币增加114%",9350,"s13"]
[1202,1203,12,"笑河马",2,2.15,"游戏中获得金币增加115%",9450,"s13"]
[1203,1204,12,"笑河马",3,2.16,"游戏中获得金币增加116%",9550,"s13"]
[1204,1205,12,"笑河马",4,2.17,"游戏中获得金币增加117%",9650,"s13"]
[1205,{"$f":"A119","v":1206},12,"笑河马",5,2.1800000000000002,"游戏中获得金币增加118%",9750,"s13"]
[1206,1207,{"$f":"C109+1","v":12},"笑河马",6,2.19,"游戏中获得金币增加119%",9850,"s13"]
[1207,1208,12,"笑河马",7,2.2000000000000002,"游戏中获得金币增加120%",9950,"s13"]
[1208,1209,12,"笑河马",8,2.21,"游戏中获得金币增加121%",10050,"s13"]
[1209,1210,12,"笑河马",9,2.2200000000000002,"游戏中获得金币增加122%",10150,"s13"]
[1210,1301,12,"笑河马",10,2.23,"游戏中获得金币增加123%",10250,"s13"]
[1301,1302,13,"憨熊猫",1,2.2400000000000002,"游戏中获得金币增加124%",10350,"s18"]
[1302,1303,13,"憨熊猫",2,2.25,"游戏中获得金币增加125%",10450,"s18"]
[1303,1304,13,"憨熊猫",3,2.2599999999999998,"游戏中获得金币增加126%",10550,"s18"]
[1304,1305,13,"憨熊猫",4,2.27,"游戏中获得金币增加127%",10650,"s18"]
[1305,1306,13,"憨熊猫",5,2.2799999999999998,"游戏中获得金币增加128%",10750,"s18"]
[1306,1307,13,"憨熊猫",6,2.29,"游戏中获得金币增加129%",10850,"s18"]
[1307,1308,13,"憨熊猫",7,2.2999999999999998,"游戏中获得金币增加130%",10950,"s18"]
[1308,1309,13,"憨熊猫",8,2.31,"游戏中获得金币增加131%",11050,"s18"]
[1309,1310,13,"憨熊猫",9,2.3199999999999998,"游戏中获得金币增加132%",11150,"s18"]
[{"$f":"C133*100+E133","v":1310},1401,13,"憨熊猫",10,2.33,"游戏中获得金币增加133%",11250,"s18"]
[1401,1402,14,"欢乐兔",1,2.34,{"$f":"\"游戏中获得金币增加\"&ROUND(F134-1,3)*100&\"%\"","v":"游戏中获得金币增加134%"},11350,"s20"]
[1402,1403,14,"欢乐兔",2,2.35,"游戏中获得金币增加135%",11450,"s20"]
[1403,1404,14,"欢乐兔",3,2.36,"游戏中获得金币增加136%",11550,"s20"]
[1404,1405,14,"欢乐兔",4,2.37,"游戏中获得金币增加137%",11650,"s20"]
[1405,1406,14,"欢乐兔",5,2.38,"游戏中获得金币增加138%",11750,"s20"]
[1406,1407,14,"欢乐兔",6,2.39,"游戏中获得金币增加139%",11850,"s20"]
[1407,1408,14,"欢乐兔",7,2.4,"游戏中获得金币增加140%",11950,"s20"]
[1408,1409,14,"欢乐兔",8,2.41,"游戏中获得金币增加141%",12050,"s20"]
[1409,1410,14,"欢乐兔",9,2.42,"游戏中获得金币增加142%",12150,"s20"]
[1410,1501,14,"欢乐兔",10,2.4300000000000002,"游戏中获得金币增加143%",12250,"s20"]
[1501,1502,15,"傻树懒",1,2.44,"游戏中获得金币增加144%",12350,"s24"]
[1502,1503,15,"傻树懒",2,2.4500000000000002,"游戏中获得金币增加145%",12450,"s24"]
[1503,1504,15,"傻树懒",3,2.46,"游戏中获得金币增加146%",12550,"s24"]
[1504,1505,15,"傻树懒",4,2.4700000000000002,"游戏中获得金币增加147%",12650,"s24"]
[1505,1506,15,"傻树懒",5,2.48,"游戏中获得金币增加148%",12750,"s24"]
[1506,1507,15,"傻树懒",6,2.4900000000000002,"游戏中获得金币增加149%",12850,"s24"]
[1507,1508,15,"傻树懒",7,2.5,"游戏中获得金币增加150%",12950,"s24"]
[1508,1509,15,"傻树懒",8,2.5099999999999998,"游戏中获得金币增加151%",13050,"s24"]
[1509,1510,15,"傻树懒",9,2.52,"游戏中获得金币增加152%",13150,"s24"]
[1510,1601,15,"傻树懒",10,2.5299999999999998,"游戏中获得金币增加153%",13250,"s24"]
[1601,1602,{"$f":"C144+1","v":16},"萌考拉",1,2.54,"游戏中获得金币增加154%",13350,"s14"]
[1602,1603,{"$f":"C145+1","v":16},"萌考拉",2,2.5499999999999998,"游戏中获得金币增加155%",13450,"s14"]
[1603,1604,16,"萌考拉",3,2.56,"游戏中获得金币增加156%",13550,"s14"]
[1604,1605,16,"萌考拉",4,2.57,"游戏中获得金币增加157%",13650,"s14"]
[1605,1606,16,"萌考拉",5,2.58,"游戏中获得金币增加158%",13750,"s14"]
[1606,1607,16,"萌考拉",6,2.59,"游戏中获得金币增加159%",13850,"s14"]
[1607,1608,16,"萌考拉",7,2.6,"游戏中获得金币增加160%",13950,"s14"]
[1608,1609,16,"萌考拉",8,2.61,"游戏中获得金币增加161%",14050,"s14"]
[1609,1610,16,"萌考拉",9,2.62,"游戏中获得金币增加162%",14150,"s14"]
[1610,1701,16,"萌考拉",10,2.63,"游戏中获得金币增加163%",14250,"s14"]
[1701,1702,17,"莽犀牛",1,2.64,"游戏中获得金币增加164%",14350,"s22"]
[1702,1703,17,"莽犀牛",2,2.65,"游戏中获得金币增加165%",14450,"s22"]
[1703,1704,17,"莽犀牛",3,2.66,"游戏中获得金币增加166%",14550,"s22"]
[1704,1705,17,"莽犀牛",4,2.67,"游戏中获得金币增加167%",14650,"s22"]
[1705,1706,17,"莽犀牛",5,2.68,"游戏中获得金币增加168%",14750,"s22"]
[1706,1707,17,"莽犀牛",6,2.69,"游戏中获得金币增加169%",14850,"s22"]
[1707,1708,17,"莽犀牛",7,2.7,"游戏中获得金币增加170%",14950,"s22"]
[1708,1709,17,"莽犀牛",8,2.71,"游戏中获得金币增加171%",15050,"s22"]
[1709,1710,17,"莽犀牛",9,2.72,"游戏中获得金币增加172%",15150,"s22"]
[1710,1801,17,"莽犀牛",10,2.73,"游戏中获得金币增加173%",15250,"s22"]
[1801,1802,18,"壮棕熊",1,2.74,"游戏中获得金币增加174%",15350,"s17"]
[1802,1803,18,"壮棕熊",2,2.75,"游戏中获得金币增加175%",15450,"s17"]
[1803,1804,18,"壮棕熊",3,2.76,"游戏中获得金币增加176%",15550,"s17"]
[1804,1805,18,"壮棕熊",4,2.77,"游戏中获得金币增加177%",15650,"s17"]
[1805,1806,18,"壮棕熊",5,2.78,"游戏中获得金币增加178%",15750,"s17"]
[1806,1807,18,"壮棕熊",6,2.79,"游戏中获得金币增加179%",15850,"s17"]
[1807,1808,18,"壮棕熊",7,2.8,"游戏中获得金币增加180%",15950,"s17"]
[1808,1809,18,"壮棕熊",8,2.81,"游戏中获得金币增加181%",16050,"s17"]
[1809,{"$f":"A183","v":1810},18,"壮棕熊",9,2.82,"游戏中获得金币增加182%",16150,"s17"]
[1810,1901,18,"壮棕熊",10,2.83,"游戏中获得金币增加183%",16250,"s17"]
[1901,1902,19,"坚韧龟",1,2.84,"游戏中获得金币增加184%",16350,"s26"]
[1902,1903,19,"坚韧龟",2,2.85,"游戏中获得金币增加185%",16450,"s26"]
[1903,1904,19,"坚韧龟",3,2.86,"游戏中获得金币增加186%",16550,"s26"]
[1904,1905,19,"坚韧龟",4,2.87,"游戏中获得金币增加187%",16650,"s26"]
[1905,1906,19,"坚韧龟",5,2.88,"游戏中获得金币增加188%",16750,"s26"]
[1906,1907,19,"坚韧龟",6,2.89,"游戏中获得金币增加189%",16850,"s26"]
[1907,1908,19,"坚韧龟",7,2.9,"游戏中获得金币增加190%",16950,"s26"]
[1908,1909,19,"坚韧龟",8,2.91,"游戏中获得金币增加191%",17050,"s26"]
[1909,1910,19,"坚韧龟",9,2.92,"游戏中获得金币增加192%",17150,"s26"]
[1910,2001,19,"坚韧龟",10,2.93,"游戏中获得金币增加193%",17250,"s26"]
[2001,2002,20,"睿智狼",1,2.94,"游戏中获得金币增加194%",17350,"s6"]
[2002,2003,20,"睿智狼",2,2.95,"游戏中获得金币增加195%",17450,"s6"]
[2003,2004,20,"睿智狼",3,2.96,"游戏中获得金币增加196%",17550,"s6"]
[{"$f":"C197*100+E197","v":2004},2005,20,"睿智狼",4,2.97,"游戏中获得金币增加197%",17650,"s6"]
[2005,2006,20,"睿智狼",5,2.98,{"$f":"\"游戏中获得金币增加\"&ROUND(F198-1,3)*100&\"%\"","v":"游戏中获得金币增加198%"},17750,"s6"]
[2006,2007,20,"睿智狼",6,2.99,"游戏中获得金币增加199%",17850,"s6"]
[2007,2008,20,"睿智狼",7,3,"游戏中获得金币增加200%",17950,"s6"]
[2008,2009,20,"睿智狼",8,3.01,"游戏中获得金币增加201%",18050,"s6"]
[2009,2010,20,"睿智狼",9,3.02,"游戏中获得金币增加202%",18150,"s6"]
[2010,2101,20,"睿智狼",10,3.03,"游戏中获得金币增加203%",18250,"s6"]
[2101,2102,{"$f":"C194+1","v":21},"霸气狮",1,3.04,"游戏中获得金币增加204%",18350,"s15"]
[2102,2103,{"$f":"C195+1","v":21},"霸气狮",2,3.05,"游戏中获得金币增加205%",18450,"s15"]
[2103,2104,21,"霸气狮",3,3.06,"游戏中获得金币增加206%",18550,"s15"]
[2104,2105,21,"霸气狮",4,3.07,"游戏中获得金币增加207%",18650,"s15"]
[2105,2106,21,"霸气狮",5,3.08,"游戏中获得金币增加208%",18750,"s15"]
[2106,2107,21,"霸气狮",6,3.09,"游戏中获得金币增加209%",18850,"s15"]
[2107,2108,21,"霸气狮",7,3.1,"游戏中获得金币增加210%",18950,"s15"]
[2108,2109,21,"霸气狮",8,3.11,"游戏中获得金币增加211%",19050,"s15"]
[2109,2110,21,"霸气狮",9,3.12,"游戏中获得金币增加212%",19150,"s15"]
[2110,2201,21,"霸气狮",10,3.13,"游戏中获得金币增加213%",19250,"s15"]
[2201,2202,22,"神奇羊",1,3.14,"游戏中获得金币增加214%",19350,"s12"]
[2202,2203,22,"神奇羊",2,3.15,"游戏中获得金币增加215%",19450,"s12"]
[2203,2204,22,"神奇羊",3,3.16,"游戏中获得金币增加216%",19550,"s12"]
[2204,2205,22,"神奇羊",4,3.17,"游戏中获得金币增加217%",19650,"s12"]
[2205,2206,22,"神奇羊",5,3.18,"游戏中获得金币增加218%",19750,"s12"]
[2206,2207,22,"神奇羊",6,3.19,"游戏中获得金币增加219%",19850,"s12"]
[2207,2208,22,"神奇羊",7,3.2,"游戏中获得金币增加220%",19950,"s12"]
[2208,2209,22,"神奇羊",8,3.21,"游戏中获得金币增加221%",20050,"s12"]
[2209,2210,22,"神奇羊",9,3.22,"游戏中获得金币增加222%",20150,"s12"]
[2210,2301,22,"神奇羊",10,3.23,"游戏中获得金币增加223%",20250,"s12"]
[2301,2302,23,"机灵狐",1,3.24,"游戏中获得金币增加224%",20350,"s10"]
[2302,2303,23,"机灵狐",2,3.25,"游戏中获得金币增加225%",20450,"s10"]
[2303,2304,23,"机灵狐",3,3.26,"游戏中获得金币增加226%",20550,"s10"]
[2304,2305,23,"机灵狐",4,3.27,"游戏中获得金币增加227%",20650,"s10"]
[2305,2306,23,"机灵狐",5,3.28,"游戏中获得金币增加228%",20750,"s10"]
[2306,2307,23,"机灵狐",6,3.29,"游戏中获得金币增加229%",20850,"s10"]
[2307,2308,23,"机灵狐",7,3.3,"游戏中获得金币增加230%",20950,"s10"]
[2308,2309,23,"机灵狐",8,3.31,"游戏中获得金币增加231%",21050,"s10"]
[2309,2310,23,"机灵狐",9,3.32,"游戏中获得金币增加232%",21150,"s10"]
[2310,2401,23,"机灵狐",10,3.33,"游戏中获得金币增加233%",21250,"s10"]
[2401,2402,24,"桌球狂欢",1,3.34,"游戏中获得金币增加234%",21350,"s2"]
[2402,2403,24,"桌球狂欢",2,3.35,"游戏中获得金币增加235%",21450,"s2"]
[2403,2404,24,"桌球狂欢",3,3.36,"游戏中获得金币增加236%",21550,"s2"]
[2404,2405,24,"桌球狂欢",4,3.37,"游戏中获得金币增加237%",21650,"s2"]
[2405,2406,24,"桌球狂欢",5,3.38,"游戏中获得金币增加238%",21750,"s2"]
[2406,2407,24,"桌球狂欢",6,3.39,"游戏中获得金币增加239%",21850,"s2"]
[2407,2408,24,"桌球狂欢",7,3.4,"游戏中获得金币增加240%",21950,"s2"]
[2408,2409,24,"桌球狂欢",8,3.41,"游戏中获得金币增加241%",22050,"s2"]
[2409,2410,24,"桌球狂欢",9,3.42,"游戏中获得金币增加242%",22150,"s2"]
[2410,2501,24,"桌球狂欢",10,3.43,"游戏中获得金币增加243%",22250,"s2"]
[2501,2502,25,"三只小猪",1,3.44,"游戏中获得金币增加244%",22350,"s3"]
[2502,2503,25,"三只小猪",2,3.45,"游戏中获得金币增加245%",22450,"s3"]
[2503,{"$f":"A247","v":2504},25,"三只小猪",3,3.46,"游戏中获得金币增加246%",22550,"s3"]
[2504,2505,25,"三只小猪",4,3.47,"游戏中获得金币增加247%",22650,"s3"]
[2505,2506,25,"三只小猪",5,3.48,"游戏中获得金币增加248%",22750,"s3"]
[2506,2507,25,"三只小猪",6,3.49,"游戏中获得金币增加249%",22850,"s3"]
[2507,2508,25,"三只小猪",7,3.5,"游戏中获得金币增加250%",22950,"s3"]
[2508,2509,25,"三只小猪",8,3.51,"游戏中获得金币增加251%",23050,"s3"]
[2509,2510,25,"三只小猪",9,3.52,"游戏中获得金币增加252%",23150,"s3"]
[2510,2601,25,"三只小猪",10,3.53,"游戏中获得金币增加253%",23250,"s3"]
[2601,2602,26,"高尔夫乐园",1,3.54,"游戏中获得金币增加254%",23350,"s4"]
[2602,2603,26,"高尔夫乐园",2,3.55,"游戏中获得金币增加255%",23450,"s4"]
[2603,2604,26,"高尔夫乐园",3,3.56,"游戏中获得金币增加256%",23550,"s4"]
[2604,2605,26,"高尔夫乐园",4,3.57,"游戏中获得金币增加257%",23650,"s4"]
[2605,2606,26,"高尔夫乐园",5,3.58,"游戏中获得金币增加258%",23750,"s4"]
[2606,2607,26,"高尔夫乐园",6,3.59,"游戏中获得金币增加259%",23850,"s4"]
[2607,2608,26,"高尔夫乐园",7,3.6,"游戏中获得金币增加260%",23950,"s4"]
[{"$f":"C261*100+E261","v":2608},2609,26,"高尔夫乐园",8,3.61,"游戏中获得金币增加261%",24050,"s4"]
[2609,2610,26,"高尔夫乐园",9,3.62,{"$f":"\"游戏中获得金币增加\"&ROUND(F262-1,3)*100&\"%\"","v":"游戏中获得金币增加262%"},24150,"s4"]
[2610,2701,26,"高尔夫乐园",10,3.63,"游戏中获得金币增加263%",24250,"s4"]
[2701,2702,27,"熊熊森林",1,3.64,"游戏中获得金币增加264%",24350,"s5"]
[2702,2703,27,"熊熊森林",2,3.65,"游戏中获得金币增加265%",24450,"s5"]
[2703,2704,27,"熊熊森林",3,3.66,"游戏中获得金币增加266%",24550,"s5"]
[2704,2705,27,"熊熊森林",4,3.67,"游戏中获得金币增加267%",24650,"s5"]
[2705,2706,27,"熊熊森林",5,3.68,"游戏中获得金币增加268%",24750,"s5"]
[2706,2707,{"$f":"C259+1","v":27},"熊熊森林",6,3.69,"游戏中获得金币增加269%",24850,"s5"]
[2707,2708,27,"熊熊森林",7,3.7,"游戏中获得金币增加270%",24950,"s5"]
[2708,2709,27,"熊熊森林",8,3.71,"游戏中获得金币增加271%",25050,"s5"]
[2709,2710,27,"熊熊森林",9,3.72,"游戏中获得金币增加272%",25150,"s5"]
[2710,0,27,"熊熊森林",10,3.73,"游戏中获得金币增加273%",25250,"s5"]

{"sheet":"zhuti_new","index":3,"n_rows":30,"n_cols":7,"rows_kept":30,"cut":false,"hidden":false,"merged":[]}
["唯一id","主题序号","主题名称","获得金币比例","描述","购买消耗金币","资源名"]
["id","sequence","name","moregold","des","costgold","pic"]
["number","number","string","float","string","number","string"]
[101,1,"水果幻境",0,"在游戏中可以获得金币",0,"s0"]
[201,2,"音乐世界",10,"游戏中获得金币增加10%",100,"s1"]
[301,3,"卖萌猫",10,"游戏中获得金币增加10%",500,"s7"]
[401,4,"灵活猴",10,"游戏中获得金币增加10%",1000,"s16"]
[501,5,"小浣熊",10,"游戏中获得金币增加10%",1500,"s21"]
[601,6,"憨厚狗",10,"游戏中获得金币增加10%",2000,"s9"]
[701,7,"粉嫩猪",10,"游戏中获得金币增加10%",2500,"s19"]
[801,8,"呆山羊",10,"游戏中获得金币增加10%",3000,"s11"]
[901,9,"软绵羊",10,"游戏中获得金币增加10%",3500,"s23"]
[1001,10,"实诚牛",10,"游戏中获得金币增加10%",4000,"s8"]
[1101,11,"威猛虎",10,"游戏中获得金币增加10%",4500,"s25"]
[1201,12,"笑河马",10,"游戏中获得金币增加10%",5000,"s13"]
[1301,13,"憨熊猫",10,"游戏中获得金币增加10%",6000,"s18"]
[1401,14,"欢乐兔",10,"游戏中获得金币增加10%",7000,"s20"]
[1501,15,"傻树懒",10,"游戏中获得金币增加10%",8000,"s24"]
[1601,16,"萌考拉",10,"游戏中获得金币增加10%",9000,"s14"]
[1701,17,"莽犀牛",10,"游戏中获得金币增加10%",10000,"s22"]
[1801,18,"壮棕熊",10,"游戏中获得金币增加10%",11000,"s17"]
[1901,19,"坚韧龟",10,"游戏中获得金币增加10%",12000,"s26"]
[2001,20,"睿智狼",10,"游戏中获得金币增加10%",13000,"s6"]
[2101,21,"霸气狮",10,"游戏中获得金币增加10%",14000,"s15"]
[2201,22,"神奇羊",10,"游戏中获得金币增加10%",15000,"s12"]
[2301,23,"机灵狐",10,"游戏中获得金币增加10%",16000,"s10"]
[2401,24,"桌球狂欢",10,"游戏中获得金币增加10%",17000,"s2"]
[2501,25,"三只小猪",10,"游戏中获得金币增加10%",18000,"s3"]
[2601,26,"高尔夫乐园",10,"游戏中获得金币增加10%",19000,"s4"]
[2701,27,"熊熊森林",10,"游戏中获得金币增加10%",20000,"s5"]

{"sheet":"meiriyaoqing","index":4,"n_rows":4,"n_cols":4,"rows_kept":4,"cut":false,"hidden":false,"merged":[]}
["编号","达到条件数量","奖励道具id","奖励道具数量"]
["id","num","rewarditem","rewardnum"]
["number","number","string","string"]
[1,5,"2;3","50;5"]

{"sheet":"choujiang","index":5,"n_rows":5,"n_cols":5,"rows_kept":5,"cut":false,"hidden":false,"merged":[]}
["编号","奖励道具id","奖励道具数量","奖励道具权重","抽检间隔时间（分钟）"]
["id","rewarditem","rewardnum","rewardweight","requiretime"]
["number","string","string","string","string"]
[1,"1;2;3;4","2000;10;1;1","50;10;10;10","1;5;10"]
[2,"1;2;3;4","2000;10;1;1","100;0;0;0",10]

{"sheet":"huoyue","index":6,"n_rows":8,"n_cols":5,"rows_kept":8,"cut":false,"hidden":false,"merged":[]}
["任务id","任务类型","任务需要数量","任务描述","获得活跃值"]
["id","type","num","des","huoyue"]
["number","number","number","string","number"]
[1,1,5,"完成5次游戏",20]
[2,2,1000,"单次游戏获得1000分",20]
[3,5,10000,"今日累计获得10000分",20]
[4,3,2,"完成2次抽奖",20]
[5,4,3,"发送3次分享",20]

{"sheet":"huoyuereward","index":7,"n_rows":7,"n_cols":4,"rows_kept":7,"cut":false,"hidden":false,"merged":[]}
["档次id","所需活跃值","奖励道具","奖励数量"]
["id","huoyue","rewarditem","rewardnum"]
["number","number","string","string"]
[1,25,4,1]
[2,50,1,2000]
[3,75,3,2]
[4,100,2,50]

{"sheet":"item","index":8,"n_rows":11,"n_cols":3,"rows_kept":11,"cut":false,"hidden":false,"merged":[]}
["道具ID","道具名","有效时长（秒）"]
["id","name","duration"]
["number","string","number"]
[1,"金币",0]
[2,"钻石",0]
[3,"复活卡",0]
[4,"无敌卡",10]
[5,"吸金卡",10]
[6,"尾迹",0]
[7,"路",0]
[8,"主题",0]

{"sheet":"paihang","index":9,"n_rows":4,"n_cols":3,"rows_kept":4,"cut":false,"hidden":false,"merged":[]}
["编号","奖励道具id","奖励道具数量"]
["id","rewarditem","rewardnum"]
["number","string","string"]
[1,"1;4","10000;5"]

{"sheet":"roadcolor","index":10,"n_rows":13,"n_cols":5,"rows_kept":13,"cut":false,"hidden":false,"merged":[]}
["编号","道路名称","道路描述","道路解锁需要分数","道路资源"]
["id","name","des","mission","pic"]
["number","string","string","number","string"]
[1,"北境镇","北境镇",0,"road_1"]
[2,"闪金镇","闪金镇",1000,"road_2"]
[3,"沃土镇","沃土镇",2000,"road_3"]
[4,"崇山镇","崇山镇",3000,"road_4"]
[5,"中土城","中土城",5000,"road_5"]
[6,"天山道","天山道",7500,"road_6"]
[7,"南海镇","南海镇",10000,"road_7"]
[8,"夏尔镇","夏尔镇",12500,"road_8"]
[9,"皇后镇","皇后镇",15000,"road_9"]
[10,"暴风城","暴风城",20000,"road_10"]

{"sheet":"signin","index":11,"n_rows":10,"n_cols":3,"rows_kept":10,"cut":false,"hidden":false,"merged":[]}
["奖励编号","奖励道具","奖励数量"]
["id","rewarditem","rewardnum"]
["number","string","string"]
[1,1,5000]
[2,4,3]
[3,5,3]
[4,1,10000]
[5,3,5]
[6,5,5]
[7,2,100]

{"sheet":"weiji","index":12,"n_rows":13,"n_cols":6,"rows_kept":13,"cut":false,"hidden":false,"merged":[]}
["尾迹id","尾迹名称","描述","无敌时间增加量（秒）","吸铁石时间增加量（秒）","消耗钻石"]
["id","name","des","powertime","autotime","costzs"]
["number","string","string","number","number","number"]
[1,"翠绿之叶","无敌时间10+2",2,0,10]
[2,"闪亮金光","吸金时间10+4",0,4,20]
[3,"热情玫瑰","无敌时间10+4",4,0,30]
[4,"迷情桃花","吸金时间10+6",0,6,40]
[5,"飘柔之羽","无敌时间10+6",6,0,50]
[6,"激情之乐","吸金时间10+8",0,8,60]
[7,"梦幻雪花","无敌时间10+4，吸金时间10+6",4,6,80]
[8,"激烈爱情","无敌时间10+6，吸金时间10+8",6,8,150]
[9,"魔幻泡泡","无敌时间10+8，吸金时间10+10",8,10,300]
[10,"奇妙海洋","无敌时间10+10，吸金时间10+12",10,12,500]

{"sheet":"yaoqing","index":13,"n_rows":8,"n_cols":6,"rows_kept":8,"cut":false,"hidden":false,"merged":[]}
["任务id","任务类型","任务满足数量","任务描述","奖励道具id","奖励道具数量"]
["id","type","num","des","rewarditem","rewardnum"]
["number","number","string","string","string","string"]
[1,1,1,"邀请1个好友",4,2]
[2,1,3,"邀请3个好友",4,5]
[3,2,"3;50","邀请的3个好友活跃达到50",1,5000]
[4,3,3,"邀请的好友进行3次抽奖",2,30]
[5,3,5,"邀请的好友进行5次抽奖",2,30]

{"sheet":"virtual_user","index":14,"n_rows":1003,"n_cols":3,"rows_kept":1003,"cut":false,"hidden":false,"merged":[]}
["ID","用户名","头像"]
["id","nickname","avatar"]
["number","string","string"]
[1,"因为爱有奇迹","https://wx.qlogo.cn/mmopen/vi_32/kZPrqwVbmcHPQVIPicJKV5dtvtolg395LpdP8ueYfwvfD8lDgLaK3DK9Zjt32Auib40uIibb1BqC8vVWVAf3k4KXw/132"]
[2,"徐一朵妈妈","https://wx.qlogo.cn/mmopen/vi_32/6ZLPGd1MELg1doXv2DBxqbwrm6WIUo4I71Nibpz7O6bSQBDvQ0vVHptEEAOw9QibfGXREcSPkfBOgYfkXGwia0AkQ/132"]
[3,"海阔天空","https://wx.qlogo.cn/mmopen/vi_32/DYAIOgq83errSBaAibRnibjuOuq3Dx4HYS6ehjrHv5Q6FcC43uRBuYuq8yLNPyhmqCg9X0LhjdGm9lxZRRc19r5A/132"]
[4,"林庆祝","https://wx.qlogo.cn/mmopen/vi_32/m8avHAEOianX8hPDSyvQKDgnnEqTAt7Lm83TmUmXYxDgzSvuPA9CNgXeouhmrvpKGOqTQXLY0D6RB0FUMnyW9Bg/132"]
[5,"陆乔民","https://wx.qlogo.cn/mmopen/vi_32/ZZNunGlGNic9EfOjNne6ibpRM1KzThTczclplDUfQto7JGXcKd4XbWEosictw8kv9gNHJGuBmMgPHD2pH7ZnBmtCg/132"]
[6,"薛文熙妈妈","https://wx.qlogo.cn/mmopen/vi_32/DYAIOgq83eogIUcjJhtNw1Ebod3qlnb1MbFiaZicN6dULAGKxS5rbOtP61hs7n6GCqf34T21kGbMsebvCojlXsLQ/132"]
[7,"残血","https://wx.qlogo.cn/mmopen/vi_32/aQvhgejj6mHVicJ18EMGTGd7AqWjhyPLZ1CIOq35Ycbp02AMKAVzp3IN0WkkYLtBKJPmia2eYwCJ5duSQFN4YhsA/132"]
[8,"news.","https://wx.qlogo.cn/mmopen/vi_32/4x7BcNeLZhBCRfM1WEfu8xq6avicCE9wI1ibp0v9psD9vlBNRNKbgAbISCsBVFIsZjk3jvRU0zxE2cYBPLJO7eXQ/132"]
[9,"心若在梦就在","https://wx.qlogo.cn/mmopen/vi_32/Q0j4TwGTfTIt3pl8Yf7wiaDickqDF0nzXMNWfQuJdouDGNxGhhVuiauiaoBBaTWibbNSUH0a9Fmmqlegk2JTMMeU3hw/132"]
[10,"丫头","https://wx.qlogo.cn/mmopen/vi_32/Q0j4TwGTfTI2BmZe9odmibEhvzjb10P0j7GibD8ic8PwwbMyQaj1962dmUnWbDNSFUUXRMMDkFMS4icvTAJHa0xzSA/132"]
[11,"吴一涛","https://wx.qlogo.cn/mmopen/vi_32/ibibPwnwm1GkaTxbcFibrA5ialR9UfF0K05Rsj39Iv7WxmibibHITGqnkOpc9eP1cEsgXVpLdibXqdYZEH1hF15OjTVqA/132"]
[12,"郑爽","https://wx.qlogo.cn/mmopen/vi_32/wTEkuzoX4wFYUzeQ6AyyiaVxNyE7fnjPCPmb0l3qUMeWSeXw2esrr02JC0foV6VibdCSjeT7yYfWc3rqIstuvKqg/132"]
[13,"罗勇学","https://wx.qlogo.cn/mmopen/vi_32/5OKNlJHylciaqVb4mAqb289hdN3kU5g94mcic0jq4p3Vp39DQhmv34KbZNpt6zBcmnGAD0WZbwHGDfDKEDjX0Dqw/132"]
[14,"ザジ。皮皮珍","https://wx.qlogo.cn/mmopen/vi_32/gzIKGJic12BzWAtycic58ia3xmhGI62L2MiaPGLVuOd6gGS6KzTnuFoK8d5lhK9hZauOtkfwBdDTHPtYHsDqczAMdg/132"]
[15,"杭杭~_~","https://wx.qlogo.cn/mmopen/vi_32/9rb5CT80e3bLIpDd77qKWyFH7BGlRcuzESnZpfw9dvnwpBehN3qh8QIp86ib2npCXeyTdeDPlRU7krfek5licyLw/132"]
[16,"爱心永恒","https://wx.qlogo.cn/mmopen/vi_32/fickjsUYg5nh4zFO2QhreXcRE7Yp5s9QSibQnv3oR4uVjJgPxCuNpeAtJmbQuOMG9LqPAzG8afJwZicG5wib7A26Qg/132"]
[17,"幸福时光","https://wx.qlogo.cn/mmopen/vi_32/MEOvgciaF6FTR61piboayzanwZrEAUeJKXOc82iamnma3Zd6PQfHgiaEoHtyNdv1EWUYmpFxlWeh6XC8ZL8nYteOGw/132"]
[18,"小雪花","https://wx.qlogo.cn/mmopen/vi_32/gDCXlkJeaWVSdYCf4qjibD9gnVZszYxia0hKr8doEtNQHVuh61uCuzsOof45D1ldcqBzYXdyKcJEkOp3kFXmYqTg/132"]
[19,"翟梓潼","https://wx.qlogo.cn/mmopen/vi_32/Q0j4TwGTfTJEGYnc7XXYwDIrAia5jJ7SCwnChAVJDusL0IPqtt5ocknmu37HrmNNsnOSRr3tetuMfma2kMB9Tiag/132"]
[20,"芙蓉","https://wx.qlogo.cn/mmopen/vi_32/2WiaxYZbNdT5nN4829GPWqBU96q4ZoSU28icoAfVpVuxDPp5Qzrl36S0mewICVJGenxYm2SZ1IUvvCWibEaarnJhQ/132"]
[21,"王誉静","https://wx.qlogo.cn/mmopen/vi_32/DB0cHzwHX8mic4HZrcfRAibicD4r8dT0G0jib2YePdh50JbROb0xMIcMXPsiaozLqZjKXmvt7rZDfwZ2ia894IQ5VXnQ/132"]
[22,"丐帮帮主","https://wx.qlogo.cn/mmopen/vi_32/K7mGV5578STzhdibZnT1ia2Ah56Z53Vu02shMicoJoNwicmSSt1GI61icUNRZucmkm3oGT0kS8JjQAquQjiaOrLqVrqA/132"]
[23,"平平淡淡","https://wx.qlogo.cn/mmopen/vi_32/DYAIOgq83eoerxrkTFT16N5t6zVaXROiawnY4uTebREY6sfSWzFONbIDoZICA8FbiaPdHGHRWiakb8WhBAJTnoKvQ/132"]
[24,"慧娟","https://wx.qlogo.cn/mmopen/vi_32/Pp38S23awaMh0noJ1pjXibhoh7tkoscwKbsbnNYlia4cXUyTw4fEtiaJbJGrrUT9LyST49VzfFfMqS3xiaPmvEnK1Q/132"]
[25,"每天快乐","https://wx.qlogo.cn/mmopen/vi_32/r3Y5gOn4qzABzkgTpufMh7nqLGXsia46dCtiaJ84uziccRAl9Xj1EoefAGC974c3uCMaNic659Qob5AP1Qo19RVADA/132"]
[26,"喵了个汪","https://wx.qlogo.cn/mmopen/vi_32/y5eITvERZutibvYV3A4bDd9XpRelMfGQyIqbb9xJSP8CLYlOpYAjCTQSqf5hbQ3pZ0F7xBic9s2SRbPH03Hib0RLQ/132"]
[27,"呆橘@ ","https://wx.qlogo.cn/mmopen/vi_32/c5aj53Giblx0U0ydYskRBtGicuOnrCcIHibjHBDicjrvUBmrraVjUfcjMib5VDzeIg8w2BLgLlEYeapymKvM6FtuPJg/132"]
[28,"云淡风轻","https://wx.qlogo.cn/mmopen/vi_32/iceLyJs5NfcJTxv7hOZVlE8yzVpaLHsU6ETsfALlyxYSO4kVAvQicccBsOaEQYOpum4olO55e0AoPMkLoGRTA5yQ/132"]
[29,"慕蓉","https://wx.qlogo.cn/mmopen/vi_32/JDvTKt5l81mtFTicdVGIl7KDq8fcJjao7J0BatnK30dFFgoR12l0Ep9HdNudicLq2ZGiazQGyUH4joXsdKwyOqyDQ/132"]
[30,"黄均福","https://wx.qlogo.cn/mmopen/vi_32/c5aj53Giblx0U0ydYskRBtMBa30jiahc8cMzcHLywk1ghO4CPwPkE8cmHpqftibnKKjPfEqh9nROMnpN3nHkosHKA/132"]
[31,"开心每一天","https://wx.qlogo.cn/mmopen/vi_32/DYAIOgq83erGz7c15jHOLKT3E1jeiaianNx5ibLAn510E2DlXb1vKiaVTYlsZicDhzhK47JbIbicfPSOgKxplPVQ1qyg/132"]
[32,"随缘","https://wx.qlogo.cn/mmopen/vi_32/DYAIOgq83epM60ibucyUq9nbUI4GpFqR2BKrmaicYO4AYzPwQTafTBiaj0HuFQc4oSCZ5ibKGcGU9853VRvbLAG0Uw/132"]
[33,"法国迪曼姿","https://wx.qlogo.cn/mmopen/vi_32/DYAIOgq83eoEWLgaGJyeY5ibmKgIwLGeGibWrtDcMnJrPG2xVvXjDZDTBe01RA76d1hKevHj6yx5xFUV4Ww4d0KQ/132"]
[34,"笑口常开","https://wx.qlogo.cn/mmopen/vi_32/Q0j4TwGTfTI2urtGF2OwtmCkGLCLJgZWoU83aia8qmV55Elx6UwOLp2yYxWvfg81DI7OVw0ibfTqQF3Kgdz9TJZA/132"]
[35,"夏琼利","https://wx.qlogo.cn/mmopen/vi_32/g3WSPKVCMsbI7iaLFKQUAnANjsp7ibGUr3lRoFuxXs0SMkuVPvuDvbVPwic5MfopahOBPFKf0jCWMSRmxsrcPcWCw/132"]
[36,"雨晓雨","https://wx.qlogo.cn/mmopen/vi_32/sHPrgfrTWlV8HLA4ZHL8fhfWiahob7Y7S8K6cN6suIwRyCclEVvYclBzOzY4xDNjxicJKAILExHW2pQ7NhFcY2eQ/132"]
[37,"长青","https://wx.qlogo.cn/mmopen/vi_32/qqvrleiaY02CKf3zHniaG3DtbicF3FiaXOJeNxOMKLMMo735eRyEmoIDfEqOMsFdwYUQe8ibibZBeuxTnXwFicuOeU5Kg/132"]
[38,"张军慧","https://wx.qlogo.cn/mmopen/vi_32/PiajxSqBRaEKb5vkWO2tzcMS24iahdIHWhU2JEAX9DpavaYV5I2WKdxRGrgVr9ZvdWZ5jG7LR7bjZX0KwGibQ6oKg/132"]
[39,"章晨轩","https://wx.qlogo.cn/mmopen/vi_32/DgUF2cuZL3EoqOZ1oHYshakBrnnjSdUuZu4Ca8mBpAaQ9LjftYK92XKN0h5ZFVLKoqKr8bAx3pAHfa935NMUmQ/132"]
[40,"snmmer。怪兽","https://wx.qlogo.cn/mmopen/vi_32/ujl7W6qZAJZsQlQfAEsccFZwhc0AOkZSclUK1FmKicq0iccxPUjCQDY4Wq8u4TYicAe1Jgu6fgHDUB0AhWkDJRF7Q/132"]
[41,"李家鑫","https://wx.qlogo.cn/mmopen/vi_32/Q0j4TwGTfTJC2enzAlVibSeA0RBEbIqibtgyESn21DCicuJia7obeRmB2CvG2NuaMgEFD1UR9cl3D9OqL1h1biauCJg/132"]
[42,"极速酷客","https://wx.qlogo.cn/mmopen/vi_32/L6FwTSXq8zuiad1gWnpY7gmoFXFo78McmPQibmkwtdUAvNicuwsT7SruVNib5Bv3IIyPwGCK7f5Gk1wb0HQGHILqyw/132"]
[43,"明天会更好","https://wx.qlogo.cn/mmopen/vi_32/RRz01PuQW0Y7CfQAaiczrTq5E0ictbOA0iaZ6x5f23YItU5iaTicb5q1pEp9qtXE4LMiaWD798KAyrKTWZAWZWDAhu6Q/132"]
[44,"任艳利","https://wx.qlogo.cn/mmopen/vi_32/ibQqu57ibmNb7U7WTIzH1NexLDDvT0gBCUjGlHmYzIQibJACYibibaBY9V4loZ00VeHR4uj0G2BpD1zPgljOpSDV1fg/132"]
[45,"༄执࿆ྂのོ࿆༘念࿆ྂ࿐","https://wx.qlogo.cn/mmopen/vi_32/7JFw70ZcGkLeaPhpgibF5o6iciamhYg8iccmfzESGS2uuVwWVQxgUxXeeoNbnEHOFjPJI1aiaEwq5zjkQrMaxHZ6PVA/132"]
[46,"~_~","https://wx.qlogo.cn/mmopen/vi_32/Q0j4TwGTfTLZc3flGevTwRs55iaEicAXX4eD8kETCQktvAWib08mjhPyTGMqFNoET3hbCrEqlcWlBDwUDbwGdApBw/132"]
[47,"方樺","https://wx.qlogo.cn/mmopen/vi_32/guAazdraayUib2pmGYuxFGWtxB0qjtiaEPBZR4THB2o7iaY76aSqFrUlkn0RicEGVAL44nOicWMCsQegI14Eaxqic8ibg/132"]
[48,"HWL","https://wx.qlogo.cn/mmopen/vi_32/Q0j4TwGTfTLbUVNwPagBPV1s4Z9cmHXy8boSxh2IyQV0gdibKBlFz80eG9M2C2La1ROriatORQBqkRLcDvtgDvVQ/132"]
[49,"Helena","https://wx.qlogo.cn/mmopen/vi_32/Q0j4TwGTfTLricLSQB9ABYt7ZpSjUGEZnjibUJksT1ZW9QfKFkFVBELFEiclCOZiaNI1fqlMuKLia6kk2qXkUIUr45w/132"]
[50,"KiKi","https://wx.qlogo.cn/mmopen/vi_32/Q0j4TwGTfTIL9Ya8CTqogmTPm4qrjUK4NxGkGBngXDwbdUCj5Qekm2X2qXIDxTyw0nBKb0YSh4M1oib90cxGBAw/132"]
[51,"时光恋人 *","https://wx.qlogo.cn/mmopen/vi_32/4EJSPDt8Jbfl0eLNAMFWtP82KKsvlRXOdo4mWOialsuFWPdrNb8ibRZzsH4ClQhHwdJ3WwNrTN83DuZ4oy37duGA/132"]
[52,"Kitty","https://wx.qlogo.cn/mmopen/vi_32/pTD4R57a71HURm8ztwbjS8ODrtuHN9c9OMuVYoNjIcWdIrZo2e4fGVfOzlqD9yZ6wckVIIOcWLMoVIvzGyx20g/132"]
[53,"刘梦羽","https://wx.qlogo.cn/mmopen/vi_32/sUak1ndq38S0ewm0Q6w24Q8pJW9zMcuniaZ0h6rMQia53kNT1eqPwyuTau5WI7beC3eEiabFlOdtIRnOpK1u48xOw/132"]
[54,"陈新","https://wx.qlogo.cn/mmopen/vi_32/Q0j4TwGTfTIewmb34dbgjibG5j9AL6I6clXwTBOSGutkdROibiaXLRb4I8VfsILticoMRyVe63QBqaJF53XnrYiaQaA/132"]
[55,"雪维奶奶","https://wx.qlogo.cn/mmopen/vi_32/M1SGEgNicoHBrzfyb8eEjXBBfMEhSZdjJpsuhfibPmcXrqzUruwcJFq8SWMPcNmhozTvOOFpj3Jv04icoa6ecXoOg/132"]
[56,"美丽","https://wx.qlogo.cn/mmopen/vi_32/DYAIOgq83eo20WAdodiciaEoTexur5RCDBdt3DdfUnSqfGu6ely4pAEY2PCIlgia2z3nia3l3Wia2u3Jib4ib96PUL1aQ/132"]
[57,"尘世迷徒","https://wx.qlogo.cn/mmopen/vi_32/G0ia8Ls8oJGS47ajic0JODnUmPcKjSx7YFoOrcqITFS4zhLnUJxfgq3ibux109ic65ibjpuqeciblpYscXibTh6Wl4nmQ/132"]
[58,"怪兽","https://wx.qlogo.cn/mmopen/vi_32/DYAIOgq83eo63az3icEMzRYCSfyT8Ee4hbreCxd1jH3VkhrwKpAJhfLQjWA4yp3dTB0Y67ywTE6pZw7KUQUwx9w/132"]
[59,"以后的以后","https://wx.qlogo.cn/mmopen/vi_32/Q0j4TwGTfTKW2QWPqkA9GFym9hZJNcRg4PU3xorNwUfZKpqq0qrUS49DBoDV1MuHdYJ547zld4T8sxhrHaUia2A/132"]
[60,"lfgjyf","https://wx.qlogo.cn/mmopen/vi_32/diac1sJCEumSMYneFNcDICiaFH0jbGrwg6MLyo1mQnodY3WwUSQf8TeUmkPHE0PkDfIFHMBSl9FCBvHh4NZCMkHQ/132"]
[61,"看我的是我儿子","https://wx.qlogo.cn/mmopen/vi_32/vjBI6U2f8xib7dejJN50txH13ZoNSnGSOMUe0aI2ok1Ps77GnleBXElFfOuBeNV6UReN4xMwbZS26uMiaBDEeia1A/132"]
[62,"宋如意","https://wx.qlogo.cn/mmopen/vi_32/7h5GibZwWfgYxPnT0DQuuQxEPxa3mbwC1WQQ6w7OLUWGcGKG5tYVgsbbI16JbKoXNVyF57n1gc3gEMCtlvmn1AQ/132"]
[63,"有志者事竟成","https://wx.qlogo.cn/mmopen/vi_32/6PsX7ZDQAtrAnMnpR9Pd1R5aMfLtnyo5CHpXiaoXkZ87X3piaLRn5D4Z2ILslCORw77ficOF0bZDszyM506iaKvh4Q/132"]
[64,"绯火霁月","https://wx.qlogo.cn/mmopen/vi_32/AH3jfuk9iatc77sKOMIHdFzpxtAwcu2PN1BVlZmmazCoB8jY7Pq4anicvvlangfn7sqn4dOdKWpHicP2aDky1yeDA/132"]
[65,"唐升平13891546822","https://wx.qlogo.cn/mmopen/vi_32/vamXjfMJWHYJ5UywicNPicBsMF1q6bxNecgcr80QRYicqdQueDd2AWUASqUWOsicpfgM3SsaFmxo53iaThcUAbgFCfQ/132"]
[66,"黄邵琼(蛋品批发部)13970512826","https://wx.qlogo.cn/mmopen/vi_32/pJJpwhFRpXlcDqFN5oRgEPK3AOvHYdATnevRAFPY5n1Nv8jB0LKDianwKO9uLGxdJYQIVQ9pHjFibHg7CicIfxLsw/132"]
[67,"鸿彬","https://wx.qlogo.cn/mmopen/vi_32/kuRicCbWhUmgaibdky4SnO5vibl0uLXKMWFnoU9h4EMAmGWmytrNFgNI30IfWsoNOAS5rYp6r4cMJCrmgFo5UFTHg/132"]
[68,"陈莲","https://wx.qlogo.cn/mmopen/vi_32/266HjoUu8ywXkrA0AYsdjicUsG1QXrg7RuBx5BKficEib26QUdOgDZcyApHCYotumxueXMUAAeF7mXg73nzcBpzlg/132"]
[69,"苹果","https://wx.qlogo.cn/mmopen/vi_32/SrkmBnI2ztLUT288Zdn1DUjzicRSJ1g5eWp0ibvLtM9u4g9V9icLakcwg2ybgGHkLjO2cfTUGeDYr8bHxQJ0AhP6Q/132"]
[70,"A西晨外贸（商城西路66-2）","https://wx.qlogo.cn/mmopen/vi_32/ia3xLpVqFLMreic93xVeFr0ebcD8J7rngIwhIKSgKgqENJoxkR9iah61hSQTeYNg7JuicGkibGia6r4jur8o9HgsYNpQ/132"]
[71,"雨晨","https://wx.qlogo.cn/mmopen/vi_32/A4XhUDJpmLgJ20yHMMD0U8OhnBZpFnBlQjhKXFAWCgoAcpFgFFORcRIJFVm1wKg6xaUEobseiaIPt6p7vK3QASA/132"]
[72,"福祸相依","https://wx.qlogo.cn/mmopen/vi_32/ug640YEdO0HJtI27icuGJxcmbHibUeHEy68VWlpkMrDZAcgPYm2K3piaCQxglUJqK1qvLJpGhht5QyNQcmewXdJpA/132"]
[73,"瞿业花","https://wx.qlogo.cn/mmopen/vi_32/DYAIOgq83erTUyiaPVlneAGHAYKbtSCAAuVfMvOeR0ZibgFxduuEYX5BX9W9Ew5GGS8kvOFtp2kMJKQr1RxZrQXw/132"]
[74,"落とし","https://wx.qlogo.cn/mmopen/vi_32/DYAIOgq83eoJLhZG7julLia7tpTAzPArhwEPLyeniaWsQf9AOZhclAevCAYKXgJicBL3A2EdqUSxBTDghJ2Ox7aicw/132"]
[75,"杰家水该规定","https://wx.qlogo.cn/mmopen/vi_32/DYAIOgq83eoFGgqYYNDpFK3QiaDxyIVludJGMb0YactaNCvqVVIDIYibZmicq4I7msB0qekCM2TkVRfbLQDeHvX2w/132"]
[76,"沫忆失忆","https://wx.qlogo.cn/mmopen/vi_32/OSCUoy3qg7Zb34qibIyCxjbYqTj7gCKu8Ut0GOAp20HcIEbvx5RrKQ8RRCaymWKz8ytTmm71M9dHC0BUNiaPyk0Q/132"]
[77,"猫街后巷少女","https://wx.qlogo.cn/mmopen/vi_32/lQYVM0hVD26J5vca2U94knT9Md3ELT5hakt7l8icxrlbbUjMRWm52GILUySm8fyDLGRBnpLwWceXXthKsH9K3SQ/132"]
[78,"天天","https://wx.qlogo.cn/mmopen/vi_32/Q0j4TwGTfTLA5gXCjkk8N9iaoaoaXOM2ia3Bl6xzKDTibic4GzSwjqXD7dKIia60fTuDwEr5N9yGE0Cldcy3MC5AxoA/132"]
[79,"范召福","https://wx.qlogo.cn/mmopen/vi_32/ia0sLzibiam1adnuM058O6HiamagI6WMQ6bMVLesibJp3pdGw0D5jOrKIWicKcbIicCX38IlbGIRibbzsfXzzxIlyEKibyg/132"]
[80,"WVLLog","https://wx.qlogo.cn/mmopen/vi_32/CJAhmnvaibdbl4XOamLQcQNwqEycicTe4y2LicJc0kOxl76HEKuJJqAXjicw4te4ISVbCJj6vFEWqZADGoK6RwBcaw/132"]
[81,"W","https://wx.qlogo.cn/mmopen/vi_32/Q0j4TwGTfTLTsoHy6ntjFbL41BgRDNEQ2keGRyuR7oD0BMlkN3djSSlacuFwCibZCT46dFOOiccJ7LznicPHlT3lA/132"]
[82,"Super、man","https://wx.qlogo.cn/mmopen/vi_32/Q0j4TwGTfTKTibjBc8HvSsOZhynQrREBEPicjwNZY7znshhuZjD9VHwS9TgVkibgriblicOn9h6icmAxNKoRlOuIM0eA/132"]
[83,"困于晚星i.","https://wx.qlogo.cn/mmopen/vi_32/2JGP8CBXQxIicskh2DKiaqE7ViaYQRElqiaiaaiaJKIt8PXccea7FiakJQDQtVCg6wAjxDTgiceCzSZnosVAUAxVibnJMnA/132"]
[84,"刘姐","https://wx.qlogo.cn/mmopen/vi_32/UvGfEJTIPEo9qZfsEwRytFrWkO5nibjloo9Cw6aAyiaHd2ib7VZVcVmGiafDqzE5wbtRIvOhQdsyEA330A8d3VHJkw/132"]
[85,"爱拼才会赢","https://wx.qlogo.cn/mmopen/vi_32/EP17340Zsaicxo3mD8XpCicrjmSRlhgpXHqDcLSONRHgia7osicibqu97ffgdY6n7fW1mYfsOXArLNLOk2vxOQ1gtCg/132"]
[86,"薇拉","https://wx.qlogo.cn/mmopen/vi_32/Q0j4TwGTfTKd0LPDu217v2nA9wUC7icZok0DzYag8caiaLNEBOFgsywgdNAQTAxo1xso0Meom58X5KBs1gzr6AQQ/132"]
[87,"晨光","https://wx.qlogo.cn/mmopen/vi_32/bVfYIeeYhiatd8YGsn63RZ2OZJyfZfBdCps4UVMsziaHZAqxop4HZSibhVXnI7qUpJNfoNjwOeuLoibYwr3iaElI4IQ/132"]
[88,"忙忙碌碌","https://wx.qlogo.cn/mmopen/vi_32/Dmc5xial2OBcH1LEomVLw3KjTgib8hZEd0YYwuTdvVqOSaK7unNtnic9gAfhficGaYEPxhianEnknXFb6Q0Uqr7ZC6w/132"]
[89,"飞狂腾达。","https://wx.qlogo.cn/mmopen/vi_32/Q0j4TwGTfTKUOgwcyqfbqfrLBRrK9cx26XOIXwHhf6BX2YZvt1BpOJw2k7WnR7So3IKJgIN6ickaCsmsKDiavYyQ/132"]
[90,"姜书妈妈","https://wx.qlogo.cn/mmopen/vi_32/BAZGZmbFT4WgCVLFemxqd3wEFyOme9XeuKlGZjiba4dryU70TyQQIbz1APgCDwelP1YtPYHgIAbPcP4AV9ePEZA/132"]
[91,"独来独往独者","https://wx.qlogo.cn/mmopen/vi_32/nHTeBrP98wwIUf2wb2NrguaAbjNcxJJN94ZLJkgke5gN6RZ3r5LbO8oyYaSGI3m50OqGkgrBLL04wibvoWn20Eg/132"]
[92,"烟点燃了","https://wx.qlogo.cn/mmopen/vi_32/lkKMZTVm53cg5kVDd7FJLPhoic9zvCgSAQNKYVsDdvYxY9wibtvdzFtJeial9SeA1IfV9mL9cnI5iciaibjbj0tFk3cA/132"]
[93,"Ke's","https://wx.qlogo.cn/mmopen/vi_32/aiaqDCkqEoDCoDuLL8FicynUGOyjhLbgWoDaV35bUibXpskBrcQTPOFW4HZdTawtg8wx1JEBLRtuggvASkzAxkLKg/132"]
[94,"乖宝2号","https://wx.qlogo.cn/mmopen/vi_32/A6HnsicWX5AqTPibokqX0mvwdxdDRicWhuCGUY0SibRjicTg1v0Bgib47DFTY9nib48bicYyib9YlgU8CfeUUjlO2ch1pVQ/132"]
[95,"周华","https://wx.qlogo.cn/mmopen/vi_32/Q0j4TwGTfTJZtIQ1Ql7qyrIicTRDxy5a8FetCicXx7vSwhSboGfyG0lIfYk3jHaI3NW48yicF0vlsdCibjs2m5ee4Q/132"]
[96,"Vincent","https://wx.qlogo.cn/mmopen/vi_32/3Tw4kg2zAWPxgoFpNDhIbEnskG4gbuOpDMJU5zCwZp6iacs5JeL8tAHtLfzDnBJ67rkZXp3A9jMX6Ft8t54cnNA/132"]
[97,"CZH-Blank","https://wx.qlogo.cn/mmopen/vi_32/Q0j4TwGTfTJZe547nyscLCXpvO3tibpzdT3aJRTyIkRDtffIibM4fsnEQQYaJy4oLCFRpzacdoriborUP1uxPzlog/132"]
[98,"蜡笔没有小新","https://wx.qlogo.cn/mmopen/vi_32/aASBQoxCmhXZOTicmdQ4PMILyJIrMPGJEiaS3LicCFl64hvobvyNicex9vcgRSzsWZ5j2ZY5kCVTRh955VCQjH9ZQQ/132"]
[99,"弱小易","https://wx.qlogo.cn/mmopen/vi_32/kuSVbxlHNVCwWNGv29iagfKEtwZMib3e5ibgP1oErwvgWylUG302CJmmvFRLLQ2JdUv7RtyZgVkPbwc4U4tcluG6Q/132"]
[100,"悲伤的人","https://wx.qlogo.cn/mmopen/vi_32/Q0j4TwGTfTL8TXGtFLpibm5wr82qdmYIU9YYzlNXaubkPU3mjJtyaJxmbZDNfOmrLu2RMQrRIXNTic74hRRO7G0w/132"]
[101,"仟'","https://wx.qlogo.cn/mmopen/vi_32/RKtcB9ErzJibd73gOXibhiar0SIWLRbrWzIUesXb9JVwgXGxQVFcpvOS1gtfq4dVz8q87Md6kkTL1RvgFnD779s1A/132"]
[102,"黎瑶","https://wx.qlogo.cn/mmopen/vi_32/psbF5siazCGGLiaPBgVFlqmv7z7dwC794ibZUaqWxrVgvp4BBW52Lp8sJb1wF6l224oVxy76ZIDdNvef6ejuycjLA/132"]
[103,"牛哥","https://wx.qlogo.cn/mmopen/vi_32/Q0j4TwGTfTLUUBOpIF0EYSVIZCxlfoqkAUKxPs2r3eVQxhaI4yAYsyPEnSfFDB2QQ33ukNlyxOU9LoSSXGhvAw/132"]
[104,"灏跃","https://wx.qlogo.cn/mmopen/vi_32/Q0j4TwGTfTL07ae6JcItQVGRb6lJFlwkBGbV19tD150gvE6NJNK0TV7ATDNWbg1YyDkGyJ3OBrghoBruXTYiaPg/132"]
[105,"chen","https://wx.qlogo.cn/mmopen/vi_32/dZEicicyiaa7O80ro50wTooc8CzaR1cUtsGS8OTxTmlkK3oQ7XObut72ZT2nF7bRaFpiaOAn8GxzsByDvFDvmCJSibA/132"]
[106,"Lᵒᵛᵉᵧₒᵤ初见™","https://wx.qlogo.cn/mmopen/vi_32/9ibzJukNVYAMtsr35Oy8JLp36JqphxK5KveDJFhRAlce1RMDPzdQ2M8B0oPMBM7JUALFE2u2XRZ6G1JccCxU8rw/132"]
[107,"映BB的梓聪","https://wx.qlogo.cn/mmopen/vi_32/Q0j4TwGTfTIBtbDyeHLgVV67RqRnPQ8kf1QKSbZRR0D6s5P7D6OLdhaxdYvdTS9xWLgialXjVDu5nXRsFwSkUHA/132"]
[108,"妄","https://wx.qlogo.cn/mmopen/vi_32/DYAIOgq83er4J496yzFbZaxGzH5QsjspzcXo1wKIABcNYBzgpsiaF81G4yEnrrbic5sGulNgW2QiaBSibfsMowLgkA/132"]
[109,"胡黎","https://wx.qlogo.cn/mmopen/vi_32/Q0j4TwGTfTLRYQAxmUvXNtta7VSYoRopS8oBZIAFoTcsePHfk6J06egrAKSVYRKloZEIvhjvoraWqdothk0ILw/132"]
[110,"あ宣泄 2Amor","https://wx.qlogo.cn/mmopen/vi_32/RgcsvhKTjnmcANsWCib8PPE4faTl89pG89jQWwykR1TA8HwGQtF2eukrJPdiaA9GDXOSIw63D62161libvibRviassg/132"]
[111,"残ァ影","https://wx.qlogo.cn/mmopen/vi_32/Q0j4TwGTfTJRnGIYuVvAsMibVZkUaN65dX1qbtXjm3XkGo61ibicSrvzBOgJnRaicjAXoq10XXccTjeIPjj7dah7PA/132"]
[112,"蔡夫人.","https://wx.qlogo.cn/mmopen/vi_32/icqWOGDtxDr4f5Mb0Serictf4dx3NaH4a40JdIMIA5jf13m7MvncNYpHk805SFQcLbsyRWqibHCc4MDIWNDvHOiaPQ/132"]
[113,"Jay Ke","https://wx.qlogo.cn/mmopen/vi_32/Q0j4TwGTfTLIG7pZ3QicIia0IP2yNmPofgFA6ZY5rtyV2MWPrdEvhKcz8ic2icbnKXhyVBvphTAUGiagScEQnv3wtkA/132"]
[114,"黄杰","https://wx.qlogo.cn/mmopen/vi_32/99U6LEL8nPNjrNLYic7YjnX720111Eyw8bxBznpEd5JOV6CvjLnbPyDf25iafpV2vNxIKXBkSeibcI3888Q69Sj5g/132"]
[115,"心比扎软i","https://wx.qlogo.cn/mmopen/vi_32/icSp9XzP7vvNU8TyuKR25PKq8tQn734MrXrsyL36gZ6dJ1IYIMOPBLPty2J3OJ6sTQibffT9EJibV1xWGTF7XBIBw/132"]
[116,"金树","https://wx.qlogo.cn/mmopen/vi_32/1vpQ8TxE5MXp4dgQE7kU3U59TnBCtv6xea2cGFYPQslBj9kyITh3n5sicaqXk5doCJhA66ZchZLuRbyF4TM6iaZw/132"]
[117,"风","https://wx.qlogo.cn/mmopen/vi_32/2WiaxYZbNdT5nN4829GPWqG3pLeYSzmLJUdTtWHZ7m85tH33ltQodgANZTmQicHtr1Kz0XBzBU2xdwhlOsIcawxA/132"]
[118,"雅轩","https://wx.qlogo.cn/mmopen/vi_32/mNCCyibfZicjag2gfVfL8gphnEZpRK5bwxXMZ8QFGIlKVkptmzicibWQQO0dwlHU2SyCuucSAae0UIhrO9icwTniaDTQ/132"]
[119,"肆","https://wx.qlogo.cn/mmopen/vi_32/Q0j4TwGTfTJia8B5oQlZTPWThWAOlWbdibbiaia7ZianARCjYr7pBzyCZssKGPAmOVUpcp4NribwFbWrFXIf8aMibT1NA/132"]
[120,"姚芳","https://wx.qlogo.cn/mmopen/vi_32/icyS9pLR2tg1l450SXvPcPEmf0EekDGXpRUPTHQK3hjkZXmtldXxw0OaDqtnK1icPNHBAoTzlHHZIyia2e8AcyF0w/132"]
[121,"徐淑霞","https://wx.qlogo.cn/mmopen/vi_32/yAibHerBFSdOZVmmbwDAibklNzB9icRXNmibiaEDDRVuCL9ia63vpRu2aXDAq07fF9d61E024fGILiaYgIROiaNUHcFBRw/132"]
[122,"小财迷","https://wx.qlogo.cn/mmopen/vi_32/Q0j4TwGTfTKIfHQjDm1sLq46fdBpdE026GGLezjCmjoVPoUIFkFC7OyfuAMbflytmakOf8qBkQwrSWwupicEZ4w/132"]
[123,"確認過眼神，我遇見對的人","https://wx.qlogo.cn/mmopen/vi_32/6xbxrvlRPlTibAX2LiatuW8wJU5CrCJiaCkawWkmqkcuYbtkW42y1ClFuqfbeMIXfYiarzVPN0hse6ZXKib2ScbQn4w/132"]
[124,"清橙","https://wx.qlogo.cn/mmopen/vi_32/K66Bia7rda3LUZE3uV1dAWojg9ylHXbXrHbdyXEWiaN0z1fT49m8YzcjROUro0CVpfHxmmrfzsrLXUj0OAYlkxAg/132"]
[125,"？？？","https://wx.qlogo.cn/mmopen/vi_32/QqQDcmw0yDasPzFrzcS0Qjreib0ns2zO5XCozEPoGibmwoRpcuQ6Vk4Xp4q72icEIIAEEgicuJk6gPfhrS8QkoaBjQ/132"]
[126,"靳梦晴","https://wx.qlogo.cn/mmopen/vi_32/kuSVbxlHNVCwWNGv29iagfGvicIpmxicToXicJPicxkUHcQr3AmKVO05pD9SktzDa7cicz1MkawTXCbvHHcsFalwxK9A/132"]
[127,"祖儿","https://wx.qlogo.cn/mmopen/vi_32/ncVh1uLZQTaHojlTNNLcGUzYpwmXFFlKBMAwSAEkvbLdM0TeuXhuQ7DXUrdEspvuKWgA5cA5Wz8xWpOEz2M2lw/132"]
[128,"李奇骏","https://wx.qlogo.cn/mmopen/vi_32/0Fblw9xEBph8qLg6Nqj4reldaGCorLI8BjibAxXibMJuJU6HpjVMh9iccQSVwrKK3aOzAicINIRibUr3ouG05SF4ISA/132"]
[129,"颜铭","https://wx.qlogo.cn/mmopen/vi_32/Q0j4TwGTfTKApG4aicW58308iaWxEgchJjLRt4bFWDynAGI2J13qAeKIIWSWQRtQ4vficibcac1iczzIDUfhPmyCkyQ/132"]
[130,"沐沐","https://wx.qlogo.cn/mmopen/vi_32/DYAIOgq83eo1oWKZdejQYqgLlCRpfwa7vZicVL7giccGUbn1Tac6Tw9fYqmIibzSOJqZrRwDcZac9Q3Mfa5YkbwAQ/132"]
[131,"在水一方","https://wx.qlogo.cn/mmopen/vi_32/KvIK1VGbVMAHvTX33FfbN7gNXXoSsrlHOuTpbw6wlEa6Q3uhjibtRZH1hBqWzD3nW99lL5Aqwed8EX37eUk6uEQ/132"]
[132,"薛甜华","https://wx.qlogo.cn/mmopen/vi_32/Q0j4TwGTfTJwGOsc6vTyqFYJX03HYO1JBFHEuKiarZ3uibYcl81vnXxZA360ZBdZqUlTA6hRHicic01ZIbicwiaibV5cw/132"]
[133,"蓝琪潇湘","https://wx.qlogo.cn/mmopen/vi_32/3KBRk6M04InEK3vmeib7O0F4iaXjkCErLw6bPQlic3Pj3z2gnSc0dNAEAL0Fwiac5PApPE3xM2XWredN1qljjDMA8w/132"]
[134,"刘欣英","https://wx.qlogo.cn/mmopen/vi_32/Xg5W3Qmgbrria1SpDnd0fxaSHWjArc1alUQezHnFO5v0r23BMW9hvP0hbuatpHkMwZq0PpInG34DMGBfpicUCRnQ/132"]
[135,"薛丁予","https://wx.qlogo.cn/mmopen/vi_32/UWP0Af4z3ic1gEAodt3G2INWtWYKia8EYegZGGrktkuu06285zr6aM7prAtK0WmWjgXEicUYS9ib4EtyQZNCxWe7Ow/132"]
[136,"熟悉的味道","https://wx.qlogo.cn/mmopen/vi_32/ml7UFexwrQ3zK2rE6UdJlXJkVFiat5T2GYLfkVMmjCniaShceekPcuqEIgPPec1I8SgicFYUHjD2QZCvCPBozVOPA/132"]
[137,"平凡的世界","https://wx.qlogo.cn/mmopen/vi_32/DYAIOgq83epnSiabY6jw4SUvBkHqOm1tViaib4I7wcSEGc0Z9kHyN5gevxGXYkkLJKic2VkTnfSFgkImRYcOLPwnKg/132"]
[138,"皮卡丘","https://wx.qlogo.cn/mmopen/vi_32/8jjvtgqmuCBibKcj6kTiaRib0Krp9qq2sps2C273libX4E8F01qVibmmwH1nWCwDOT4ofRFnfWRIKteuO5WCFZvWia2Q/132"]
[139,"Z  先生","https://wx.qlogo.cn/mmopen/vi_32/xQiaQib7kn48XQDeYoPicucln8JGgv89wHuY0Vlll1zHSkBpaSgo7DLDOONPcr60oeysfkraou61GdiaumjNq9SNeQ/132"]
[140,"可爱人生","https://wx.qlogo.cn/mmopen/vi_32/9aqxseO00YYb1yzuSSFufjlmUdNiaOlLYmJYrG7E54d0MLgzNkwXuaaqPibu88O0yqQ7bFV4TmoeJZ9YRpYyK6LQ/132"]
[141,"小邓","https://wx.qlogo.cn/mmopen/vi_32/SVD2wKKxDXzFnicbZ03EQ1YxpGsI4XEiaZWtWwpRsYqBO1rEE9RKDicoQvw9ibOmyaDpcOnP5XcrdKDpictwasg9eSw/132"]
[142,"何二哥","https://wx.qlogo.cn/mmopen/vi_32/5WUROQOnAmmTiaFhQkB2q8keNg6MUgtvInlXbAJrcUaiarJx0p6lqlXzzyolGb6D9LlMlVSFeZibcB4KVwh7ZcibJw/132"]
[143,"G","https://wx.qlogo.cn/mmopen/vi_32/Q0j4TwGTfTKTAKspiaW6t3E5ibQrgFyjHOzbwv90NbFbZbeKiaQRebn3B43ibeRnWibNxnJ8KXOWzKrSdUicSGNx6mVQ/132"]
[144,"幸福","https://wx.qlogo.cn/mmopen/vi_32/WvIXwFzyNudsQcNm7pplLWeVyPLZHyicfbO3UvGTeGTXLr2VBpicziaPz4C1pywwW17oGGAavSu4HX1H6ZNWhdafQ/132"]
[145,"刘淑华","https://wx.qlogo.cn/mmopen/vi_32/5dzRO2gcrx2QwrZZsRM4zyibf4VEEtHYGpvNakEdqytr2lWXsZNIfYFjSQJcDhAAm3fE5eJ39icGXCYBASs3Utdg/132"]
[146,"那个帅小伙","https://wx.qlogo.cn/mmopen/vi_32/ve8CgVv7RMogdrLVAnv7rEMv0YIbpvQvD1aheBeiclMk8CibymUZuzVTuTewXusdbLCYzsMuPfx6XPYdsMIKbsVw/132"]
[147,"周素媛","https://wx.qlogo.cn/mmopen/vi_32/Q0j4TwGTfTLKcoXTBrmOH6y0JcXjsGLKJhUm82HzxsNNCKqiaribSVhJudrrIiadPXqoQ8PLLOZdO8XA0cGnROCoQ/132"]
[148,"ʚ怀里卿^ɞ","https://wx.qlogo.cn/mmopen/vi_32/nW94KOPUeZTcdlF67CKMEiaZaWdeG2oUGKybOZM6KcgFdrpvGsLjiaae9LKwTGkb4ibMq3LUhgMSiaJUSVdrYZyXqQ/132"]
[149,"任佳慧","https://wx.qlogo.cn/mmopen/vi_32/BqCPu9GVaq0ULNib6gkjPbbsSzVok5Ogn7nK1xs2pzicOFEbfiac2DPr5xpX1XdNgDwFZVO4MeiaiaLajRyr6J1eMSw/132"]
[150,"明天会好ma？","https://wx.qlogo.cn/mmopen/vi_32/ia8TUVicEQ6tUKWYnFgHYg06UEicA70FN9am8ibJsfG0NoWouekMziaGzzzIHWeMILibC50LYnqPJvd2oEF3g4J2xrpQ/132"]
[151,"友友","https://wx.qlogo.cn/mmopen/vi_32/6LiaW3oTSlibOwb4WkBAX3bb2O6qVsMN5847ibjvRBQ3cypvrEic3NeZd9aCmicvEwCBubxic1R3vKUqzB1jKicC29DrQ/132"]
[152,"张瀚烯","https://wx.qlogo.cn/mmopen/vi_32/qcRuicwW9GnEdU6TpK6Yzibggs3T33PqenicdWVCpuJicYvu8P9ahiaLYjkUVrvNgm9sCWiaMzYeqaTfiarMQgibiaRgDjw/132"]
[153,"不吃牛蛙的蛙星人","https://wx.qlogo.cn/mmopen/vi_32/OiaLEmpN8wYylKpUUc7g97CmvE5CY3awyAKexQRFJ0qBpmRADltz5QYWNSnNGwBUiaodUz1GUvOUJDMOsOQVklJw/132"]
[154,"茹儿","https://wx.qlogo.cn/mmopen/vi_32/Q0j4TwGTfTLBia25PUps4Tfl4LibRQdxRMhvYaXw5qsG5crxuaTI036DiaKYveRicgS8iaktYtunicDdEfiaAfzgapiabw/132"]
[155,"梁家骏妈妈（韩杰）","https://wx.qlogo.cn/mmopen/vi_32/Q0j4TwGTfTI9DfV65IEqeczGBficcwV222ePKh5QDVOprho5R0BkeqEMTaVyjPGrWUFHuGEQDB8B3h4ibFUD8ia4A/132"]
[156,"小鑫鑫","https://wx.qlogo.cn/mmopen/vi_32/05tPoOriam2XuibSfZG3ibk8cCV4qYpYHOMAXQbiaLq8EkTqr9xroKcP6xI1MU3FEAOUkbuDicG9DO5LwibLRQk9KAUA/132"]
[157,"带刺的玫瑰","https://wx.qlogo.cn/mmopen/vi_32/PpFLIPhXcATIhK1JxlBFYBic1lhdAvmT5Kj589A6dEjMiaOGgWOWQbiaQdy8x9ic3HIfUedAXoe3Xj8rl8zHyE45tQ/132"]
[158,"刘欣然","https://wx.qlogo.cn/mmopen/vi_32/Q0j4TwGTfTJPW6VrlXsaWiaDOXg8A5qfBgxIRDHgYpUE6p7oMzz4rOicJpytWFwGweqqPZyNPRnnUpvziaqRMUAuw/132"]
[159,"赖恒春","https://wx.qlogo.cn/mmopen/vi_32/DYAIOgq83eowsFricd6iaEEfBmeCnecq1ziaDvUFiaaQBlZcGbU0fKiaHXyMiaQu41icWwQ1LmgW0qfdJ3K4qziacN8M5Q/132"]
[160,"败给喜欢.","https://wx.qlogo.cn/mmopen/vi_32/icyianiaCq6lUHRsvgPicHCMK7Che3qtvuX6c8mrf69KsoQTOOGhAJiceXP8ibiaASkCUFWMfKNRhYwCooqP7HicOZBkbg/132"]
[161,"李想","https://wx.qlogo.cn/mmopen/vi_32/ssz4Ed56IVQwBrU85wdK0hQWLHHUzibS1DmdcbvFXd6DnoEUpnic1MdYbibpsCYkk4VKUsXG3ZVVhcSaXbps1QZhg/132"]
[162,"玖玖","https://wx.qlogo.cn/mmopen/vi_32/ibCCKqG6SvmbAbiaCMIqxIrJCLYCGEZVibmuaxAC8S2E93NjQfWhQaMRYia04tw6d0rLbyPVyKw5CVshnr80hwpXww/132"]
[163,"谭昊文","https://wx.qlogo.cn/mmopen/vi_32/0ZIguuJjvM3ajdnibXAB8lHialpjmstLKmDhd8FUJiaicuYVYhuiafTibpjZib66OVdHd0cDqzdO0lUDq1v7PfnUCDpibA/132"]
[164,"安达","https://wx.qlogo.cn/mmopen/vi_32/et5ASw5vKct9MckSJ0RLeG8JV8ickkiceLsfm2YkD8j0rec7ANFUCTyakP4caYKsVCeVrHY2MyGurViabQLnj8iaMg/132"]
[165,"樱菲雪兰","https://wx.qlogo.cn/mmopen/vi_32/olpJXPpXGUoAhSDiaTfJRG5e4leLKmpJtm5huFicpa4VsHcQobTBt5npYD97yu9yQiccs1Nic5fwD1cOCdJYRQhLcQ/132"]
[166,"九月鹰飞","https://wx.qlogo.cn/mmopen/vi_32/Q0j4TwGTfTKTXzqsgAaBOcr0wic0mQ0jBFTCVJZWkabMhMeqzeibSfAsjYpUgicHzxrGrc0C9H5PbpC1RstQ9UFTA/132"]
[167,"秋","https://wx.qlogo.cn/mmopen/vi_32/EicwOUicrbDa1MVdYfJAuSJ75fLBhhMy8HxB2o8sX9KPyS0PYzrNdDVHk4Fmd4ZAETvNZTgfdkmCwsgOqSDElxnQ/132"]
[168,"皮卡丘","https://wx.qlogo.cn/mmopen/vi_32/8NWA9dnWI7J4ibia8o8U92SpwZrC8Xxhr3LKsmxokibuhs9fuJym4vN34jzJK763LkmWyENUajqXD33GYCKadNgibg/132"]
[169,"霸气的小可爱","https://wx.qlogo.cn/mmopen/vi_32/1t03lPHxpPX2P38WXNl8gn4A4ASAILg0NghMrPwTzuliaBvWu5Ss58S2elLZJ2BAUMhcKWz2zTwKOMr4NfZgFNw/132"]
[170,"A盛气玲人","https://wx.qlogo.cn/mmopen/vi_32/RvPgNhtYSdvZPuXnnEoovib4oOOs1IIAWPaxdT4dwrWxQphSkjyibsw24ApcQ7pPZEPHia0Brcw7LDpDibMubZpeKg/132"]
[171,"秋天","https://wx.qlogo.cn/mmopen/vi_32/YB6GLCWdZLgOju1nMW2Pqv78590EFqReEVXtdkTG4gvyN9yljuGE5NemgD3VSBpxsgXca8hpichOGjR9ibJMc10A/132"]
[172,"诺诺","https://wx.qlogo.cn/mmopen/vi_32/bwgCiavMDAYFBwB6ANDFdmUUSKRicYN8ria5UOEYzOYnTuYSu1UW1EibVcmDez2miafDiazxiae6gNO2AtVb9nNuRyxPQ/132"]
[173,"张乃文","https://wx.qlogo.cn/mmopen/vi_32/Q0j4TwGTfTJVIW7ujaUlcLlaiaFzWWFRq0Ayj8Vh5C4LhYhTyKxuJZHMY4oqvAZlpQN768ekz4ST6IbicV4t3x3w/132"]
[174,"唐汇欣","https://wx.qlogo.cn/mmopen/vi_32/6ZLPGd1MELg1doXv2DBxqUJLsaTicLgpZjyicG8Qsv7QLAbqic2GOgmIbN0DL1AWq6YYjOIV4WhbiaktXO75RlC2ng/132"]
[175,"漫天飞雪","https://wx.qlogo.cn/mmopen/vi_32/ibH2YHAm5zwVxicoGO4LYeiaGo1MXUV5dFFW6xl0grxLmnJ6wFNdofkELewaJW4XETCQZ5OrHDBGcvBVRHaRu0ejQ/132"]
[176,"香君","https://wx.qlogo.cn/mmopen/vi_32/S7yXPuex0O9t2YzETuLOXJ9Gh9f8fPVmmOLtm6Vaw48kE1wfBwibVMcxu3dPwxiaTWhQASdI6qBJibicPK7I42ibJPA/132"]
[177,"秀丽","https://wx.qlogo.cn/mmopen/vi_32/C0kDYJKfFx72St5CzXqfJvZ4j7XENPd12PReU8rRPlLkUSLgicjQsdeFpHNYIfQlH2ZIjJ8JcU7TJ6tGdibFqMSg/132"]
[178,"心中有你","https://wx.qlogo.cn/mmopen/vi_32/hfsZKnTl12uVm66iaxrqvwmKMhEibgh2o1ibX4pHzEazadmBGZSRVY29FybGslVlib4bQvcaXmP1VgV0xwzQUsnuyw/132"]
[179,"牛棚","https://wx.qlogo.cn/mmopen/vi_32/4IY0ETxJstM2FVn8EibOPOpNh6K9qWmpvBGS8yZqcich9AB4AygQXwypHj360CqwY9lIMPuTsm3ibzE6752DDWhfQ/132"]
[180,"张文荟","https://wx.qlogo.cn/mmopen/vi_32/Q0j4TwGTfTL7rUex45O7iao3C9pFCW2qH6eeLUdkIuGdyLah6apuxhgPD2RhRC2RyuRic1UNf8uKhpt9EUNKh5Ag/132"]
[181,"纸短情长啊","https://wx.qlogo.cn/mmopen/vi_32/Q7yX2f6FnPiaNaicqEiahkmSy0icUorUZKenxdYWAuxJmCtLktyvUUJkOian2QkyVLkspezMohtmibyxTdkf2HwVg65A/132"]
[182,"猪猪女孩～悦小悦","https://wx.qlogo.cn/mmopen/vi_32/j0gBKF8EKfSeLgdl9EfianVyCE4scMDAXoU4XwLEEQdVdZWib3yUJ385KGSS9af15icgCcJapxXm6TJcajAbXBQ2Q/132"]
[183,"明天会更好","https://wx.qlogo.cn/mmopen/vi_32/Q0j4TwGTfTJxme9b0YhF8a8WgSyic9kbOsrNWzwSxWVeNWkZ8vgcH0HbiczGjKDxcz2OOezXbsY1dkuurichMz0wA/132"]
[184,"开心就好","https://wx.qlogo.cn/mmopen/vi_32/LPDRibL8huynndd1jm9icmtH2EcxuToAicaD8NWhlMt8dvkBI6y24P9KwqNjZmvAdZ5jFnhSNQT5qj0VS0I65kcsA/132"]
[185,"？？？","https://wx.qlogo.cn/mmopen/vi_32/Q0j4TwGTfTJS7SgA9eLM4zXyVrJ3KwgbbWqD7U0bnqO9ibFwC3hA8Ks9I34QDVn0YzibrEqeyLCfQnlk9ppKxicpw/132"]
[186,"岁月如风","https://wx.qlogo.cn/mmopen/vi_32/Q0j4TwGTfTIYarb7iasfgpkV13DqQHsNS9tgdlW1GiawWkzZjvb3W170dXKNxkjkzQMtV8EdBYC1YF1F8Qphkrlw/132"]
[187,"清眏","https://wx.qlogo.cn/mmopen/vi_32/DYAIOgq83eqJQGyiaXfDwibxWNzC5Ubo5icJW9Qjniak9QEWeebIog0PU9zWiaMAPqVRAP3ll1LtMytYXcCGzOkyjLA/132"]
[188,"A菁菁","https://wx.qlogo.cn/mmopen/vi_32/DYAIOgq83erDsVT7EaibEQ6eyhvicSxoaH2AfQIliarYvDyXbZasiaW13cAc6mGaAb9AjtE2LY9SEXyPVTeg1gTj5g/132"]
[189,"昔   幼","https://wx.qlogo.cn/mmopen/vi_32/sWkqsrFYWZEJc4D9Vls2QcG95ZcW2MfibgzH1zE6V05ml24kSu8CJFkD1IkuhTKh1fkpUjkTq2GojNwEcOu6Gqw/132"]
[190,"Dim","https://wx.qlogo.cn/mmopen/vi_32/kFRTXJibeYcSCKFGADtSic7z82JBGHzGGdRleUc4jVbPgriaey5rh7AhP5HT4ynTib8YZsAjAvo5cM16TZSq2Dy3yg/132"]
[191,"少年加油","https://wx.qlogo.cn/mmopen/vi_32/KvgZfpV3TNzqibbUlFkUAKUcYYZhaXiaQxsdl7FCf1nm4cjkqZh68ibdM8b9CKvQy57aqgHc4q1WJicow5cdmOWNTQ/132"]
[192,"信仰","https://wx.qlogo.cn/mmopen/vi_32/hrRcmEbHvEic0Exu1z8d5LQw2FHNmPExDjyricq33yrcycMibpSSzW7U16fNQADLR0FyDwreRgDZq1wibMKsYqsG6Q/132"]
[193,"Fairy","https://wx.qlogo.cn/mmopen/vi_32/kxNDciatq6OlJeaJDiaTzu041hL6H6F3J5iaRgNeFRVRAvuJ6AYDG9UEiaszqsB7ulSjDZpXDWkl3GdONs46s7cADA/132"]
[194,"明天会更好","https://wx.qlogo.cn/mmopen/vi_32/DYAIOgq83erGMS8zsTMqIvbe5z6T62UElsBIWjh3RGYPibSGpoKFXbmUyOL896BgXO6pVicWYcS7m3DOfPiawS8fA/132"]
[195,"YHL.","https://wx.qlogo.cn/mmopen/vi_32/7u8eLMRCqCib4VKkOPjMa6v2Lmc3kZEAPOrrGJgbicSbOvltJp7bWgwQG1zXTdXXexIGnfbFCN4apxl0WzprsCJQ/132"]
[196,"李垚@睿","https://wx.qlogo.cn/mmopen/vi_32/Va2CgZbPaKEnTRJTeZvFUvcfoKEQ0DFmRvIYX4lGRvMpO7YuH3EWMxLuic1tOmP76Jdm3Hpw7KQA53E9prhKMZA/132"]
[197,"王宝凤13728687016","https://wx.qlogo.cn/mmopen/vi_32/MVq8AdZBH8zzVX6Mxkpic6fb7vthQsgr38RiadlIIBItna99mNVy61lauSHLmKeR41RrRiapYcr2m0u3S3OWzwUXA/132"]
[198,"于新田","https://wx.qlogo.cn/mmopen/vi_32/ZIyAbnibOsHW26p6U3cnVaG8PE299HCIVNVsictT9lKlz6UkFu42EwErtb7tJmjFIkYhZVamyVfD8XnPyiaDnPdPA/132"]
[199,"刘淑云","https://wx.qlogo.cn/mmopen/vi_32/dnyEeuch1gdSnlTvQKoOhq5tg4BdYkibtFyAyyDfgTI35MCrhYRoldueiaDjSvOMCfe22fsm7fzic1VxkdGpqfm8w/132"]
[200,"Genaigao","https://wx.qlogo.cn/mmopen/vi_32/mFGglSKpia6VOvC8eQr6QsRvzWO3bFN7lDW2wk2OKhV6Xicmpzh2pNIWlRibX4pTcfRH0BKIaY6mkVsibIDplRoVzQ/132"]
[201,"每天快樂","https://wx.qlogo.cn/mmopen/vi_32/1tkrv0r2He78HVJdibMNthCMbMdiaBBgCeA1aicdfj9vxU2CejDeF9YETJQpXOvpFlw2GORGKNpaS9OgzUEmvBm4w/132"]
[202,"人生如梦","https://wx.qlogo.cn/mmopen/vi_32/hBxwV0lxksg3YHnBpURwTEmeFic8aGibWUXtSK1xPCPrIYATl9ABcZZwb0icBFUPIvXN3PFIf6vzI7UiaHZw7CI5WA/132"]
[203,"鼬神","https://wx.qlogo.cn/mmopen/vi_32/d0G7T9xWD2DmkEoFbvlhxK5bJKWuqibyJ1Bia9uNZM08nvrCicfdod3YZgaQxr4naGFUCqYenKIn4kRxEvbeicKW4w/132"]
[204,"马春禹","https://wx.qlogo.cn/mmopen/vi_32/mrQM3gO6HUVHzqnTiasVj0fOeGUfsyDadYtKTZ0euPIQkK2EhNibj1Qia3YlQibsLXtjFg1FqEvQeJJreT8Tnbp3rQ/132"]
[205,"海燕","https://wx.qlogo.cn/mmopen/vi_32/Q0j4TwGTfTJmz1ATkbib3Q4dfZMqicxyXFrY34R29en7QicQaFtPHeg4picg7ib8hxaWtQZv9yZC3KgvxJMto7ry3tw/132"]
[206,"桂姐","https://wx.qlogo.cn/mmopen/vi_32/ZbXEXIRQYqzV45ib6MqvJETAgA3QGOK4p5rAQytVbUIGDDlBY91n0ozm8iaP76icdmCdTx1f348WUkDTpgkoNWU1g/132"]
[207,"The Ringer","https://wx.qlogo.cn/mmopen/vi_32/Q0j4TwGTfTI3EdVbdfVOdFicSMEBlsoqBCMj6jPHCIt5VRuicpPDpPyicqu8ucAYs0d04KsgtIVt7vwI829S82KHw/132"]
[208,"越越","https://wx.qlogo.cn/mmopen/vi_32/18avdxbIQic64OvVnyjIrnY1ldArojQa65qQHrbpughHWCU403GCdWdICmjFPMZwtFuJzn7Br4SOEadmH1QTHoA/132"]
[209,"小公主","https://wx.qlogo.cn/mmopen/vi_32/Q0j4TwGTfTLlQ8pM1U4IKicQx7TjibsCltPV5lfRFQ9W3Bb1NicBXEKSw6Yr2tBia1ObAzsfwWRWq0G1TdK63ibYEtw/132"]
[210,"万明歌","https://wx.qlogo.cn/mmopen/vi_32/TjEsP1siaib6pOia8ricU4XyO9QhN5IwlowoyI2s6DevhkbWGzb0p29sqaLmJ8we5UWNgjej4mj0CGvM9GQS3YmqyQ/132"]
[211,"路漫漫","https://wx.qlogo.cn/mmopen/vi_32/Q0j4TwGTfTK6vju9pIyDtkBHUcZLIVzCaiad3RL9yXF8HiaPibcOOrPsPuLO1Hx15JLbx4V1QxlcgYcCX94eUpXMQ/132"]
[212,"旋风","https://wx.qlogo.cn/mmopen/vi_32/wSkpLicAbWAwIDgukNwOibYyP0UKu83HcXP7ACGia1yJGJ71F69RavFmLp0BVYeSXwq6AfGfabgDxvuic0vicicSDJJw/132"]
[213,"甜甜的","https://wx.qlogo.cn/mmopen/vi_32/KoicZK8E9FaBSxsu7EIIy5WkoS3tDlzjYh1ou99TNn83CYEErWOHQ707Dj3owxicqNF87sq8UO5WIibSIofUYJ8Wg/132"]
[214,"快乐的小韩韩","https://wx.qlogo.cn/mmopen/vi_32/reTqIJial7tfMXEH4q7HUC56ibNNCU3eHGApNT78j4o6iaAOl9dEY82HyDyzlkVL5Hm2iaicNUurrhSNZpJ4qNc23Cw/132"]
[215,"Straight  A  Student","https://wx.qlogo.cn/mmopen/vi_32/3KBRk6M04InEK3vmeib7O0IOd8Y8RV0PNJWktdHRKwPpd2bkpb3As6IoxwWQpcTfoXxUsE61GkT4tp1Cpt890Bw/132"]
[216,"黄乐瑶","https://wx.qlogo.cn/mmopen/vi_32/Y4OYL2Fjzsp6TmgHTcPlTYUjCXrCzhG6h1aLAGPUxicc6v62O6ZWric7bY8yk6iahe80NBsqO7lrHeywicHYJU7b2A/132"]
[217,"Bonny","https://wx.qlogo.cn/mmopen/vi_32/XKykXR2k5ooPagjOnfDYicmDu2W9OEicXkjibUlEKZKO0D8MAjgOjeZ2FRcGGaDjNMqlkicVFEOrz2CjDiaa3tXMwIQ/132"]
[218,"拥抱你","https://wx.qlogo.cn/mmopen/vi_32/kvKzzicHicBFTyKiaf6Uzg85PeA7TIE28ia7KpSwa2rjoQPMwLPlJoVvU5Oellm5sKVqtibibGOAHZst4u8KDAwuVG7g/132"]
[219,"咖啡牛奶糖","https://wx.qlogo.cn/mmopen/vi_32/sRw1FwYb5XrmzK5W16w4YQ0KWxCiaEsBSnyFbHxz1mVPyKeicw9xtNMXgbWcCteZAkFgpOo7YaP2zkt4zM1E6uhQ/132"]
[220,"陌兮","https://wx.qlogo.cn/mmopen/vi_32/sBib00FSOWbg7HTp1bFoaMmeibGYBJhhWGVGzZweR8jwnZjWseLXGUYWQlYbuic3BVj8yyicQkibnwoo7mz8JbAzPqA/132"]
[221,"炫酷舞女","https://wx.qlogo.cn/mmopen/vi_32/jYcnotf7LQAe2tMUS2T1SdQlySRAHFdicKM32hyYHBWpz6qIXPLqXjn76ISI4QiaZia3uu1BbCF41Md5CQkPriajPA/132"]
[222,"Miss.fffff","https://wx.qlogo.cn/mmopen/vi_32/BgHpE3jibeSfo1rBh49ic7Qjfs2k4dr5yzXJUOKkiavPrAXsnX51UEicesEKBor3DNbmrxZxRooX1HwBTayggh1Kuw/132"]
[223,"泪水、湿润了美好的旋律","https://wx.qlogo.cn/mmopen/vi_32/bU2wiazwZzKCKn0ic9ACrAS9QQ6WOZp3duptAZgTf5Y3wpX3C2iavkqqiaoQKT7OMrSbFUNK7P6E1yjnpZGA9yHeMQ/132"]
[224,"THE RYTHEM OF RAIN","https://wx.qlogo.cn/mmopen/vi_32/MabRic3smDSw9oSyVQomHDdJIlM9VDhdSP7KNHD1gWh7mF7DlM2aZNqO3jgP5tjiaW4Jicv7cu6PpnBwaFq6AVSvQ/132"]
[225,"迎客松","https://wx.qlogo.cn/mmopen/vi_32/1rkzevramnGxAq0I0o6iaggzwX3QvjT8TPukPuicfJo7nqdgSFgWOFs1PohzbR90sU1MLzAudaajibibW8riaJYxG0A/132"]
[226,"柠檬心","https://wx.qlogo.cn/mmopen/vi_32/PxiaK7okBmkk1ODWWzPdULzglkfY2ibsh7OMGdgiclSfOavGatXZFvhibLawbOPYMdjIwUZHGC467aZAg3ABMp412A/132"]
[227,"幸福","https://wx.qlogo.cn/mmopen/vi_32/04WCiaKzMSdqdlIVicZKzYeQDwHian34zjQLCEcmPmFMdhrIr38eGQt0pdEs8CGYZHbdqCGU8Q6Q0UPBBcPVJcHicQ/132"]
[228,"邢金玲","https://wx.qlogo.cn/mmopen/vi_32/wH2MPsUww7Sn2FjmY2DW2bOBe1Y61gEcjgaWR9rdWStHSlhOh4hCIAicJeQic4RMXHkwrhcZPTnQZNibLS3W6FoRw/132"]
[229,"小可乐","https://wx.qlogo.cn/mmopen/vi_32/YPe27wia8OwaEibjxe0la1ibw8diayhjfTibLfSyCYdnh1PTSl3SbwAkVBa0Gr2ciauAFl2PPG9mtwKwdO4iaovAdeL4Q/132"]
[230,"晨~轻殇","https://wx.qlogo.cn/mmopen/vi_32/oyoBlaCkt60b57f0DuC6HyNf5JBgeHP2HADetjibYAusI8htRicbR1JGhIv4yXm2MrhIlUKqbQjP0Fibb0KFKCjYQ/132"]
[231,"《回忆》","https://wx.qlogo.cn/mmopen/vi_32/w2iaPb2jRdAJcAVILBArvq39hZZlkCFQwmKmchCBnC3WVmXBGxqwOyd4rMwI1KIibJ1UQt9yIjj5LOqnIO7sLVibw/132"]
[232,"邢金良","https://wx.qlogo.cn/mmopen/vi_32/Q0j4TwGTfTL1AlMfMbIJcQY1Rm1KicERz22MIUbzEDK7ghwVqgpNCcB2dMkAQ00Xb2fFXIKbz06mzZ95F8APd8w/132"]
[233,"此生非你不嫁@磊","https://wx.qlogo.cn/mmopen/vi_32/KFzzaQ3GhDfQlVk94L2EVYIdOXKvpBFdeGJ2JqckTl8dAicW5RxQRiahyG2S9ibLnQcnpdhLYA7ich6pnZz4P4ltwg/132"]
[234,"岁月静好","https://wx.qlogo.cn/mmopen/vi_32/DYAIOgq83er4qHCR12J6r2qjnTjwRfCoqfn7KCj8J5z5QOYHJDpAbozHqjWaY8W6UZJgYHgtQCdUY8wCiayWRdA/132"]
[235,"耶穌爱我家","https://wx.qlogo.cn/mmopen/vi_32/80SkgWHUtFnCT1RkV0BIicbcpWcvm8JErELAWGI0E3lxWmHwEEnUrp8uyf7ucJNibqzicMpDd2vzZ5KjzlwUBdY0g/132"]
[236,"烎","https://wx.qlogo.cn/mmopen/vi_32/Dia654XNlTVhZXxHUeYQeGIpHZJqnxrymvp6sdBQ1ZPPibNhPbiap0HOB9qeCZ00NkWGmHokWJIrfGcLiaWUODsmmg/132"]
[237,"浅夜'幽梦","https://wx.qlogo.cn/mmopen/vi_32/XnsbiaydNup7RQDr44BOnH8qlfv2ay0kq3lK0dBicibiaYSI4CSncQ4VrPbGuzjrLS7yJicpMVDb7ah2picaaFAfibFyg/132"]
[238,"墨墨","https://wx.qlogo.cn/mmopen/vi_32/wrWqcRy72kCqn4Cicd6wlah7ux8OonYXqLkPNwria5VdGRiceicsjJf4RibxAawFCxtdUJjoGx9a7wwwX1XibeZKiaPWg/132"]
[239,"热枕.","https://wx.qlogo.cn/mmopen/vi_32/jEkyQxv9njhyZn3EicWkibLQjjFHMHGG2ojD6FicrIKU6EuicsozyZ27pSq1yjz4c7icAXd4OoJTGflhX64nWWOPmKQ/132"]
[240,"王丙连~山东省","https://wx.qlogo.cn/mmopen/vi_32/DYAIOgq83eqXRvKQibtSvuXCCuafcWVFuPkicpMuvnIxWr6hjsmXz8VqRBAicn0ySNcwqU9MtxPVh3gH6cVLiaicb7Q/132"]
[241,"香艳玫瑰","https://wx.qlogo.cn/mmopen/vi_32/O7ALicZic7k30GJyZwiaCxglkibsiajE0bBFsgmnC10zcGFEfS3EVwASwVoBqJg9Xexyv2LBLAoCm3JrZDfr0xf3wiaQ/132"]
[242,"A360搜索推广喻磊","https://wx.qlogo.cn/mmopen/vi_32/Q0j4TwGTfTLXYVOIOfJhWxWGMQFxKwibWEVrvNib30Z0MrNialeokelLTj23Fg8JKGsxY6OyJrs4HuQkkiasKmU3wA/132"]
[243,"且行且珍惜☆","https://wx.qlogo.cn/mmopen/vi_32/DYAIOgq83eprZkiagDicBT0LqwVcPB2TUZt6XzMhaCeGuuRkflCuGxewrnotDeRjcylJqlF4f1R70zOPicn1wZAtA/132"]
[244,"顾北凉城","https://wx.qlogo.cn/mmopen/vi_32/sc2ia4MQ4xp8n96tDkJGFfkzV38B7GicA7oFS3E22zZeyLMozn26UxvWH8uPa5GZEIx5HjM2RsxkyMGuV8Zic0Ribg/132"]
[245,"你的影子","https://wx.qlogo.cn/mmopen/vi_32/TZ2a4vYFVrL2k9bjcx1V8ibuEZ1vNfTZAjzKCC2tGcvuK8Ga9W9q4uUbhRRjl3M38P2E3foCT1ibmAloT1zd999w/132"]
[246,"彬雪超市","https://wx.qlogo.cn/mmopen/vi_32/Q0j4TwGTfTLBqvD2qKCbXMYxT2LiaObl6ZzXjYib0o4PocjGwic2oJnNK84nf0G4Oic1vdeiaOQ9sndfIzcRHGgQDjw/132"]
[247,"曹凡","https://wx.qlogo.cn/mmopen/vi_32/Q0j4TwGTfTKKYnTh7pRNytzGeXy0nBow88IeUjKHMtKuVpnhUBOcC5XBgK16MAib7yicWia1o5BL43xqnVicULGEWQ/132"]
[248,"月梅","https://wx.qlogo.cn/mmopen/vi_32/XFlXkjic0r459yib3rctb189tnBjMz9xoz4Tmtg2pRyia74hXhD6rqD46wkcnWWynicMZgYpp7PdsZe0RNkBDvH9Vw/132"]
[249,"惠翠玲","https://wx.qlogo.cn/mmopen/vi_32/ribeb9vy5EjC2rK6BkVriaEuDa2ibhukKaKsr1ZyN18Uar1KNk6C1XFLgJEEpVNqyibVLUjpXRfIVOP1WGSmZhJ47g/132"]
[250,"傻依猪","https://wx.qlogo.cn/mmopen/vi_32/kYjBzBA99QWYloCw7ib1iah3DPvkoNl3TcpHTP276sACazibYzic2lqzh2WJucMLHLaTfbQPonvdGl3QTOsR5B2AMg/132"]
[251,"夏日甜心","https://wx.qlogo.cn/mmopen/vi_32/DYAIOgq83erErtDxPmavyibaN6ib0vkUgDbOTZLdibYCaXrbfRWOqK7SlAW259gBVXP8mDHTl3F2RPJiaBNMpC0e6Q/132"]
[252,"李慧颖","https://wx.qlogo.cn/mmopen/vi_32/Q0j4TwGTfTLsRhFESf3Tw9mZ86icfQxk6qCLicUYx5wTFibTJ7GNPCJia3drrib0P1VsHRGqxkJREXaL2JVoHdcubhg/132"]
[253,"小廖","https://wx.qlogo.cn/mmopen/vi_32/aASBQoxCmhXZOTicmdQ4PMKOibEaSR74NBQ6zGRkyFlD3xej2DEgb48UbIM2yM2zz5dIfow7gSuyoZ93femDibhibw/132"]
[254,"a薇","https://wx.qlogo.cn/mmopen/vi_32/Q0j4TwGTfTLfmR4mafTv91nDA1kaz8q3T3ergg64RWicJ0UnaoBNfW0m4DCNB2Pe832RvwFFb2cXS4GqTHfXbPw/132"]
[255,"华","https://wx.qlogo.cn/mmopen/vi_32/DYAIOgq83erjXPNqP6IGJibV8oTL58SicwjXyjicfzQa6P06nGTZhGBgqI2OaC9hrWPGRlr0cRzQrdqEfROFCtRfQ/132"]
[256,"。。。","https://wx.qlogo.cn/mmopen/vi_32/Q0j4TwGTfTIXOvbgsFqS6QDW4UtTjzvN1nwKiczOvLic7Xdiab3rHEib3LiaDEibibpWqgXtM9bASpib464GL56PPzMkCg/132"]
[257,"家和万事兴","https://wx.qlogo.cn/mmopen/vi_32/Iib2TzuAe71N1uHmYZXEM97wzmqGaibWLVcbKR37Ic6ibAUqIV9jTWojffF011hicYraZnoice65y3ukpExkp97TVrQ/132"]
[258,"地狱火","https://wx.qlogo.cn/mmopen/vi_32/ibYm9t27O1Gia10dtEiaTvPf6T1sATunP4SB7m6Fv0Pq3Lw0MIcDTwUD4sATkxW9LM9Fng4rrIldDM7jaaTW8psWA/132"]
[259,"你好不好？","https://wx.qlogo.cn/mmopen/vi_32/utyexH5fkKZzMib3RPFMkw9KX82b77847KBd9hTbEu9TUveVc0t4icoWLLM3UecannuP3lvVFZ8m3sMaGwU96QEg/132"]
[260,"秀兰","https://wx.qlogo.cn/mmopen/vi_32/XIZic9faYp5v3yG9IfKfsXPRxThSZVkRmwkD2zheQtxuribf64Nh2LXs5OYiaWDXA5lruJzXaXO8LYyoG9ACpngtQ/132"]
[261,"あ縌偑ぜ","https://wx.qlogo.cn/mmopen/vi_32/60EDC1Z9latDt3IDYACCKg9mMprzQw1msibjselOksHNGBPh78L0V8SNCcPp7DlGNEibxvnTtVbqic1RQk9U5NYbw/132"]
[262,"SSS板蓝根","https://wx.qlogo.cn/mmopen/vi_32/Q0j4TwGTfTJG0FRsNpJKYn79DAE60xvRv3PAPwknE31TeLrqVyv8GibOft0ruMicmekicHdaHMtY01icicdsDcK6ZCQ/132"]
[263,"鸿扬广告  15727510190","https://wx.qlogo.cn/mmopen/vi_32/N959EhXbX5rS6wJiaPib5fDdE2VP0l9w1tqbUibjtI66unXLClIXGFt8VNA3lj9dMunZ20o1JC9vCicHpXme9CkDyg/132"]
[264,"幸福","https://wx.qlogo.cn/mmopen/vi_32/Mpzx47WUAz3UcrYfk3dibUsYSHBVWuFAnl2HwxkE8TpDPQ1ygX8YDzqSnMn2a31GbsGIjW1nII7TnRicCoxQGWLw/132"]
[265,"江郦珊","https://wx.qlogo.cn/mmopen/vi_32/DYAIOgq83eozbvjSGD8hYbVxphL1GAaTPSTy8uicm6n8LSHKS4xWOLReFh9FVZbMg4WJQzvW0ejraEpdSMbHNhQ/132"]
[266,"怺恒薆","https://wx.qlogo.cn/mmopen/vi_32/mNCCyibfZicjag2gfVfL8gpgYc4RQQknmd816ABTEE0ANOZnv4RYzLPmEiadDB84ASUONf2TMXDFb4OLF6jwY0YfQ/132"]
[267,"🐾小静🐾","https://wx.qlogo.cn/mmopen/vi_32/D8FsGB5FiawrgvQy6nMTLL5a73HzURCXfplmcKxCKDI1zrI4X3tFIoPCJgsu75mchq9Q3NsxjYqvDSb2CFibQS2w/132"]
[268,"悔","https://wx.qlogo.cn/mmopen/vi_32/q7Hn9JgEyWzCBmerQgqZjNjofChkI75P6CyCwAvz8eibrCDEaz6t20oSnk9JQ8cuTkPq6J3GJAvF9kp0DMZla4w/132"]
[269,"单胜男","https://wx.qlogo.cn/mmopen/vi_32/8icO8sustxOfzB0YS0UtRDVIkia2agyZD5vZx4lTv2icVEfJO5aK6T1iaPCSv7FjEibwllDhkISFeUm5kM6PhyPRdew/132"]
[270,"一缕清风","https://wx.qlogo.cn/mmopen/vi_32/Q0j4TwGTfTI6Kcr6Bg7UJj6zY3R1ibxicGJVjdJNLebB9BrXdsXbic7zxmDJ98tYatPKuouMWM2zAdFSckhA71tTQ/132"]
[271,"王汉明","https://wx.qlogo.cn/mmopen/vi_32/CBIGnPibfNRJ6duqDtHBhBnI41r3k401bMYD3Ls19VoAvRjPyiavAcugK9hgxMaCBqI2GMRAPoQZ2YxuEM3Rupew/132"]
[272,"凡心成狂","https://wx.qlogo.cn/mmopen/vi_32/lYuMO9omgtm52x6DVsNvVpD5asYiaJtqF17aZjgzGWRs1jicpicv7PTPtmgxQoLUkVQeVUd26jzB2VrGcVrA4Ko4w/132"]
[273,"雅 .莉","https://wx.qlogo.cn/mmopen/vi_32/bhTsj9FQgt8rIfllzOl7SibzVbyJSA139DvwtZulHAYeq6ibub0v0qBDeiaxPyhC9CFCOCZ2XKInCUWQWSBPVuvnQ/132"]
[274,"phoebe","https://wx.qlogo.cn/mmopen/vi_32/Q0j4TwGTfTLeYdiaVF5aueibSju7sOOyYEsMf7UXNOuwr4YNd0JSG5pfTjCibC64aIGaTJS4oyMibFqSHVibHWjibiayg/132"]
[275,"善若芳菲","https://wx.qlogo.cn/mmopen/vi_32/Q0j4TwGTfTL0TmkpM91F4Z7TVM2ZLXKG5D3EMSgia9U54nrI3hH86yb89zaTCwPO1a9eTiaQGuxV5NAgafYjWnIg/132"]
[276,"桦斌","https://wx.qlogo.cn/mmopen/vi_32/2LCiaG5R0Dicnbj42AAwVQaVUNqXVRNwH2l2bkB4aE9Svyiadgib4os43WQQBt665aFbU1QvMA7mBia0cXdS11Y0lzQ/132"]
[277,"木","https://wx.qlogo.cn/mmopen/vi_32/8cuWxFDOxBDeKtOf0AnlibZnTkRbFW1lS6YSDm0REWBLriccOfR8luT7rhsNiajJw2lIKWvXfBImI5aKS7ickrb1Jw/132"]
[278,"綪深至夂彡命","https://wx.qlogo.cn/mmopen/vi_32/ibUXcQdgTKrs1AQjnOtGXeOGE0ER2aC5nJZT99rwHFoLQUaCiasdxS5gNydCEzSia62VU13psLGjPY15U5zQhhccg/132"]
[279,"幼儿园的酷比小可爱","https://wx.qlogo.cn/mmopen/vi_32/4r8B2yf4421Fczkvbl7EXM2DFiaf1lVmG0BCD5TAOBJibyL9I9fSnVUMvibYJiafibRwyhql6xF5poVlydxhjf29k1w/132"]
[280,"王鹤翔","https://wx.qlogo.cn/mmopen/vi_32/OUdiaz67ww3YIjOZLibpiaibf5dydQFlVXqOeOdKdsicPGaabicMYwuN3FdsXPQk2udcbo8Op1nA4CjGKy6jfaiaQicJxg/132"]
[281,"^ω^","https://wx.qlogo.cn/mmopen/vi_32/1vpQ8TxE5MXp4dgQE7kU3eqCrVThOmcv92MsIFic9LAtABRx9LvYaENPpAFZmiae7EW73C1PbicBaKB3ay693bcsA/132"]
[282,"。。","https://wx.qlogo.cn/mmopen/vi_32/uH6GhEcxib5HND5O2GyImCN8oCCDhXJufliamOiccLMeO57umNY844mNb7AqEP1sbZH5tPy0X2lbR9VwZDgrsBNjA/132"]
[283,"王家兴","https://wx.qlogo.cn/mmopen/vi_32/JibsvoSwtwqs04Lic2q6e2fgAMtibqgRkbLG4BWN8vZ1jYOGhChGE5gxEz2g8fN2qVQmHHtiaSWjDrJsGy1nPpxHpA/132"]
[284,"罗云","https://wx.qlogo.cn/mmopen/vi_32/NoaSJfteOBa2kqmI2BD1Bo9shUubQTHvU6UMjHjGe0ZetltaNsAnCVRmfG9keicCovscrVDq0nZSFp8LIiaPicGhA/132"]
[285,"知足常乐！！","https://wx.qlogo.cn/mmopen/vi_32/Q0j4TwGTfTI5kBLEI1kFCmB5Q2aaQCZvGXGReaicC3ggjgBCkjiaxn7er4rCabcibmicKTuWR5o3WRT4Pt2GTWKunA/132"]
[286,"国产小仙女","https://wx.qlogo.cn/mmopen/vi_32/uA9MFia2RKgbkC9Dic2eE9wgV03VLKItFFibEgoIZY7Ku8m2YmZe2gUiaXeVFHrLlO15DH5a0U2tybP6Lkp0u4eRKw/132"]
[287,"心动～","https://wx.qlogo.cn/mmopen/vi_32/JCyhhnEhsSjUVTCPzvKXickgylFkWFRkfzNHPxuESZDUF8BqyG3ScLMtsvY2Ymc2vMFyEQPzDGKHg9WzhPAg8BA/132"]
[288,"Miss尐尐姐","https://wx.qlogo.cn/mmopen/vi_32/AUWdDdCPw1sJjI2oTBIjFj8BvfoOYrx52LGrhZOpLTic6QJ84XNv0JyDc1rOCIzP4UzTlwKmGv1LDRq6aPNrxhg/132"]
[289,"牛奶草莓15852693206","https://wx.qlogo.cn/mmopen/vi_32/Q0j4TwGTfTL3hln4zPAYxFxFASRhWYDKv3q7N9xrCOI2ID8n5p280zydM9I29R1egERLDRXhf2FQt3oicB8SyDw/132"]
[290,"一宇二硕","https://wx.qlogo.cn/mmopen/vi_32/cSUwoGLtwMgC9jUQWaPAxyyV2RTWNrHticbuq9uWpUPEYk6CYWMia6TFpCtwOfpIiaBkRAjHv38wqjdu3XicXCZibKA/132"]
[291,"沐晴つ","https://wx.qlogo.cn/mmopen/vi_32/cmGSXMcPDVnzZmHfF27h8fdkgVm3Vtu4zicZA2VyfQ3ogl1vKeSeeHuVd0jv2myz4uNNGG6JtxrZp9MLEdseHLg/132"]
[292,"花好月圆","https://wx.qlogo.cn/mmopen/vi_32/DYAIOgq83eqKurYDna0346YRIyU4HUoB2WV1ybdKUHjWAUahyFqR9dfmWBOlSDghPjW4ojqMUoOu5GIib0NPWVg/132"]
[293,"小公主","https://wx.qlogo.cn/mmopen/vi_32/wevCZmK1kXDiaWpiamhmhaSZkQ4kkFNkVwZS7v9Aa0q8hhYiayOVaIlrhOpbBhBnY7tKGqBGaWJxF4UG4QoXDUWyQ/132"]
[294,"顾名思义","https://wx.qlogo.cn/mmopen/vi_32/ql2DWdHicsBvdRTicg3zQicZND7ibxPwrIib8mA9KEcY0dnnv2U7nGvJh0B2G9Q7I5FIQ6y2Dia3S7GiaNbEKuONY0cqg/132"]
[295,"MOL","https://wx.qlogo.cn/mmopen/vi_32/Hcuxb4mOzshCsNp2JCZJ9PLSqTJtVtiaS0MWtqq1bO58ZOyXk2tzV9UONZNrA0q1x3Jw2ZeoXsWtmHp1UglWGGw/132"]
[296,"vita","https://wx.qlogo.cn/mmopen/vi_32/DYAIOgq83epbDtag47PmicalTLWJnicbWeZABIPvdfslMyuBj056hOgEgmx7M2ycaibSibPzn9OoE8fh48Oc1XP3dg/132"]
[297,"一身仙女味","https://wx.qlogo.cn/mmopen/vi_32/xjAj2v560qWE1MNoFaH9Rd9DtNA10ibVibGD3neWTDAruL2lLcUJbYFqCLicdnpwqWcOpXWFL8tp4jt05siaTFsnNA/132"]
[298,"小侠","https://wx.qlogo.cn/mmopen/vi_32/nODefTDvIiaL0KehuBS3l8AZwtwTJZolduEf0UHWeib1IhkJdGmpuwibgtvJrkzUQrBhGibgwic6rtPR6FnbD3pygFA/132"]
[299,"斌","https://wx.qlogo.cn/mmopen/vi_32/9JoxXO9ZdzKBRs2w8KVtuWR5ibIewfGANicgK8kic2qOBqquLGIsPYx1AIkVNuFhmuVl4GjMdzgTbZ3vKXyj7jRrw/132"]
[300,"明天","https://wx.qlogo.cn/mmopen/vi_32/PiajxSqBRaEKeLhNPjDInO6SfO40kMNjku6yLkK7D0A3kw8RdjtoocGCb3CxnmESor75WzNEJLQ1kQKfYyiajoibg/132"]
[301,"徐新","https://wx.qlogo.cn/mmopen/vi_32/CJAhmnvaibdbl4XOamLQcQE8ciaByYV9kYavRcc2oKuTeQ1CuxicxN6tp54RGF7pPtFusyGfWdToSaoJdJP3zWILQ/132"]
[302,"不畏风雨","https://wx.qlogo.cn/mmopen/vi_32/E18UCgMWjKOpzicIzCFSbBbAyfcp77Wg4L3usGG4JGf1fNicl6Xmk7Ep6nxkP30K0sjlPKHiaazPJUymiaYgd8PBQg/132"]
[303,"黄敏","https://wx.qlogo.cn/mmopen/vi_32/TiaD8cGibs10jCDxj8jB3bXg1V8oJguxQkYu0w9Jlgx7upJNHml7WvoRibm0uC8yZ3K6Kk7ULLreib5oJcwKfJzaIA/132"]
[304,"李洛妍","https://wx.qlogo.cn/mmopen/vi_32/xvFFY8XpG7B2m5Tib60VFRr3XMafoTX1w2M9bWkIE2WicZoKiajdNFu5TnuyfMr3P4TdlbpLg37DJNKFW9uXibrysw/132"]
[305,"宇","https://wx.qlogo.cn/mmopen/vi_32/ecVRRYd0zvA4bzjbicXEkoO9VNsayEibOpNA7VVgfVdiaV31daKv9TWGC6luU7WsOdN0UF0CHTFTY6qYgtGZL6eXw/132"]
[306,"甜心少女","https://wx.qlogo.cn/mmopen/vi_32/K0OzPJOas1DDvjiakribCWdxGUkl4zibpSnaERyTFBD0EYhzsNuVECLuFwiaIzFDmPw2zJhCJEia8iaXZJYAL0wpoYtA/132"]
[307,"小角落°Moon","https://wx.qlogo.cn/mmopen/vi_32/Ozz09JhBLK3AYoyRUOZ2AAicic3mLfHjduj0n4ht1zZavvzF76r0FX2dNkbvDf6fo8wooay5748gGFGHrmKfw3MQ/132"]
[308,"不过如此","https://wx.qlogo.cn/mmopen/vi_32/zsbbK8iaibreXzZC1rx2W1JRvY2yXZ1FzMZ5M9na75AQhV8puuRX4ehIIlIgTSia3uHibjIcKzOaaiaA7oZuDxJqMiag/132"]
[309,"易生","https://wx.qlogo.cn/mmopen/vi_32/qHrknmCMFB7T0Lzxat5ZX4heXdORZYLicQGjIibo5qbsgRuNL7AsBx3quDdMDtK2mHYE8ZACfzpPxicvLr0ia0nGuA/132"]
[310,"郭强","https://wx.qlogo.cn/mmopen/vi_32/esbh0BeYP1wnt0gy0Oh9UzsSPKNeQslkBQ3oLpSRXvgwqoVVJZ8ZsYEG5zkcorEr0mP4UkBgb0QquseZ8VqxibA/132"]
[311,"陈超","https://wx.qlogo.cn/mmopen/vi_32/DYAIOgq83eqCsPGBmPMn2qOA5BBdTvvZibicO55CW1ayqeC0XLGzPgqsHRV6hpGIljzDlh811wpTvahPq6fgVibgA/132"]
[312,"一飞","https://wx.qlogo.cn/mmopen/vi_32/DYAIOgq83eqkvUicowfFficf3NuiaZObmxrXIom7bfstW7m5jA5ibo4TKwC6hicFaibCM3ObR7micXibcq3yNImCPbHfxg/132"]
[313,"思念","https://wx.qlogo.cn/mmopen/vi_32/q13icnVrq98UTXd0vCdbSf8HUbw4BMzbvNh7FhXLY6KH94hRyDZs5b2kyEmdqAxvYEwlB0MVZp36EWsy9ScWic6A/132"]
[314,"ion","https://wx.qlogo.cn/mmopen/vi_32/Ucm4qoWrLE5PceME7DvJy2Aju940HhJywCV3ndjVB3qXEYiawNwIpUzhHZhwSI1Y9VE5D9sm8JzxhU0T6AJdcEA/132"]
[315,"快乐就好","https://wx.qlogo.cn/mmopen/vi_32/bY450Mt1qSvHiceqicltShzcAQ7hfu3naI1Jarktd1u6CzGOugia7Ty0SbNdVclT7jqxlgzBnFJNJZDhAicLNfQyag/132"]
[316,"郑运祥","https://wx.qlogo.cn/mmopen/vi_32/uzvibJnyK9kUVDHr3tKG9MGNYawQkG3STdV3dfGWXPR7aOWPzCyMhMn37kPnichiasbf0gE964zD9nsZ4mJDDH9XA/132"]
[317,"喜","https://wx.qlogo.cn/mmopen/vi_32/Q0j4TwGTfTLvdkH0jmPBlkwPFcqdmsTsJ53OeFSQMSyic8Yk5HrhcvLkcDGoKINFa7n7iaIfkKarQaNQxicCJ1xibA/132"]
[318,"天天快乐","https://wx.qlogo.cn/mmopen/vi_32/sEYcx7h0EYo7I5ib5wBErnhROuP7MlwDLvqiaYksTRBHYVzs06jibO2m9fgcTqflVrBpibO1iaTVs4BAQPMcyKOA8iaA/132"]
[319,"OUTsider","https://wx.qlogo.cn/mmopen/vi_32/Pp646OnniaZZYIbVZpbwufVL9aPbO2GicGiarapWeTA8T2PLDPibp08RzayibKquGkGj9qrCcibsibLhD4oVWgr67ZUmA/132"]
[320,"苏晨阳","https://wx.qlogo.cn/mmopen/vi_32/kVroh8aKgIIVZeobKdg1yGlaLH3NEAKm5z28ojlrSlQLeo0R2TUfyU9jePibzKdYibAWHicmwIm1ObWxMBticdiavNw/132"]
[321,"婷慧","https://wx.qlogo.cn/mmopen/vi_32/V3XEAwxI2V4lj8whd5qb4tQGiauep5DyQ2J7OOx40KDEiaJJSZEN1JfUqA0LE6tShCoNxbicFk0WbyleZj8p0hyNQ/132"]
[322,"菊姐","https://wx.qlogo.cn/mmopen/vi_32/Q0j4TwGTfTIm2e6zrRicQa23vPSLicaT57neSV2JhPM3uD7r2B9V5m6rTDjN9tUzMELmJGOgK4WF6sQPnicjIYg0A/132"]
[323,"万新华","https://wx.qlogo.cn/mmopen/vi_32/Q0j4TwGTfTJVnQd5pWATbibrKeb6yocicD3BX2KgyNbnMe2LjRSQic5Hbez9wDdrXFKHz1b2X9ZUb3fEwW28EIMAQ/132"]
[324,"何梦洁","https://wx.qlogo.cn/mmopen/vi_32/ThtShictiaSoUNnodSRWaGA5fpO6VFQH5lax1XAQABDrUKLQgvqibGzAxG6GQoC2jl3w66uoQJbl8Z8TkDs7mEzIw/132"]
[325,"那年那岁那轻狂。","https://wx.qlogo.cn/mmopen/vi_32/em96s1xPPNibfg93bVDice8KEu2UwcNJ6pFw76vHKA5XJ6Phmjjkjc0Tpd8IcrOmIlnOIHropFp3Obcr4wZZcnPg/132"]
[326,"陈陈","https://wx.qlogo.cn/mmopen/vi_32/DYAIOgq83epK2cjlcoK2bgyytx6AicqD4rJSf2OPOFSYJhbwUV4Diawn4icK00icAc1v2xEwuFibZTGd1LbcsRpcEKQ/132"]
[327,"大侦探","https://wx.qlogo.cn/mmopen/vi_32/7WIYbugicRJWYjmQOfRIuXOxwic56za1PxbibxQtqEuibXG3icW4s1LgVmxvxlibTU0txUfTNz5xUzMjalTdZzxGC04A/132"]
[328,"冷艳高贵接地气","https://wx.qlogo.cn/mmopen/vi_32/Q0j4TwGTfTJibPuZ87ic19VTuXBNCqWEfA8Liau3ibKcfhCgvwXZIf6AEIZ6BmV4SE1hic3OFAkd47uZ5FogcyBnIsQ/132"]
[329,"开心红梅","https://wx.qlogo.cn/mmopen/vi_32/RwibY5FAg82cPJgcLCWffwyH9x9GJv4qKAI8xljfTyFowiah2IQSaVKwaFoeYX8HRWbXhJSgnVVgG4I2dzSUl3fQ/132"]
[330,"天道酬勤","https://wx.qlogo.cn/mmopen/vi_32/Q0j4TwGTfTKJMozsvDibp60AjftP9gcjAyhf0R50tKtX4yGf8jtCAGb0oMyFhgOE30lJu6NZameShibQ9L1agkvQ/132"]
[331,"巧克力","https://wx.qlogo.cn/mmopen/vi_32/icYKy5GNyZhth6qIIGxhMuzhvcohrDMTBCeId4icgopAbQFMJAUYr9YISnZkpQL6mpjJxN62BQdiaWFO8KkibhdZicA/132"]
[332,"℡桃酒玖","https://wx.qlogo.cn/mmopen/vi_32/fhxwg0y4qbv2zkHWQgTm0onRzxXCHetmuUKcIu6XWPFSAPsicBmYibZicbHOTvP5dZs7V7NnD90cBLibGsUakp6bPw/132"]
[333,"花","https://wx.qlogo.cn/mmopen/vi_32/uBHbdZqiaiadHgraJtKYuDN9hkk2Qg8Cndz3dqU6cVELDVIl7iaDJElwHUB2fGM0N2TZ4KewS52OIcSqq3jx1k0Vg/132"]
[334,"一帆风顺","https://wx.qlogo.cn/mmopen/vi_32/KuyQlS9ic0iaCy7AkbV0hvyTIUD5V0z43riabTas9EYPlZ60xu6iaPJSbCzxNs0lEhVbJOOfWF3I7WickoS4knr6ib1w/132"]
[335,"钡钡","https://wx.qlogo.cn/mmopen/vi_32/q13icnVrq98UTXd0vCdbSfibfWISTibU0mAYwIpZ5nOZf3w7UVNNXnU6gHhgSIJaW9neEpzLtxuv2OFNPRBmFLISA/132"]
[336,"洁宝","https://wx.qlogo.cn/mmopen/vi_32/Q0j4TwGTfTIvLxDbOtzvSsynCGqbWlXwcIJa50x1xnr99sPJia82auRkxFpibOu13Pm8x5UUIicdJaaYSWe6X4Sbw/132"]
[337,"A__ℳ๓₯㎕_陌生人","https://wx.qlogo.cn/mmopen/vi_32/PiajxSqBRaEKsXVVwDS3B7FLc8Je4sIa1krDbQ5dNcgOgibCbzPI19RvJNC9o9d6qdQCVHcPibAicwLZQT0SWMyrrw/132"]
[338,"喵喵","https://wx.qlogo.cn/mmopen/vi_32/Q0j4TwGTfTKhRHicJPfiaraG57qwUDtTDZqZrOjOf8vsAOLom6ic5EaeDU9k7ojRsx4WwUbzclQepqf0JH7cCWHicw/132"]
[339,"馨","https://wx.qlogo.cn/mmopen/vi_32/jictSzt5jJBLerj2O4QDJxa4ntScE82KYdP0Rj49cHkoJrMSZWSbD3cbk6UsxbqDMLKgogxIazAGKeHY7vFFtEg/132"]
[340,"童宝玉","https://wx.qlogo.cn/mmopen/vi_32/G8SpMddyph8eowRUAVFxnAZYrDhxOq06Ax5IxwJY6ibTNHZWic2iaFYdwd5ib5uYnyrsVhkO88qXP00BfnUsibUfLrw/132"]
[341,"飘逸","https://wx.qlogo.cn/mmopen/vi_32/DYAIOgq83erNvM1IfrzS3iaGEBgsZVJ4PxYC6vJQA3733RBXUnElZNFvLpbC32WBUjmth1tM8CMoywWxvl0HfnA/132"]
[342,"高山雪莲","https://wx.qlogo.cn/mmopen/vi_32/Q0j4TwGTfTJEBlicsxJZcAQTTaWERa0ghX1lVWdUk3Aibzb2KU6jxuKUYCImm5tZuLyhbsibVnliaRoa33wYLEuqCw/132"]
[343,"妍","https://wx.qlogo.cn/mmopen/vi_32/DYAIOgq83erp5vduKPtu6p5dZHr8HTeXWBibjjm9yC70WXcHWYrNM65icc6VY1xLhxM8Vfs64ugV6JAhAma1qldw/132"]
[344,"←_←额","https://wx.qlogo.cn/mmopen/vi_32/Mp7LOnopozArMQqhECzb2WIQwfUhqvDdLaicoibbLiafqZkNY61icWaXsTyTWU3CCFHf82w4D6YO7VFmvicia7KQ9yMQ/132"]
[345,"满满的幸福","https://wx.qlogo.cn/mmopen/vi_32/H9O9fay6bopI79J2TTKYp7aUDMABtcxibE2FabIWqZHulcSPOJt2kPMfdhS0fCw0J5xTibiaLzSoMPGvQfIcRMD7g/132"]
[346,"开心宝贝","https://wx.qlogo.cn/mmopen/vi_32/PiajxSqBRaEINgK7jw2bP30GVibAPoAxHaJCaL8JIWg1UkjFOgI25RU09lH2qrk3PbtT2nF9Mg6Pvz0zAchibib51g/132"]
[347,"温山软水","https://wx.qlogo.cn/mmopen/vi_32/bVQKKcVicQRZcvLvbuQvee2U3AXGbx6eQU4StibwFGw9bRxZqNHux0TARibgY9n0PM27sEPPLHeu7DhvxKgnmGTyA/132"]
[348,"黑暗桃杌","https://wx.qlogo.cn/mmopen/vi_32/zxIwkg9VsKItZhZGRXK5CCfDvuUCNdDMbh4Ez2K6N4dQ9j04B33PRUsQfmI27p3GXEp3q3orkDJGMGRibetY9vQ/132"]
[349,"あぎな（吴宇轩）","https://wx.qlogo.cn/mmopen/vi_32/QOzBB7jpFrCKbQDCOFhL2MJPHVKuYzlia1lGSsu6ROic72tpQfaJBvKCUJswVtsUJWJY5n3alHjibt9C8ZL04GZdw/132"]
[350,"思念你","https://wx.qlogo.cn/mmopen/vi_32/DYAIOgq83eqbHvsXXtvT75hROOVV825MCM7SoM7merTvfAeLNuUpfWwuJibymPNB5nzmKiclBL6po7BJECb7icnQw/132"]
[351,"于亚君","https://wx.qlogo.cn/mmopen/vi_32/OicaGDOqrydSrHWl4QwxzM64icN2ib9VUzrVsuPiaJISYGhwibTxsw3up4ceTtUTHCkVfGsMfn89a9wsBiaF4w4cxo1Q/132"]
[352,"温柔瑶ゞ","https://wx.qlogo.cn/mmopen/vi_32/PxsXafzNWxxFKWrMF64rytbASFf9yXlh1vdx5VictebDhM2LIXuF55fO1Xh2X5GdK86SWqFgzgWVVH3ozEkSHPg/132"]
[353,"勿忘我","https://wx.qlogo.cn/mmopen/vi_32/RvKkuqeKpDUvGryeEeQGWISiao0cfTic6icMBgdOMADVHCu5hdWANicNNSIvm8GtMLIibyzPmFicZ3efBgQOlC4MoleA/132"]
[354,"施星意","https://wx.qlogo.cn/mmopen/vi_32/DYAIOgq83erGyUlUk2PGKulJZ7ibM6NAVwIs9ibdrQBBJ9jAz68MEPpmx7OElaxtuicY6wGfTO0ZLZ4kBOHQpu2icw/132"]
[355,"相伴一生","https://wx.qlogo.cn/mmopen/vi_32/8bahftPP2aviclF0FwRg5KbPsJYnPqKhVbe2GgzlYutVo9U7oVMX1b89hLH0pIqWk8MHViaE6vEe19ibS05JVbHsg/132"]
[356,"丫头","https://wx.qlogo.cn/mmopen/vi_32/Oee5dXuIHCoKYDl7JxcicpuMdXIdcTWQYrs5KvEjibSjwkuW3icN6iaMaMbOcslfSlf9Fc0czHeXkOqMiawicmIhheCg/132"]
[357,"生活不易，全靠演技","https://wx.qlogo.cn/mmopen/vi_32/EwB74dR4cgodCZ3utCqSRWVTe8S4lbTneLBxDjD60aE07GI7yhZe7SOibmOWe9nzKT2DHY2tloQl0Nj7YPpU3jw/132"]
[358,"开开心心","https://wx.qlogo.cn/mmopen/vi_32/UKDpAM4zo4iaIjBOwmC33a6GnA7m4lfkCdNSnMiaV9yeeGAc29c8UefnyydH4IabFR00rN3CRdfRaUibicsxwPknUA/132"]
[359,"张嘉译","https://wx.qlogo.cn/mmopen/vi_32/7F7TZwdDKVv2NkHtfwYicALttPJ8ZX9MTyG7rqibexVGuHJOLBbQ8Q0TDLk7W6vGeWCAoyUficWbfQzzJT38yy43Q/132"]
[360,"同学别闹","https://wx.qlogo.cn/mmopen/vi_32/Q0j4TwGTfTI9X140JXPuaD8FGheWqu6wuFkCUiaDh14I4nICehZicwLCfdaAg9l0o791GjJkMfMPKxuMNFsa0Wfg/132"]
[361,"徐梦晨816","https://wx.qlogo.cn/mmopen/vi_32/Q0j4TwGTfTJb09HUzickKIicmHAfsPN6hEicHZnV8vOGicJggrBQ8s9qwiaMACZWdPq5qicXU2pvufOKnGQPUZmLwzhA/132"]
[362,"魏振江","https://wx.qlogo.cn/mmopen/vi_32/orXO4rcbjhhbkNDib2Fpep7FLlRImkpf8ia10MvG7Y4QhsSzkQBWZTC36Z3df4M5ONp5kMb8PGWupRzhv0UP5DlA/132"]
[363,"A我胖我自信","https://wx.qlogo.cn/mmopen/vi_32/Q0j4TwGTfTJlIMd1sibVXWfNfzupXIF3K3LFgQEtMCwc29eVmic9JpriaqCgMyv0M1ZjWuSqsK61qVU6g7dUAlkOA/132"]
[364,"宝爷","https://wx.qlogo.cn/mmopen/vi_32/8pHNatiaLiapJRtUVIKLia9EWJ0WPd0BteGgrySsNJZN0gKPPbdSfAAwW4A5oqEEBs21ZMAH343c9eKuibXDlh9vWg/132"]
[365,"神秘人","https://wx.qlogo.cn/mmopen/vi_32/EmE9keTMmQGNw7ibNicCfqu2wboGNTibInNlKqyE9BfHXlXV8R57t61TdVNwxXrTdZN9RnIVrT0m6baYB5tzgFb1A/132"]
[366,"。。，，！","https://wx.qlogo.cn/mmopen/vi_32/jBy8W5IyGwicB6QaRZXfB34Gz15NK4ZhViaBz81Kic2iahzGN5WRKuCyab6QSwMFWUQsMnibEMnaKZoO8HFTDQKbmjQ/132"]
[367,"兲天幵乀心","https://wx.qlogo.cn/mmopen/vi_32/aA4ZbHAhbRaichc8sibythu2QMafmEiag4HeXGLs8rDHxHTv5ibhTJxfrh8eoRX0oUp1If5ibQQpNoTL8YjAdLxrvicA/132"]
[368,"南栀","https://wx.qlogo.cn/mmopen/vi_32/DYAIOgq83eoDgyV9r2Oyic5vBLfgVlkCq4nYX8kYV3TJcpz3Pu7Yu9qHtOEWMPNUjv37TsCgNibE35gHzXLcEBcg/132"]
[369,"^O^","https://wx.qlogo.cn/mmopen/vi_32/Q0j4TwGTfTIpYoDe6gaZwRmibpXTfcTAw9bQIXNkTfc7h9rSNGpZfKL24DvouxuXqroRpfASEYpwuibGyUH56Elw/132"]
[370,"Yan","https://wx.qlogo.cn/mmopen/vi_32/pFxD9YBSox41KdUUVuo1JNFDlbbQiaviaUXNT1xAIqbXGYqWEiaam3qJxUbJC6AiaDGZAxPPyk0FO7t2QFibYia1wzJg/132"]
[371,"四季平安","https://wx.qlogo.cn/mmopen/vi_32/ic4CA0LpVxvzs1iamjXpy7vGbx3EF1z8AUQoE4PS9hibwoOYBwjuw5icA6ib5ZGNOn5ibgH8tdffhwOQEdK5jBpKuoHA/132"]
[372,"奋斗","https://wx.qlogo.cn/mmopen/vi_32/M8pharAAQmYuic3ibnLWF8shRErlUkQM0vn7rjBGe8BmMhrWUaqB24dGS6AtfqPBWXxTY1N7eAUeobV1avFHP8vA/132"]
[373,"兰兰","https://wx.qlogo.cn/mmopen/vi_32/Mm2t9EHvYFkYvtukCicd4en1L3Cnh6zIfnyTrTXOx8aNJN3Ga24x9Td43zyhX4kWgXVhEQfTv3auPH9v7csP06g/132"]
[374,"嘿狼15505732269","https://wx.qlogo.cn/mmopen/vi_32/Q0j4TwGTfTKTibjBc8HvSsHoyCIgoNsJJ0DsTmzE9Svj2LAY3kbVyazR50A4Gj61UCg9vrlywzA0EmOhwFtuuwg/132"]
[375,"Duang~","https://wx.qlogo.cn/mmopen/vi_32/hEdMDcwvo2fOH3bUvdwHaMVLuia7WRfdmOgnrx0z1Fm8kBwZI3GZ7bbVrmuVyhSqIWBtus1PCibb8L0DvAwvkwUA/132"]
[376,"戚薛婷","https://wx.qlogo.cn/mmopen/vi_32/uddTAFibKFkqsC1PPJS2bbRBiblSMNesUA4Qaphu3iaIeYCH1O7f600VRuOCTj3B7kQoSVYSSWIJz7SEF5EZEibCdg/132"]
[377,"钰钰","https://wx.qlogo.cn/mmopen/vi_32/Q0j4TwGTfTJyPent9n4pkw28YmL7HiavQDxlorTMqoNpdia56lX5JZLeuZDvSGZe3AqW2H0Piaw9ianGk24ibcs4icCw/132"]
[378,"刘宇婷家长，刘承恩家长","https://wx.qlogo.cn/mmopen/vi_32/DYAIOgq83eqk0vIqVVX9p8S32uZwxVvRmgjrnQl74D5t7mXyNm1ycVQQ4jBLXv6oLxhuMQSLyDta9vqjialT7GQ/132"]
[379,"忘羡","https://wx.qlogo.cn/mmopen/vi_32/Fia7Fq6n8BPrLibz011dW8cdwz9A8g9pfFHlmnfnkwEaxREpC6RtX04eT2B7fNgPld97XaFfnjeVrpicZaHeDSwBg/132"]
[380,"w d y","https://wx.qlogo.cn/mmopen/vi_32/Q0j4TwGTfTL32WqcHQq2llzibc5HRHScvibLNYFibNjhP2AGS8vk3cKZF4vlGdiamR8hQibU2DZaibiamY0mKnlG2kkFQ/132"]
[381,"等待","https://wx.qlogo.cn/mmopen/vi_32/HDsFkGjuujvAZg5mVbriaaO6Eb9wia1yypJRicecK31l7B8CZ2hXfibVHocatuTlXewS552ib2C74iaZZszC1YueNiaxw/132"]
[382,"雷震天下","https://wx.qlogo.cn/mmopen/vi_32/CEWufvUZXsW1Sg6L79UENbI3vxR1wRl0CKGRpnLpfHVTAAk9xplibiah0DklyHcicibNHcqlgOpdFGQwNAZO3UKjHw/132"]
[383,"陈雅静","https://wx.qlogo.cn/mmopen/vi_32/Q0j4TwGTfTKia5OzUUIiaQcvA2BlSHJlJmPo7Z7lDrp9YSrSHZicZAVnPu8qgI3IpHgObUmrTHAhDNS5z7MJMU5og/132"]
[384,"唯一","https://wx.qlogo.cn/mmopen/vi_32/GxmlpqVtpgSvydxhshoL2Rp0cqU0XpBYaUujknufPKiatnXFDExibNa924YxFRm4TkeNIDofEHfibT0xcVDWyf3Dg/132"]
[385,"上善若水","https://wx.qlogo.cn/mmopen/vi_32/Q0j4TwGTfTIjVFGRMzgNyW6moUVxibmia6tWYrBb3KGcmmf5oxzedricq2gtFFWD4rfhV2ibiaKIHC97fZz0liaEonww/132"]
[386,"胡继红","https://wx.qlogo.cn/mmopen/vi_32/ReL7mGZVwjFZukGIUEibz65eBCI5g6ZvkVDTQqUbKXT3gLibWNMlT30M8XqIhZYAyzk0AO2qwcicD2CmfkEhvuZJQ/132"]
[387,"张钟慧","https://wx.qlogo.cn/mmopen/vi_32/Q0j4TwGTfTITWhGqj6macJ1MlgF3TQy3pPXefcf6HP5vXZLc7A0ibXJHy5O7XbS5jz5ibwI59mttggtMMu33521A/132"]
[388,"℡ 柒月","https://wx.qlogo.cn/mmopen/vi_32/Q0j4TwGTfTI9DfV65IEqeaNaWHOmXl6oCw3Fxic2iassXP3K1Cs9usjv7mEl5NjfV37dGRTLSVYVJBQU5HLicoTzA/132"]
[389,"画一方禁地，囚我于无期。","https://wx.qlogo.cn/mmopen/vi_32/Q0j4TwGTfTJYeNicG69OHuQdwh5R18U7lYfrxhqG8pvRQ2jCS4icbo3pwR8tngS83GhVIhRdnb22zkw53wc4tczA/132"]
[390,"，，时子涵。.....","https://wx.qlogo.cn/mmopen/vi_32/U6jjtic4JJicNeY7y4dzfyiaMGB6IxW0NOITNGqQWs5nX7HobjuHE5FhyXICEjTdHlVSDJsDt1YbEyZVA2PcE8Z9w/132"]
[391,"初夏微凉","https://wx.qlogo.cn/mmopen/vi_32/Q0j4TwGTfTK9QgMJF3tzxXSevh6SicAoqictkIiaBSPuPYbSwHnLK9ks1X78mIXibOh1C3pBJuYnicrzUtVX18ibwHSQ/132"]
[392,"开心就好","https://wx.qlogo.cn/mmopen/vi_32/nMg3EGicm0bbZeLsadiaTr4RIBH9rhSib34xCsezrqCXetd1QcuFnia7cawdicgcVrILkicM7VxiaX3b9GtXVa5UoygCw/132"]
[393,"家友电器","https://wx.qlogo.cn/mmopen/vi_32/FMZEkhXgDpLYVAibnpb0rFicFqx40D4JCLbsJ0l7Gn2Wq2eA0NeibvVdzpa5kRic64njKnrSKTIaVQpYmV9Dpb2ibsw/132"]
[394,"满天星","https://wx.qlogo.cn/mmopen/vi_32/072o0Ov3iajo9WhGunb69T6iaLdNzfRBTSdhAI9MQ6MQ9kc8vynEbo2HG1A35NwDUpMxDAcPCbtNQTYLTBN4uibkw/132"]
[395,"冷遇","https://wx.qlogo.cn/mmopen/vi_32/joicOEEjiaG1vHDIPOfrHtRJP2rIvWHyhSz5icXDBia9w6ibic5oial4icBy0LhYJkhVP1Ye4XV4QDVaR5K2k71leKZfPw/132"]
[396,"相守相伴","https://wx.qlogo.cn/mmopen/vi_32/I4ibibEIkWGBfQBzcAHrWiaCZe0fQoBPtJo5nL5Rc1VpOMbDCG8vXEY0v2LGuL8DabHC58cicgYggKn3O0wzetrEmw/132"]
[397,"Domineering","https://wx.qlogo.cn/mmopen/vi_32/ug6ztzqgJlpBKfOpKmGcMYvsjbrN79TcUwwUOvMX64uAV9NEv8iayofd8P92vjib3kF7uUuicfMs8TaRXvKjMlfZQ/132"]
[398,"荷塘月色","https://wx.qlogo.cn/mmopen/vi_32/7tvMsoodFGfpBUxeqDZ9xoKhAPWCEfjvwRWjCtsPACdFIt5Vel0v6bJD72hiaAKpbAKAxDGrticcpvCk3E4Jn98w/132"]
[399,"ブ氵心晴","https://wx.qlogo.cn/mmopen/vi_32/DYAIOgq83eqe4mNIZ6Z6bG6xYH9jD8k6Nhd5PSeAw6MKoXNq7vPNWNoFibMELQL3R8lPTzQXiaeWPjdBjiaK02k4A/132"]
[400,"A沈晓松","https://wx.qlogo.cn/mmopen/vi_32/Q0j4TwGTfTL4MlrJ3edLxD1vtX952YGNdWPI5WSoYIb7AHbBbxsk8s1icRTJIiaabIoiblMO5C3L6aUmXBbc1SYww/132"]
[401,"朱年喜","https://wx.qlogo.cn/mmopen/vi_32/HHib31O7vVGUCyammqCQanuwATgcbubIbMNlHZqKDGSd8RODeCar9CTjEQy2UKuAR1mhMBwQQ7iajjRvzYOBhPxg/132"]
[402,"风，没有神的过往","https://wx.qlogo.cn/mmopen/vi_32/Qq9M5b2s8Fiaupqv9dYiawXC7wCUiaBC23t0tVqxaKRADK1amPAaKmen8a3lyuDNUssradlqvbib35mPibRr5e6NwBw/132"]
[403,"楠","https://wx.qlogo.cn/mmopen/vi_32/aiaqDCkqEoDCoDuLL8FicynZm7G26h7kEHrSNtsL4RSA5ficdWUYXwBxcbSHib1ibtQpianLTektLnZeTlTTdXlzjc3Q/132"]
[404,"五味人生","https://wx.qlogo.cn/mmopen/vi_32/DYAIOgq83eozeYL3GDsfBlHoOs5fbweaWwnj2FssF73L2g7ic8aFv7cNw8pylmvG0z16ickVJawWIGXmh1icicnVVQ/132"]
[405,"what？","https://wx.qlogo.cn/mmopen/vi_32/ly3xana9KAu3jiaLxiazzDuYtnH2UvUcc4ckG4cCEREAmBLVTuueHuI5W1QJVVRmia4UJIplTVWYXVjuffXS0XqjA/132"]
[406,"敏敏","https://wx.qlogo.cn/mmopen/vi_32/ZJ5zJc0Ge9KZbbQPW8WGBOOHddriaicNAaibWp15IqZicgLV19cFnMCMTBibbOg2o7AkhUXK5dkvTfIrJLeZ91knaYA/132"]
[407,"定格我的少女范","https://wx.qlogo.cn/mmopen/vi_32/561Wltr2H0nP4IWVdoxxeC1icq3M5JVJS1OX9mw2llrmoN2ia3Pn3sLlIJEzgP2uj8EgeNib60IsUicMEskFhK2gnw/132"]
[408,"傻丫头","https://wx.qlogo.cn/mmopen/vi_32/pnUmr6EAMzTpiaUpJ57hCzWJM2HfRVX93ibnfp6gseakyGrUhSPf9u9dt0JFeva2F02HMiaYzpvIw4Bib3CFOOIic8Q/132"]
[409,"马正位","https://wx.qlogo.cn/mmopen/vi_32/gDCXlkJeaWVSdYCf4qjibD9lt97AZBNXriccwo59jAI6YAaicJAHkbABlmSYGianAy6YvzVxDsk0ZgQCicxicgaVLQZA/132"]
[410,"离殇","https://wx.qlogo.cn/mmopen/vi_32/XibYQBdfbT7IdqvyajsFpygXvnP3gH7j59nruyRlfPw3nE5Y6pXnupIUW2JJONW1kBmv79BWQcPN0iaaJh00Ghmw/132"]
[411,"旭日东升","https://wx.qlogo.cn/mmopen/vi_32/SfUlZwJaicSuibZ2OQ3iamY0qiciaogLluH5PByYzLPe81QNn9dVWQbomZndD5j8YJA3TsoxrichkLAbA87HUm29iap1A/132"]
[412,"啊好","https://wx.qlogo.cn/mmopen/vi_32/AaibHVFics45OLlG5Z1WCsFElE6VEws24iavSeicAxicbowpnUUcxpaC96cbBtBK9LhoHqOthcjta3agSW31jYyHChQ/132"]
[413,"朱洪萱","https://wx.qlogo.cn/mmopen/vi_32/PxsXafzNWxxFKWrMF64rygSsUse99aeFu1w0YSAQQGqhhXVicEI0ic2icstS6u5ylW1VavAvVmxoicseflicSQuQ3GA/132"]
[414,"小小雯","https://wx.qlogo.cn/mmopen/vi_32/CwmgT2BIjaDK5jib5gUd5HkVQ7m4y1BbJ7rtJcIWw6GqLyDh9FhvrFmZVtywHQBCADZt5xMwhaFLr2clicRvhG0w/132"]
[415,"春暖花开","https://wx.qlogo.cn/mmopen/vi_32/74FRCyEPiaVYNHgvmicZN9ef099WTADp9iaeh7llYCic7hMNM3u3bRXOeuMOaByseibWYWibU06iatl1ysr2luUVh1QDg/132"]
[416,"毛毛","https://wx.qlogo.cn/mmopen/vi_32/DYAIOgq83epM3T6J4Qj0sqYkYBvLQfvaamxFgYDs0eVLp4bL5TRvPcBAghSM6bOEd4bBPQcdQUy4ibrOO9PfZdQ/132"]
[417,"顺其自然","https://wx.qlogo.cn/mmopen/vi_32/ZzH9FID2ESt07sK6bOXvxfwfPH3dG3uU88T3r2licXCgyorPia0sR47wiabXgQibAcS4wNtkhTkoEzgORicV0gW3ycQ/132"]
[418,"程成","https://wx.qlogo.cn/mmopen/vi_32/HjwKy14XmjK5EaD5O5YnPrR9MRLQGzvm8Kg2RZ2JopgvdUy4GAnjdBayYHOW2DCRgVbq8c4v8z5q1jPbSQFEaw/132"]
[419,"孙凌云","https://wx.qlogo.cn/mmopen/vi_32/DYAIOgq83eoUlR8EWYGknAGhvOwzXX3DCYiawqf6XEA3xIz8x6wg28icsTwCccVXNlnnMFTMicibqDEef1iaMmEkGHg/132"]
[420,"永往直前！","https://wx.qlogo.cn/mmopen/vi_32/MfrdbsWT9PNJib6Lt5s7wZO460Ty5ib5Blj1a7cjibblAwiaBCMrAewL6FJBjZOnUycFdb6MdEwePia0oQ0wyQMmqiaA/132"]
[421,"A ～ 幸 福  ☞  V I P","https://wx.qlogo.cn/mmopen/vi_32/Q0j4TwGTfTLiaYmXRPV19PiaKLFrycdfEz1x7aftY74XnNSPrbyHLY7iaG4DNJVhvhU7ia2jLdMmiaxqtQzOTPNznJg/132"]
[422,"魅雪紫箩","https://wx.qlogo.cn/mmopen/vi_32/YjVkPt2gFdj0CC0baAOXGObibcdYOBpEsKgiaZa5jQKp4zffyLraQe3ExSx7nbuzn8stcsnERvccvuep1gLeaia1w/132"]
[423,"徐娅玲","https://wx.qlogo.cn/mmopen/vi_32/QAicByIiaNqEbDGe28dqUIcT7qcEmU4JG2pY8YY8W9EPKibw1AhPNib8D9VxukTgoPgg6iaFt8hszwdsqZpq6nuXiaow/132"]
[424,"可心","https://wx.qlogo.cn/mmopen/vi_32/xKDwzIyzW2dc9Zu6meNWqxrlibNG43eS4iaIFYgrwOfb3FicaOeHl6SyB2XsI4qsJCFpUHKhUkm1XBneJaQ5Zvnww/132"]
[425,"啊肥鴻","https://wx.qlogo.cn/mmopen/vi_32/Q0j4TwGTfTJwfjpEd7GnowUSfNP9JbtOVYFiclQ1CKeXeVEon4nbDHD5W2lXCIr31jKHOa2mGP1ulQ6T3UZomQQ/132"]
[426,"启航","https://wx.qlogo.cn/mmopen/vi_32/UvwniaCAqF1j3n7T5QgoYkqJYbfUgPWmHtVp9WCIuXo5CbzxRopmgl49GYcyeYcC0LhTphAFnXI9a1EgpajSGfQ/132"]
[427,"今非昔比","https://wx.qlogo.cn/mmopen/vi_32/Q0j4TwGTfTI84rbfFIKs6PBn4wLR9A8j9tibW9p4k69NZTEpibwzfLEMfka3vJL0d7ls3y0lzG7zYrPJV9pSh1hA/132"]
[428,"流星","https://wx.qlogo.cn/mmopen/vi_32/B69CIibqG0hQQvlch3Dxbpbbv8pTs0fHlz5U5XKtd1GAzZdAO0ZxgP6oeRNrZACpH9zialVVia9Kpm31TDOlfjAww/132"]
[429,"淡泊明智","https://wx.qlogo.cn/mmopen/vi_32/spjkMr78ic8fVrLEtJwesOFDSGccuP8u0cp1tqeSqaavrq6jloOUKmHic2LiakhvlDoPkhPnCShia05NlFNbnYm2qg/132"]
[430,"AA玫瑰","https://wx.qlogo.cn/mmopen/vi_32/Q0j4TwGTfTL9R2dOk6mSxtdiaXcP2neoPoKXcpE5roEVfKEATNtblKSxx2mPPDRic6t0XUoVEfrlmBFCMcY0LUjQ/132"]
[431,"瞧你那损出","https://wx.qlogo.cn/mmopen/vi_32/SwdME9OQE8mIDabicibeEloHURjSbaOQsfncwMDxZ2x7jaGt1ZRekvWIxj2Cy7V2r7GevryT30jKa6kraa79zZag/132"]
[432,"小精灵","https://wx.qlogo.cn/mmopen/vi_32/Q0j4TwGTfTJyNJCibCAUoZEmuoLibiaI25glqJ9HsiaEWbcFulI8NrG3BLn1FkQNkyqwhYPEENn6kKypDUvSwNbr0g/132"]
[433,"贩梦少女","https://wx.qlogo.cn/mmopen/vi_32/8XbYiaT3OPdcFVNHMwKEPTakRO5rC4R2nXAvoCM3Or7nlGD9LgvibibPjbU8Cml2tEqACwcLmicDlcIP6I1ARianMMQ/132"]
[434,"此微已换人，原主人的人主动删","https://wx.qlogo.cn/mmopen/vi_32/3VbyLO3eiaEDaAIYzCJMx7cWracgycrb2Qib86GysSRa3yTxPQp1s25xuUibASfxF9DiaLiaKc1gDCxTlzn0HJmVL2Q/132"]
[435,"友德","https://wx.qlogo.cn/mmopen/vi_32/Nib5gdqOh3YHfSTBIEySfBOic0OD5Swmf0PjicnMr7HxzBJB9nh2T7DeJ2ZpJGt0S5RTKUwIyW67kicYCg4iaUKIayA/132"]
[436,"辉","https://wx.qlogo.cn/mmopen/vi_32/yAibHerBFSdOZVmmbwDAibktjpCbhQuibSialpPOPMFMIrxRUiaaZDomwAWL3JftFF7pc6jrN2MwQAYnl44Zvdic8Hgw/132"]
[437,"小燕子","https://wx.qlogo.cn/mmopen/vi_32/zR93Q6CoHsiclrdoDiblIsbBDG7RG4Pfw0daH78NcPzdnFDD29YYwV9PqF8rRdgLk0q7R3icjjg3CSLkv58eefIgw/132"]
[438,"好名字可以让你的朋友更容易记住你","https://wx.qlogo.cn/mmopen/vi_32/Q0j4TwGTfTJKzIcE9GD5BbteiaHyM7KgQHWzmib2cEaUT5JVyqTpHg3LkD2OZ5ibTR6mHtgNgOj2xu7cQP28jGDtw/132"]
[439,"非君莫属","https://wx.qlogo.cn/mmopen/vi_32/icUd7IStrGqQDuQKmm8d3Y5IpiamXAaLBjK7tk2NRnMicBHhNkrppTdoDflmGunU6Bvm8lgFh4XpbLxPdAgq8YI8g/132"]
[440,"   艳琴    ","https://wx.qlogo.cn/mmopen/vi_32/Q0j4TwGTfTLVJnl7nwO0rAF3LTj7MOPrRdtJtqnfkbFlGJCbJ3SOIqrbCNOn7ytxfnG1oEX7gicnJNpiczqdNcvA/132"]
[441,"流星","https://wx.qlogo.cn/mmopen/vi_32/GgSlzReQicnEhkZ5hGibic3a8qjRzTPA6IqCUerG45WiahkZxEBPr6ekk5ghQ6dD47Dib2aicwGahL0XnnG0uiauGgtLQ/132"]
[442,"爱哭的小女孩","https://wx.qlogo.cn/mmopen/vi_32/ZmIcra83qK8bvGNDW5jFExdBh1tJ7jyLVsQJUfD9FK5MOic0iabNur2nhxUolffxwPQHdLSs0iaqicW74cEpXEpz0w/132"]
[443,"熊猫","https://wx.qlogo.cn/mmopen/vi_32/YcJwGK82PoGwYJv9rNsVVKjiaibicH6Yprmib0ZtZsdadbBHJfQOqk4euIpU3sv6EnMd7qGM3HLgg2zAOLpN2LVrTQ/132"]
[444,"何雅琪琪","https://wx.qlogo.cn/mmopen/vi_32/2JmAoPEr8E1M9lz4N2LibVuUxmXWIoqDy9W5bg7MgV0BDWRERk1CGBmV6HSZ1nIWBCTXv9gicdRibL1ajaHpUhRPw/132"]
[445,"FSL佛山照明诚信共赢13938846686","https://wx.qlogo.cn/mmopen/vi_32/GibeBia0VHicribSEKOQCIaW7KnSzORvD3W01hKL4GTeiajn1IgCDHicnU5HOte4xHIwH36NptD4vTQzuKGHDecEZ7ibA/132"]
[446,"人生","https://wx.qlogo.cn/mmopen/vi_32/DYAIOgq83eproQsmb6cxibX7IK3dIoYrcVxf8QXj0Bquo0PdFQhP5muqc89LgafqjWuzd7NO7B5onuYib6bAuoPQ/132"]
[447,"风中浦公英","https://wx.qlogo.cn/mmopen/vi_32/ENluEtFBHRibfiaOz3OSXXqu9WibibRqL7Ipgia6eicrSKRf6k6chrIx9U9GWEdqMORicflfEPxgh7jOqbwqQHb0ycc0A/132"]
[448,"秘密","https://wx.qlogo.cn/mmopen/vi_32/Q0j4TwGTfTLkia03NH4OTK40X9Hpp2HgZ5O89YicUWhO9QZ4vLYNogC33k1uTvkmSq95LLVCb7A4JR5icULql8XUg/132"]
[449,"有缘人","https://wx.qlogo.cn/mmopen/vi_32/Q0j4TwGTfTLhRC1qcNYdjW3tskFCKgjmBicwe9NEKGwwXk6naG54T2E13jNj5H6ahFMvNkgqfFfdfsFQpibFqIfQ/132"]
[450,"风中奇缘","https://wx.qlogo.cn/mmopen/vi_32/amLWwmab78o8ibRoehDcmMvOfrk1UkibYCmCRqY7m7VLEiaxeW3icYgBlhLXN6FDibYBlvYYmG3f0sJuFf7W4Jln2kw/132"]
[451,"务里花","https://wx.qlogo.cn/mmopen/vi_32/Q0j4TwGTfTKXuPvrledibmSgmeOqdQ3Wf1HsrscRK74RkibFfswicib04v7N4sBCBCFiakSeHkEhTt7ibF1c3Q0Wtq9Q/132"]
[452,"敏敏","https://wx.qlogo.cn/mmopen/vi_32/zTibWJ4F4c7Hfn9lrQjCGnllvu45U9pZsMKDd5ORA9jENI3IXPlpCZzkMhYnJGt7a01AEMmebkJkSWrynl5RcGw/132"]
[453,"LXM","https://wx.qlogo.cn/mmopen/vi_32/DYAIOgq83eqicM6ADNrBrUJfMtEGxZLaPtqibGjkfFUgLjeiauSuv92a1w5eUk3UURWicn6SAzXkRkQsoeUzy1q9Ag/132"]
[454,"欲望","https://wx.qlogo.cn/mmopen/vi_32/sA0RNsicQjJmibsOq4uq5u3pnTUUTM1hy5lbSxcN1g5iazf8MmbibNTPy2HznrUuObiaq69s60ZpFpXxfUjFKQ08g0A/132"]
[455,"臭豪","https://wx.qlogo.cn/mmopen/vi_32/5iaEdSOXSjcNXxbv9sjcy0keZLx84RBWZQLRevXQuyhRecX42Liajs5jNhRXiceSNY2W5wEoEJUNiazghmPpeFbrCw/132"]
[456,"梦在夏天","https://wx.qlogo.cn/mmopen/vi_32/VFGl3LEqSG5u0YK2YiafWXmrNiaERnbpoEib20fvF3pQlYribFBpvh3IknLGAbpP7HDUOhSHibOxhOE4js5hLEMMOdA/132"]
[457,"北冥有鱼","https://wx.qlogo.cn/mmopen/vi_32/iceUpsJQjKsk1sbB4rxMYM3hNzKeR2LdW62Txyp975JK83XznNdl9yuw2oN3axyYUCXzWGnHyAjM4Faf9DgOoyQ/132"]
[458,"阳笑","https://wx.qlogo.cn/mmopen/vi_32/DYAIOgq83erBeLNJ6rQXQjkmibYcpZvbsdiaMPTapTOLMSwMwhFjENbIYSj8VwbppPG0KrZ1qvOPclCJyuJNLftw/132"]
[459,"叶峰","https://wx.qlogo.cn/mmopen/vi_32/dJVeuF2AhaZgAxQqJWXlg8GjLcMAZQQ9KLwqnsiaQCflIhdMibjUcoN204hPMOPCOLs1BviciaonYV44oPVkeqtiavQ/132"]
[460,"王振豪","https://wx.qlogo.cn/mmopen/vi_32/PJzt9Hd3a6jial9pDcxpy3R6jcXU8ue4gesZRoUgibJo3a2mELa3GuCgLibkUAsMuxs865OYFKbEALVtq9AjXQbmg/132"]
[461,"峰哥","https://wx.qlogo.cn/mmopen/vi_32/Q0j4TwGTfTJh8zP773uF1QFW2xicHsQyjXh3jXc3l1dYJjia4biafY4VMdk5jXvJt3U6p6oCVEQQiaY87XR9vaEMmw/132"]
[462,"小公主","https://wx.qlogo.cn/mmopen/vi_32/DYAIOgq83eoLC4wIBicEsp7vwMCrvrkMicdMuFWdtEvgg8PgrPpuGkvLHJcanjNMIv9xPHtnJ9rFEIUibeKHIqF7A/132"]
[463,"开心就好","https://wx.qlogo.cn/mmopen/vi_32/gnubyuV2Z7ePJ5joiaKvDTLGDFhO93I7zNWRfDAD3Dp1tSHpKZrBgzvUdpVlENSCoOo7x4Af3ibZQxERNgBlTmEw/132"]
[464,"朦胧","https://wx.qlogo.cn/mmopen/vi_32/Q0j4TwGTfTI5cU86gOnj4ofShMictqHumaSkLLebs1matm2N8CEicpIjlw5daLGj96NviadiajSj7spZyQKpGicpsNA/132"]
[465,"吕慧娜18039695861","https://wx.qlogo.cn/mmopen/vi_32/Q0j4TwGTfTKBAgCziaJlpY4xZgjAWYFia1sic8GZdaIYOmKbu4b4HUqG4dZ7aeRIPiaj8pH4URstgkpzMA0YO34GNw/132"]
[466,"小桃","https://wx.qlogo.cn/mmopen/vi_32/33DMWDB7ZBkEtbYicTk85lxa3NBVvgPtcdmvYib59KPpVKwIcK8amT0NJOP1icqnREAL4ibY8ymN4AwwzVYSNwDTRw/132"]
[467,"天佑","https://wx.qlogo.cn/mmopen/vi_32/cAg5XpttFibFbcs4kOWlCXm2eNPJdUVQcsaIRZAVribC7iaJViayHRNwWlwtFb0Vdm4KmwnmsGu5NlQqzJEOWUqQxQ/132"]
[468,"小梅","https://wx.qlogo.cn/mmopen/vi_32/QmvZrib3p30Nt75ibvNmicKJhswsgibso67n5W7c2ItWSKTxF2wFM1VxiaYTA3z3vdCUOvYdfic03RZBabhFiaYd1SDBA/132"]
[469,"树懒","https://wx.qlogo.cn/mmopen/vi_32/BbAiavnju17ywehSKhMiavtzcaGOE7HkibOulzMnAEK7BUmFsKN5F327txNE8EDuSYmYvm0ibSOlw6mlgN82EY103g/132"]
[470,"雨","https://wx.qlogo.cn/mmopen/vi_32/DYAIOgq83eq2XG6AhmQBuxff9JkS906ibibfoKmDIOic8JUdJFcJc4FCrX5CNj6UXOicOaicdngJR9Zzn2kImhnwyPg/132"]
[471,"晶莹","https://wx.qlogo.cn/mmopen/vi_32/DYAIOgq83epDicoowibxBqJTXic6J7yLbXngJTibtyK8ib8Fg84icfibPYRqUXMJQ98jcF7uhaCYen0cv49ibELUl1ia2yQ/132"]
[472,"王誉森妈妈","https://wx.qlogo.cn/mmopen/vi_32/05tPoOriam2XuibSfZG3ibk8a1fc2NPFXodJGVlupTcsEVeCKOicicVPTD0tVkSDf63ziaibJvlhhy5wxdB2QWcqcL4pw/132"]
[473,"善良的人","https://wx.qlogo.cn/mmopen/vi_32/v1I1oPvj5Y7pHDyGNVaxxbCKmg2yMq4RjtX8HDdSCezkVibpGxnXmQ2qvcwkRYBgibBahWZQ0cpYVxbABWV5DibpA/132"]
[474,"祺宝","https://wx.qlogo.cn/mmopen/vi_32/j4wXVcJ0MYlwJd5ScEcbs7zFU8ly8x3YZ5j7ibeqE04uJMTRNzD2oLicZyH6D9bR69SGCpMGYnnibpOIeCXmj1zicg/132"]
[475,"颖琳","https://wx.qlogo.cn/mmopen/vi_32/uPcj4HhpuNZNptV0KTudg6uibEBkEJBE9C58hYUGNyQRz9h6E3SCecia22XU6XldUT6f493noibYIFN53efYl6gxw/132"]
[476,"醉","https://wx.qlogo.cn/mmopen/vi_32/wr3qiaXYeAaLHyPBArO8Thm202DhHVb16GLHVHkhFUvbO7oT70ibnJibT7ASnib9ygXtM22ULtR4N4xAs3K7tlREow/132"]
[477,"依然","https://wx.qlogo.cn/mmopen/vi_32/c1GwdcyMWLfETgSZaZfOMj3icetzxwld17CRPq5YbCjEnnia5YQyS35MH6mC7VzcdKKe17KNf8LSkfa4Ah1RkTxQ/132"]
[478,"瓷砖批发康德梅","https://wx.qlogo.cn/mmopen/vi_32/hBbNOLicWdz5iaPU6icM6YkTViaA1qwCmcbk9ndRCgUBX7FOpdE4CHqFKuD3mI9jqL9NJdicnicbXHCLgNleR0xWKib1Q/132"]
[479,"HSQ","https://wx.qlogo.cn/mmopen/vi_32/pJJpwhFRpXlcDqFN5oRgEDT1x14r1sfTf3f2mNQ0MQFdHf08dDqUnBltbudLsspIeECKYsibkHGYPibUlgwOCUnA/132"]
[480,"喵叽","https://wx.qlogo.cn/mmopen/vi_32/SVNjelt562UK5sba1O30tErzHD0YCtSW3RibiaiacSgU3xKI5UXaN5fcKl7BicrdjvsKWPUfdLCx0yUSMAZyKnpf5g/132"]
[481,"吴宇鑫","https://wx.qlogo.cn/mmopen/vi_32/PuJS6Du9fqyDOrAibdiaT0p4wf2na3tVw9iaAazv9GerGib2iawMKhVrkluayg82IZCrLH5CrHvb18wIy099L4TIKXw/132"]
[482,"郑俊芬","https://wx.qlogo.cn/mmopen/vi_32/SQibQwxTGZ0lUpktnv9aicxyUdVYFCchAiczL0a3XVKakwJkFsBabCZajE29NqWHMbjGNG9xA2TBHhFMrJF7IPYBA/132"]
[483,"野","https://wx.qlogo.cn/mmopen/vi_32/ibwZsFuAHK0Cu7qVYLiatMABggI8SSWUW7lJSAbM2ZQibgciaicHHLSgPicWeQ3hk8tscbJgv9aud6YxMUMIOYStpekg/132"]
[484,"꧁ 浅墨丶时光꧂","https://wx.qlogo.cn/mmopen/vi_32/bHwYNKCQic5fZibX8OiclcmGyxYv20AiczIt8QnpAMDLnxL2UFTgUP0nqmexOPkkvWZBAmdOMJgen1GUNF3eoI5lXA/132"]
[485,"筱爷","https://wx.qlogo.cn/mmopen/vi_32/Q0j4TwGTfTIiaD9Q7TzaMhanczVicEq8bFFZ13s4okee6JWo7QFAAMpcQtYjOKBuVjTnQmS5bX5NemyCWOsHayYA/132"]
[486,"薛先生","https://wx.qlogo.cn/mmopen/vi_32/DYAIOgq83epMljRGBCLVcdNNt2tbfF4pHH7OC3OqI3zGkdwbIp0qsLRwzVlXQiaIeT4luse55qiaJal2pm3Lk0SA/132"]
[487,"红梅纹绣美睫美甲","https://wx.qlogo.cn/mmopen/vi_32/Q0j4TwGTfTJRFtjbCMwNP40nRma95YJruVhf5iafyqrHCgUrzd03lBibFria8awiamL3t9ibUhibZvBnH1fQTUhat4kA/132"]
[488,"柠檬之心","https://wx.qlogo.cn/mmopen/vi_32/Q0j4TwGTfTIqPV6pdODWZKLn59Yu2iciaKdqibiaQOyzZZ8Rml5QeTxO8T6OTN4jyz6bicPMdJZO2dvORbtOCck1W3g/132"]
[489,"秋去冬来","https://wx.qlogo.cn/mmopen/vi_32/cffhJsFpZEGSgaMoxGQIRicWXPcNmErVMc5F6jnUsqmDVBEkQ1plzibpbn7nF1kkmZT8hrFoTk6IrJwYVDoZ17bA/132"]
[490,"心心","https://wx.qlogo.cn/mmopen/vi_32/dOg6YqHh2aDhZ8EJHhicyvKo2wHF9OyasgicWIMgsqJOadTrbzBmusjvBm9xOqsxQjk8fKXApxOG674qOibqcmS9A/132"]
[491,"方美丽程","https://wx.qlogo.cn/mmopen/vi_32/vM2NmFZQYmZTNWtrQT3KjgAuqASEc8x9tlia2y2gZpkKt7WTtX4zXf5Glp5JCxcPFYPFOmt3FSTb3znLqFDxFqA/132"]
[492,"不求回报","https://wx.qlogo.cn/mmopen/vi_32/Q0j4TwGTfTKjy5Uicia7UwLPEyPcXrcs3oJrra8tGLKDumJP155Mr9X0utxQCOqAOwHQIQTicFnBrYPnw45UvvLdQ/132"]
[493,"Ray","https://wx.qlogo.cn/mmopen/vi_32/280maJRIZGeoib9hxrlrXcibM5yaSQUndwmgId7B3Opibibuq5tCexYibnIAy33AuNRZjy8S3LUJiaWjFXWr87MkUUQw/132"]
[494,"A          Lydia","https://wx.qlogo.cn/mmopen/vi_32/rZEIzYRP1Qv5m0qFsvZSRPfkYIMd0O4IxjicObeXDS8FyMgonBuibicOsicBdquYBoOn8bmDbqFbbC3kBEoaZFfWgQ/132"]
[495,"兔子","https://wx.qlogo.cn/mmopen/vi_32/joicOEEjiaG1vHDIPOfrHtRFlb2A3v3qkNhudKLVHsecXic6hRyiaonSpFkbUibHkvq93AQ86H36tcut0qVJxH6Hn1Q/132"]
[496,"蓝钻之恋","https://wx.qlogo.cn/mmopen/vi_32/Q0j4TwGTfTLusjBEA3gUNM0icK6svaOdDiaiab7pjNupXnMQM3ulqm7bNbKrevvK0uKSfibRbjicGicv8ho9P8Pgb8MA/132"]
[497,"龙行天下","https://wx.qlogo.cn/mmopen/vi_32/DYAIOgq83eohuibO7y9d7fyJiaWUMuEBhrL8haS2diaxhdw2cXfTic9hbql7enWhpzcPLzWjzT1FUWfPByQlsBu9KQ/132"]
[498,"快乐","https://wx.qlogo.cn/mmopen/vi_32/qxcQeT6mib0SiavYjZS26gaRTZFNBB2bb14cuayoQAAVuhEibUJl5Mg4f1DgVDetZxU13cQ5j7P219dYAmqopuVYg/132"]
[499,"好人一身平安","https://wx.qlogo.cn/mmopen/vi_32/zRicPVygylyLuMQBwqq9NnTSXz9UA18RGic6UbR6Z1j4vak5UcS592vvZ1hDVViciajSdbjicsS6neBxIQWr7XqXn2w/132"]
[500,"老唐","https://wx.qlogo.cn/mmopen/vi_32/Q0j4TwGTfTLicP7gibibxic4TEhsjEm18icYD8EeSuKiarWxqbHyU31cte7cfdxWs77bH6GxEy1lDX68kopVzDku8Usw/132"]
[501,"七月上","https://wx.qlogo.cn/mmopen/vi_32/xAGSkZZsicKIoiak7ChIa3vAhCzt9HZsLgsV5ibM6DQgnqGChdjKkERNxX8QPRwoS2DkY1yZEUAYy3F2xX5DTQldA/132"]
[502,"潘贤明","https://wx.qlogo.cn/mmopen/vi_32/7dkg4iaSIDwocgWhbaic8Ieg9Te2LKQrc6rWKrH6JKke8dEU7R2ibj4r9YjEqFdZqTwWYtNNUyMreoggxcMUSngzA/132"]
[503,"回忆","https://wx.qlogo.cn/mmopen/vi_32/Q0j4TwGTfTLc4icNlJOh45PO8TYmzep1Fq6v8LL89NicZNt4vUJ06Z5Z6a41ComdLtgXvZ2pzsRxBIHtaBCXszWw/132"]
[504,"仙亾坡（绿豆）","https://wx.qlogo.cn/mmopen/vi_32/2FwJRk0ykumUnMiafEMue5I2gl5EFuRXEMkickAG8jEljzzqCBXjtjzvmNY9ALEmIvXkcG3X0adzpOWGHgUHRx5w/132"]
[505,"晴","https://wx.qlogo.cn/mmopen/vi_32/aeCJlOUAyLW6KUWOkiaicRHTEAbrKibbnN9I8Zjqft90U89jk6PRNucX8v1oflFwkW8RLGXzFXTXwzhhOxAof1SKA/132"]
[506,"杨世强s","https://wx.qlogo.cn/mmopen/vi_32/Q0j4TwGTfTLfmR4mafTv9ib5QaryM27wj0SDX1Yicic6RRwFAibYF3tLpT7RKuFYjEyky5Fia7626Luj57kc7nGA9WA/132"]
[507,"程耀东","https://wx.qlogo.cn/mmopen/vi_32/Q0j4TwGTfTIlMqhox43ZXGlwWWHYSYDianMq5Y1RDeUZbtCNVPBMv2X0ZxPdq2twTk2QCmWeiat5oBckxLSZhicibw/132"]
[508,"疚欲","https://wx.qlogo.cn/mmopen/vi_32/DYAIOgq83er3Ok2c8e1qZLtJibDbbt6w5x9aX2RJVdqo316J0SOQq0ANC7xOibRH6cHCVIibevmdp6Kkykl9QThicg/132"]
[509,"橘生淮北","https://wx.qlogo.cn/mmopen/vi_32/Q0j4TwGTfTKjRiaUicXzLnYvog3FLmR6FCHnOT1jxKYhice50icywFBwJ6H6oHDDRSqauOneeYIwMv7PHpVXN5rqhQ/132"]
[510,"海阔天空","https://wx.qlogo.cn/mmopen/vi_32/DH7bf142rmIJ8niciaY4mqC7pciaCPUlwosEckAuU7yTHR1ibWj44QSPYfiaxK9xicDgOw0z07XjKawpA3UA849TNwug/132"]
[511,"旧梦丶","https://wx.qlogo.cn/mmopen/vi_32/MyV2uUCfpdyHIrWe7S8ajylcDKiaM4Og5Aq57juIklh8vda2Pxg80U3dYccWrBlyrg9iaMX8G1y4Z2FYb9xy2p9g/132"]
[512,"平安，健康","https://wx.qlogo.cn/mmopen/vi_32/hoHZPIibQiaqcyRHjT8yUDHiaNQAs1xia7piaWZS64DS8Vy509uhHxsYUTZm4HGydOkBG6P2PeoRyib59kiaWN6qiaQRGg/132"]
[513,"じ* ve  青","https://wx.qlogo.cn/mmopen/vi_32/DYAIOgq83ersicyNW9icQNqf3cOw1Tt1HT6oRCAkLy0WEecibk0aqdvvM7SMuuVWx439PPvzy4NPoYibbxjibjaVypw/132"]
[514,"U牌自愈系","https://wx.qlogo.cn/mmopen/vi_32/3goMib31BRX6g1bQTnhbiagjn09yRArc7f6lial7Vo8licBibVBaDQ4M664vic0RWkC0BC6MA5BrYbaybbEzxGxnBMEA/132"]
[515,"振振","https://wx.qlogo.cn/mmopen/vi_32/DYAIOgq83errn6iayXCzhZ1IgMZO7l4gDgImkwF9iamr3CVWicnDibY9dibibibz27gB8cn6q8Hy0sPXSkPkOPSmV4IbQ/132"]
[516,"五岳和天地","https://wx.qlogo.cn/mmopen/vi_32/1pRmiaGichW0lxB5yicAKiaFIt2RniaicibkzBic7oUg41cArib0faJNkbdQBG68D4ZvsUSDEY3drvUCBN2CuUmD1ibu0wjg/132"]
[517,"李学-恒信友邦实木家具13890722928","https://wx.qlogo.cn/mmopen/vi_32/Q0j4TwGTfTJZ8v3OWvWzl0ibRoRic86TRmEXE3dAJGN0Ry2jxL4Nnl7cibYepyEzkVeQPbObp4B9xBUmic9dibZicLuQ/132"]
[518,"梓潼","https://wx.qlogo.cn/mmopen/vi_32/PiajxSqBRaEKeibLFHEuB6PHSh8XUkHGIo0xI4pLaAVfRX4iam08ibLzBRlEEA2JVjpCEicIh793NhmQL0nUXdQ8jKg/132"]
[519,"Madrid","https://wx.qlogo.cn/mmopen/vi_32/Q0j4TwGTfTLB5eWFtGyNJz9VYCWKgia34qCwxWTiatc5CnumiaaT5qWzvZWDF8hibduiah19uke15WmEyVnDmicYUib4g/132"]
[520,"云旦","https://wx.qlogo.cn/mmopen/vi_32/R5v1SCBxeicdWc7zAczD7BlLHEzpFDJ1S8ee1Ec4A6mWQD0sMGkbuejRKibzpYmxRJBFewFJGY70WVB6jPD2esZA/132"]
[521,"(๑• . •๑)小悦悦。","https://wx.qlogo.cn/mmopen/vi_32/Q0j4TwGTfTI4mPt5oWopwFXvqMeTLXXS9kfngicedGJwycWkAhyQSQ8JgW1IkibXA8AOh1cgwujk4PQtpKeIc7cA/132"]
[522,"Dylangong","https://wx.qlogo.cn/mmopen/vi_32/vWviaNic4zQDOy3Q5SJSvlHTLw9HlpKOqYcDLgibiaRuUZmJ2Gyxaw95hIdRZDXQibfKelb03GZZZotoyVF1rMmrXVQ/132"]
[523,"史忆楠","https://wx.qlogo.cn/mmopen/vi_32/7kxEXDDofMluUW0Kr51OI9Ro7lnzm2icbGeMotvs9XCHV78IDDkdibH9S0NorKSRmsZnyhSZ4a51HpD9OcQKhxfg/132"]
[524,"老高","https://wx.qlogo.cn/mmopen/vi_32/8fL72rqFCaRia7FNhhvAVOticXz6WOsbibeB0hDL1n5CXCmhlnWSzefcywRm9AtgZuAMnSSfzgv4hnlICL2sRWHCA/132"]
[525,"abby","https://wx.qlogo.cn/mmopen/vi_32/bQ63I1HcPImB1XCUNouZn95Flr3Via79ib0pLiazA7l6Ye2NWYmzKId4au96rJ1fE6Q7icMXSxTIPDDibicHYs9xetaA/132"]
[526,"喜德来家具·珍","https://wx.qlogo.cn/mmopen/vi_32/Q0j4TwGTfTLfoecelCRChSsRPx0ezwy9b3fv27aMLkjZJ9a3qQ1wff7Z1ouuY2U1wHQCaweoIXGWBPMfvjk0Sg/132"]
[527,"晨晨","https://wx.qlogo.cn/mmopen/vi_32/jApo1cXxoamGjVlJ1CpwPwWTOiajult7zH4raBEPp8ywNVp87mwqW5QWujynWjySbUeEbe8y5mssUSWtlSYHzyg/132"]
[528,"乐大爷","https://wx.qlogo.cn/mmopen/vi_32/7tQAsNhAEAMaW0icibW6079Wm8nAoS6IexoLtFxlURbGYyFicl0qORZZfO8zrgpmHYpmasRtfD3yHPlFJKldDPIiag/132"]
[529,"春有意， 失蹄。","https://wx.qlogo.cn/mmopen/vi_32/xvFFY8XpG7B2m5Tib60VFRlWvwtfF7LiciaFEIK512excVYMlMVFAFfKiaOn7AJpXSYP9vgODFTJWEFprIBlTbkMlw/132"]
[530,"成晨","https://wx.qlogo.cn/mmopen/vi_32/icyPMiaZKvyNM5cDNxK94o8JibFUGdYXSuqDQHfiam1N83uKcQ0DbcfEycIW8JtAhlPOprlf1bIvibXyFjPCQlABBtw/132"]
[531,"馬yun","https://wx.qlogo.cn/mmopen/vi_32/c748v8ibIlPRqH5UHM7A23ibMEGOMiab1xk0xb3S01kqQnUQbYBL9dh9yrspfY1lb5kqlmUcT8gyMu9Dic21rq0b8A/132"]
[532,"羽涵姐","https://wx.qlogo.cn/mmopen/vi_32/XMqqaXsB2KQhun0DiauESIAF7w1qQLoKnYdejT2tVJVicFlu7GxNWT7dFITm2SeOkLFYj3QIJwaHqo9I6iaI5icZQQ/132"]
[533,"宇熙宇涵","https://wx.qlogo.cn/mmopen/vi_32/Rfn5tAOZtJ4J0K1wiboEbq6bvKZ9FcnwV6EAuoZdUIOAkyia8dEWHLLf7D2JNnVibLPK8Iq9ibXSorql4xI7qMflMA/132"]
[534,"懂我不必说出来","https://wx.qlogo.cn/mmopen/vi_32/ouwtwJycbic3pLIXk3xHhf0pXCW05gUGibl3mzpVzpBagCbzsJyWiadOAlJyutTVia9WVmGUsQgdiaVWlibS4FdeVL2Q/132"]
[535,"一帆风顺","https://wx.qlogo.cn/mmopen/vi_32/q1qdmO4iaMc9GGvweFO5xC7Mlib6lPF0MDOtGicYssbO2W0aBibF71hzPQpYuLUPicXswrdriack6jskSTMna7Kp1rAg/132"]
[536,"长在你身边~","https://wx.qlogo.cn/mmopen/vi_32/onTxnTez7dpVWbiarsjBTdVykDtkxfTwjfLWOUsEDiaIMf0Dic0XxuOVHO3icgtohOL6lYsq7Oj9T8FJib91VkpnibwQ/132"]
[537,"我以为你是我的好朋友","https://wx.qlogo.cn/mmopen/vi_32/DPTtp0EmIpe2Xg8UPoiap8diacbl6vqDgwGPFG0omsYVxsiaxNROxkEjW47j3S3H82d9sJQ1bNdXrPFjibxNuKWOcA/132"]
[538,"张利平","https://wx.qlogo.cn/mmopen/vi_32/TiaD8cGibs10jCDxj8jB3bXia4n6BnQHpmFk5saWcrDERv8Iia6PLOemIStQJSRoCNn7CcI8TxLM0kLPpGb0ambyKQ/132"]
[539,"Jason","https://wx.qlogo.cn/mmopen/vi_32/xSNc6wVNtlY6z28PgU4tdEibEpcSTUdB55YOwsfPcQ1TlC4DGwIsna4CY6XsfLgFhPmvehcHfurib6qSIkPHwia3g/132"]
[540,"©狼狼之心^","https://wx.qlogo.cn/mmopen/vi_32/kqP4ibPW5IGBeenfBxONzdkqfxlODzb0291o1DpPpczd8bv5l9nxTW7WdO0RhTicNjLrLEmZrrZN0eJ07MTe7g2g/132"]
[541,"我爱我家","https://wx.qlogo.cn/mmopen/vi_32/h1YZmibp76ezlAGUEZgnRWiaLkRbQuFn2mUdCClzClecOia6n2vpg0gkTub7Mt7hW44k09ibmliaL1Ho0UguHxnD87A/132"]
[542,"大不了从来","https://wx.qlogo.cn/mmopen/vi_32/Q0j4TwGTfTJQtP90BzxEYZfYG5gmFwWFyibibwaibffSfZ1tP9pcOr0uVZ5HxOibrULHUhiaCg5Osvfia5UswMibRHaIw/132"]
[543,"卓英","https://wx.qlogo.cn/mmopen/vi_32/sVsp0ODaEkBdsh5fJeKTSTowvOgQkujVGlicEMic05DEjic0vuwY072tHwwAVot2j0EEYLGmjEUgKrlwtZzJ6B2eQ/132"]
[544,"罗春霞","https://wx.qlogo.cn/mmopen/vi_32/Q0j4TwGTfTKKJXiaQZUFG9MPbKoxIH7ehIqGXJxCeG7cfh07POIfia1G8y7zvzyNRS6IEZRttaVcR9ct4FZ2FJ1Q/132"]
[545,"萌,沫兮^","https://wx.qlogo.cn/mmopen/vi_32/6oOQ4lDYEMtvaVxwvCJVuPREdVWicic08hxhBLRktYASNzJkKZ3XOgQZXdiaH1micjE72ImbbiaD0fkflgGcnndHdxQ/132"]
[546,"歆  宝宝","https://wx.qlogo.cn/mmopen/vi_32/Q0j4TwGTfTLKF7ImnHq4JORAuzTQnib6wcgPBU5dOfC8XmA7U6kDJtlXLDvhcb543GkuibGEXzSaL76N3rQJVsVA/132"]
[547,"平安福","https://wx.qlogo.cn/mmopen/vi_32/Q0j4TwGTfTKbXDoDA7amnh4qoYQgZjJs04ibiaqJM14K0asDNbuic7RUFZWFyJypbjmP5buSyl7O4u7TDbUwMNu8Q/132"]
[548,"Sign","https://wx.qlogo.cn/mmopen/vi_32/6lCAmhAXChrGC2ajzzwBywvhO20LoLDC3HeicKq4Hm7FO1y4INEmVMKqZ1oyBsISIicvg3oJJSnKMJdcHqctOia7w/132"]
[549,"AAA～～～～～～～","https://wx.qlogo.cn/mmopen/vi_32/Q0j4TwGTfTJGk4ORFHTENMfhW7icbC5mkVYd8Ehd2AaAKMhOGxKh9tAjxqZs08JKBJ31rPkicEMDPPpK047jvdFQ/132"]
[550,"一生有你，15085033840电话","https://wx.qlogo.cn/mmopen/vi_32/hUZ2aDf9bJlbVg6PyxAW2pdT4FUFEibrUx1sM1IHq0RWPYb9fPvGKrB0RBbtceAEO1kCGP6RAc9VJiaQKF6kibSbA/132"]
[551,"Amber菠菜","https://wx.qlogo.cn/mmopen/vi_32/DYAIOgq83er0ib7vUbiaFPl5Sv3V8vAia3EDT3wC4LnPkFHkIFkm1pm52gzBBMLI3CspQfSgB3bMLmmNDXcaKviacQ/132"]
[552,"Trajectory゜","https://wx.qlogo.cn/mmopen/vi_32/aJyyjFeADskC17cFiaqXHv2XSyzBwJeMI6coWfmrqQqDdzXU4OEjL4b55w2FgWHyl5Z20bKk7s5Dvp9nd3H9Zpw/132"]
[553,"萌动的青春","https://wx.qlogo.cn/mmopen/vi_32/mMHeHNsgYdmJPKhm86XSgrq0ibo1gbiaBV8u7cBOsRKoluiaXLzawDbAIHCdyYPZYY50eibuibWrLn3sicNTY8Cibtiaxw/132"]
[554,"Alice","https://wx.qlogo.cn/mmopen/vi_32/gDCXlkJeaWVSdYCf4qjibD8shVKUJojC8gJfsdBn7FLJjdav3ZWqFZEib7wAHnpytiaT6Fz0YuL8TZVF5nBo4uDFA/132"]
[555,"闪闪侠","https://wx.qlogo.cn/mmopen/vi_32/UP3Ws1g5BtlExODia0ibvPWYqKumyDUaRoBEfQw4B6r9Ejb3WkLc0aCK7wYd564JlibKygAjX5NEJu1kl5C3pnVag/132"]
[556,"冰","https://wx.qlogo.cn/mmopen/vi_32/dzDvH3H9oXyNV51lj03iaL1cUiaTza2YTDPkSYuhiaWX2kLx2FpeYWZqtVBfNianmOZ1woP2toQsXiaYW4sTFKGoODg/132"]
[557,"萌宝宝","https://wx.qlogo.cn/mmopen/vi_32/DYAIOgq83erOCtYfNSEqjQWSvI3jILpP8376uVhAuyZoVsUzibUhGXBHajRzRuw5fuiar1HmMgHqZmTCXDx2OrUw/132"]
[558,"一路有你","https://wx.qlogo.cn/mmopen/vi_32/Q0j4TwGTfTJkg3Bxclpia6Dh4Lx9X5zhkXHMgm68lbUXyIJ2iatic5X8Lf6icO9bkpnSiauWa0wQfa5Z42CMtibn5p1g/132"]
[559,"张芸萍13660603840","https://wx.qlogo.cn/mmopen/vi_32/gDCXlkJeaWVSdYCf4qjibD8ZibkFvFWONDibx47ERwwlkSYatge7zcOX3d6JuMEkTOwkAWvG0FRbD3icSLTrHwMNLw/132"]
[560,"心莲","https://wx.qlogo.cn/mmopen/vi_32/goD5DoHvFtmxbLaTMibzsezK2GTgb0T7k5AsM3v66osibMHlSjqvdECzCic673fw8C3l9SaS8RbZoUIAe860B85cQ/132"]
[561,"糜废","https://wx.qlogo.cn/mmopen/vi_32/5SL9pHn4L9sy4uPiad5TUUAibq2ic8bx3wjsGQibkaGsnicGjibbxcJ9SuuQepiaSVHjNbt9j3lXIerosId1vTwl4GpuQ/132"]
[562,"清清静静","https://wx.qlogo.cn/mmopen/vi_32/YX3B8Xzj0cUEFpgYd6Iz1yTY1APHgic0SenZVyibDwMcZm7kwvTK1m9mQcWjEvibuHoXpEKmAWHfVqEBdogbaxqHQ/132"]
[563,"熊二","https://wx.qlogo.cn/mmopen/vi_32/aQU8uXb5j4fuBNSqZxfLhsrog2toA3KLlCwXMjibOAuwSqmtHoAkovtXrovRFiaUB0dWW5aYlTIiblfXtmYLMRiaOg/132"]
[564,"陌生人","https://wx.qlogo.cn/mmopen/vi_32/icdic7BWnKdeYHYRj32CfzsibczBsUiaGhdgLJKEfZXme20PAX2LzWDUNISVs8E9qnerOgoB3tNxkMZ1wwEOzNjGIA/132"]
[565,"友情","https://wx.qlogo.cn/mmopen/vi_32/DYAIOgq83eqE0GaxHXGoJcBFxErnQf98WnBQPCiaLVgrgFMPZgYsWtuhjiah2JyervA98fHd3ro7ryicAmO9O1dAQ/132"]
[566,"阳阳","https://wx.qlogo.cn/mmopen/vi_32/rq1WRl9DdCNQJ5gibScSH8gL1ibUFic5tt0vIbfYwCGbQJzQhAGM8RyOc0QZUx0Exf7JhIOdbXB4qb4lvZsslA0Fg/132"]
[567,"平昭戊","https://wx.qlogo.cn/mmopen/vi_32/4AjPYvyBdqdqD9RL7ykbZaEPAUSgOF7aBNNRGT5YreUClpy24DCOkN29OMxHkC9Et2ialKnXDCFU6OxFdYXM3ug/132"]
[568,"芬","https://wx.qlogo.cn/mmopen/vi_32/ZL24c7KsNwjyJiczxsdjFuB3BJxPfZUiaAhcADHC0CDqQAQau6BkgS3OeaVLuHTynUcmruAeIib25ww4kSkgmV7Ig/132"]
[569,"刘家乐","https://wx.qlogo.cn/mmopen/vi_32/Q0j4TwGTfTKlialPXHAfOtVTn46ic8SVf7NtBSyXjMIzIamDEK84Yp42FCTEDRgullqQiaLjJN4b8hLdGLB8deMaA/132"]
[570,"兮燕女神","https://wx.qlogo.cn/mmopen/vi_32/H6HZlC8RVslibHglsUZ5d1IbtBm2nO0Rf0Ygcuh7sRXG9oHQvRHPhXHSniaiaJ2YL30AJt7VicNUxud4Hic7jPmfPmw/132"]
[571,"孟于枫","https://wx.qlogo.cn/mmopen/vi_32/Hs48EXe2VCuZfQTIFwYKGo3maSxRibdrnGc9jcI8N0T8qXNnHOzYAXdAZNAU3icGjzSw35D8puCqRPxribZ8Jicpkw/132"]
[572,"孙","https://wx.qlogo.cn/mmopen/vi_32/Jud1bNZnrlNXgrU1LmibX4CRrozLK2q3JXdK3xXeSCDlBoMtUN2WvwjzcSzl9NDpK3fibiaMOSkicPMZ0OVrAfFKew/132"]
[573,"LWK","https://wx.qlogo.cn/mmopen/vi_32/DYAIOgq83epoJpticib6qibiajCoiaKGgbm4HafC8WMGrvTpc9iaBV7qZhSxfF1moRNhXDfOibXnicccJeryxVkcZTyOlQ/132"]
[574,"秀","https://wx.qlogo.cn/mmopen/vi_32/q09VN2MibdyicZ64EJoKKIXwvggzVwqcrKF4PM6AjgpA5GSvX8xdPE3y2YniboOGOYjIWDicDLZzibFialVYUD7885WA/132"]
[575,"༺ཌༀཉི醉生༒梦死༃ༀད༻","https://wx.qlogo.cn/mmopen/vi_32/P9M6yicleyuybePzh6XHbh9mhlXtIfefalNmuFWlMlMRGgY9YrLquicfibRdl2tSNhGbno88NMxx6IFmupVDeF5eA/132"]
[576,"金宝","https://wx.qlogo.cn/mmopen/vi_32/MrMr2SEMnfqgBkia0NIQ6iaIiacauErmx7CflNYdbiaYHo3Yu0ZB9u3y5aY9zFn4iavYmDOSibV2WTJwltMDbONwTgKg/132"]
[577,"金毛大暖男","https://wx.qlogo.cn/mmopen/vi_32/Q0j4TwGTfTJnK3SGbK1uCBialiaibsky4JiaPUPXlDzicZSCXgSVicXMEX87U5Cia5IZf4JRGuTiblW1WKxKNtAAE68Hsg/132"]
[578,"开心","https://wx.qlogo.cn/mmopen/vi_32/DYAIOgq83eq8p1UDarc9WD5Seq4q6ZwU2vrVSOre9LoaudYsTbNjeyvQxGfwjicKU8kooAzHticdVEyWcO5qyLrQ/132"]
[579,"如梦清新","https://wx.qlogo.cn/mmopen/vi_32/Q0j4TwGTfTKyEBiaMIJN3zvzz3v3Cf60rLicSqJxeu24s3jLBKM1S0DY8PBJWS2IGhFK3x9AhHc0icibLDyrpic6hgw/132"]
[580,"广明控股-力","https://wx.qlogo.cn/mmopen/vi_32/IYFA3tW2j0Gsoe3yUbdtgZa7GqgibSibAnAEianWZ3TrN9e2VXvZmfUMzDDMFOySib1xFzDssXibx3Pk486OpLoxfng/132"]
[581,"SFF","https://wx.qlogo.cn/mmopen/vi_32/1Ippco36UyFxGFnGgpQNACSWEKuL7NFDljiax35WmCDGKbPhnpTKlxvFHiblGUteicMptYmqWiakl1F81WghVKNv5Q/132"]
[582,"曾哥","https://wx.qlogo.cn/mmopen/vi_32/Q0j4TwGTfTKRyEtjZciag7sR0nbzyibsrl1ibQkib8VkFMstrGqRHvWyxX24h9UbMWkRbllPhodGfpOUXLAVdYE6AQ/132"]
[583,"改变自己","https://wx.qlogo.cn/mmopen/vi_32/Q0j4TwGTfTJSvicguOJdRyobxsWOnjzzazLgThXfVAtt2ia2yv1LHtl9o77Ja2hABUwMDEVoiaZpCBrTvVdbeB7XQ/132"]
[584,"美女慧慧","https://wx.qlogo.cn/mmopen/vi_32/Q0j4TwGTfTIXE1PadWxBemtweCDjoGDucKbKttuCdeePaTuBsv4St6qqCn6YkUQCAeHfqTdhPpkK59wwbs0Niaw/132"]
[585,"M","https://wx.qlogo.cn/mmopen/vi_32/OU3myzX8VSHymDUhYCicfv0fyBV7tNUU0RIDo899jUprUEobuxnoURWvaKd06UbRwvuuSYAf7WoLZUzDFm40Weg/132"]
[586,"慕仙","https://wx.qlogo.cn/mmopen/vi_32/RYSoaAcXDTohsOfeuHvoq36nPcrp6uMp6Lm6zRziakyliaPCoNUgeQnoicUQcgJUmX8DcHzFx8bwvU9JicnC8BYibVQ/132"]
[587,"小娜","https://wx.qlogo.cn/mmopen/vi_32/ficTmdLUSNV3ibeQKWzLFuTDnrP3T20zc6dTP089lkXuch5v6Jzj3b4yzTq7FDicIcDNMnG61ufKOG7Q3kibB0MKzw/132"]
[588,"ikun","https://wx.qlogo.cn/mmopen/vi_32/IT6RfsRcE1dnOmkVSTCptAmVibnawFRZfNkzZic0VSvlYRVUXboicyxEEwXkKhWpRdBYRp3SYYjsmcvjH8BJfReXg/132"]
[589,"淡紫珊瑚","https://wx.qlogo.cn/mmopen/vi_32/DYAIOgq83eoek7DgbrP9RllAKa60hRNZmaVBA9FYP93icASicckPbX8Ux1iaGUIV4XIJGfzTaTpj2TbViajlFEQy0A/132"]
[590,"宁夏红宝","https://wx.qlogo.cn/mmopen/vi_32/Q0j4TwGTfTJUqvktkiaB0pkF340OssvbxxNrMrJKMqhxRZxoh0J0W4f70lYBlmvx1JbBDyae9HrB13nsI5KpD9Q/132"]
[591,"华南虎","https://wx.qlogo.cn/mmopen/vi_32/5pbwEk3yibkh574ibTXkOZngJsjbGzHSr0HW59liaCGSV8mib197DmeP2h0ms4LTwpZ5ygNJEhiap88x8ZvVyj6iap0w/132"]
[592,"张保健","https://wx.qlogo.cn/mmopen/vi_32/VfyqtjFQ1hpMzLnrjwYPMKZzxILZmhsiacuuG1hufvLlQb67b3IWMLNVykibfibwHgXsMmQvqiaibVxsuy3Jy1rOHAA/132"]
[593,"黎明的露珠","https://wx.qlogo.cn/mmopen/vi_32/7m6t3A2JKqLlMNkwnJGVrgTCiapH5VdD1R5yqibNat5rZWiaJNjZYBfoHKPzZRbU712SoU3BaaLq6ibf8oCXbqfEzw/132"]
[594,"汤东江15803978331","https://wx.qlogo.cn/mmopen/vi_32/ajNVdqHZLLCiaiaxibAEZ5qXCebzufkGKZHOvnN5P0wZiaNbaht8PTNnafrxWGGUR5grNjH6iaNyVu0HGHibAboGW8nA/132"]
[595,"吃鸡老玩家","https://wx.qlogo.cn/mmopen/vi_32/iaLBVibQxwvZHMbwmRxvdD8AeELzXWHBRfuqtnIeExenoJ1u5bkVpUpc5mrfulWKlBCNouKyZ3U2zwn1MSW744Yw/132"]
[596,"儿女成双","https://wx.qlogo.cn/mmopen/vi_32/DYAIOgq83eoxiaHbFxacU0de17XYyD0QrH7YB4LG6N627pHJ3qgAcTiampsjzDznU094x0bTrVAzB1lc3CXTvyHw/132"]
[597,"张美琳i","https://wx.qlogo.cn/mmopen/vi_32/3XnfibEBibADDfUh48XuJicc8zpfKUmHZVABgVQmW8v0cZvogubEO60ucmVdCa5QgyibOUSkYzIRz6ocuXPlNiblciaw/132"]
[598,"林林","https://wx.qlogo.cn/mmopen/vi_32/ZxeD3crlmt6aNClygyC53GohwMXtvFhMwAeTMAG3Z7E234MZ4QgNRfEBcGesYUGiaVbJjJnTsjUv9uvrDhyUEuA/132"]
[599,"拳","https://wx.qlogo.cn/mmopen/vi_32/DYAIOgq83epgsCkIqxKVOAqq1V3bvRnx2fX0iaWj8hdk0tybgsrltG6rWtmNKI2Ek1lSphK9ESy2T9v7E1vwJYw/132"]
[600,"思埠代理~王林~胡英【级别】","https://wx.qlogo.cn/mmopen/vi_32/DYAIOgq83eodS66t7lFE1bqS1ltDPZTYAS3LTCKIskFWriclulbjdxDxU6SMciadYWjkXwaiaAoo5y6uHkHYtOhibQ/132"]
[601,"北梦","https://wx.qlogo.cn/mmopen/vi_32/mficsArDLjsG3qPMUXxPISGCk0kd36ydc5s7z52UPS7R55aWft32h1fTFgUFSOfedW1u3e5AeBiaY3P8B8VUOPmA/132"]
[602,"A圣宠宠物运城店15296753688","https://wx.qlogo.cn/mmopen/vi_32/xB5jYg5sOOcHAQB8Lj3x0VmzAhu1Yr0oeziaQzXIpDicibB9L5ibf6CseibElPcwDFpZ69SUSjiaCPLogiaDPMrP0s7Tw/132"]
[603,"平书","https://wx.qlogo.cn/mmopen/vi_32/LpYDycID2DqNH4MQGwo9RtcLicosTbXopq4YibvU2TG9rZiazTl6YX0Pe1MJmscVuANBicR2hyzwtG2ZJJPbrugrEw/132"]
[604,"徐分兰","https://wx.qlogo.cn/mmopen/vi_32/R25pPknP6Ln1Xc0OxXOhCx3sLIzZrYv59jEOqkiciaeGvtVVzzAam26Kj0FRPHTR1MjffhwW1AwTgrBg7oDHNAsQ/132"]
[605,"无可替代","https://wx.qlogo.cn/mmopen/vi_32/aakRkWxpCIickD5LV1dUpy7d0WljcNzVIicJSA3JXobbQWtYzWSVgE5gXpibZ4Bgt2zvay6SaWeSqXb3CJW6ZTCQA/132"]
[606,"我爱我家","https://wx.qlogo.cn/mmopen/vi_32/3UAcdaUd5AePLEaUaiaGP49aR0hOCklyAIDQwZtsIgMEMF4sBnBzMCF2dVjno661giaDRF6ialIpseZEJ9sWZribicw/132"]
[607,"请愛死宝贝蕊.","https://wx.qlogo.cn/mmopen/vi_32/qkJGD8TVtkT8NjSP5lHdqwGz4gF53qvj4VdRGNurAG3sebiaXGzicPnkSnvpqu5PZEbn5DuE5ZqOqHf4zwDTEULA/132"]
[608,"厌离心生","https://wx.qlogo.cn/mmopen/vi_32/5WoI9g1rKzje6IULEIjPKjOua8rFZHib11wicJlg0G0o73XrA0ic7YuPW5yxr5owTtpLBUia7RcE0steSDqr8epSOA/132"]
[609,"欢","https://wx.qlogo.cn/mmopen/vi_32/ON1ia3q8kib5fhXIGicZ7d2tX90ew9RpyeicFYRyHCPKtKsI2K2g0sHiaw3CD8wpmb7bOibH19oqybAbyGUz98DyYicTg/132"]
[610,"雪儿18285051837","https://wx.qlogo.cn/mmopen/vi_32/Q0j4TwGTfTLJnfAJcrGXTficQEy8fiaUKyAPbsASbicEUkUcAEcFgg849u8bXL3wdUamCVNBHSxPfaM7yAjJz61FA/132"]
[611,"阿明","https://wx.qlogo.cn/mmopen/vi_32/Bmcr48jvTjpZmvEKRxexrICyib28p4vibyAjN9a7ibcZ6QldSMGJvlMNIK39zHKIrYUFEuKDUV5ScBBkHazOnIurg/132"]
[612,"A美容养生、减肥、纹绣、微整＠袁","https://wx.qlogo.cn/mmopen/vi_32/Q0j4TwGTfTIE8CagmNstgMIrrAPeBLbjibMCZcuH6jymKGpiaKCvINqeAnj1s1Cu3k4Z4av3NQLiap2qIydibNmvicw/132"]
[613,"Princess","https://wx.qlogo.cn/mmopen/vi_32/24CwbwFMBaB0DKCJQQn5grXOd7Jiau4VZt5bDUxd7CyTONHEoeuBX3kQsibc877vBbzmGVCRfcUicMRmMnf3syZZQ/132"]
[614,"长发飘飘","https://wx.qlogo.cn/mmopen/vi_32/DYAIOgq83erbrUthMiasibaFQXX3ehUglvNV3mkLm5jicGJERQ3QYBU3elWr9DhADZibfhaIzibfBNzGwAib4z7NBjrA/132"]
[615,"骑着老虎逛世界","https://wx.qlogo.cn/mmopen/vi_32/Q0j4TwGTfTInIuedI6ibt6Lb1pmyrjqELib9To0zf1Fda1LvUZBNhhneU41SpL4bE507sHanXYWTnoxBlD6AicZJw/132"]
[616,"陈婉婷","https://wx.qlogo.cn/mmopen/vi_32/Q0j4TwGTfTJDUnia4tO6iaJ5iafu3VGIT7S1H4ZVRMgFUMyvsPqL4tly1ZL8a4U3A7ow8NOI8zfb8X5Z38LuPqD7w/132"]
[617,"张铭恩","https://wx.qlogo.cn/mmopen/vi_32/CD48iaPPXpWnDE0s2CumSQiac4XGNZmr9cyXkID0f25s1T6pibRmsLHXr7CZDw1A1A6yT41NEHYDBgRHYMOgKSmrw/132"]
[618,"向日葵","https://wx.qlogo.cn/mmopen/vi_32/AS6RZ0u97fTbKeNL06DTEyW3uiamuytB5gJfzPymeyhQfgjKmcgwTPbX9ANVgSWuGKcRWegtuXCZ1FJRd2nJZLA/132"]
[619,"只想冬眠","https://wx.qlogo.cn/mmopen/vi_32/DYAIOgq83eohId0NwDO8ngRZE7tqn8tcTicQjovyeF9zM4v81QwFgtA62FwOf8ttDcByIRJHFRRtvFVfoLz9txA/132"]
[620,"心水","https://wx.qlogo.cn/mmopen/vi_32/Q0j4TwGTfTL0cc17kldTt21hdKWdoZ2icKsBAY20TGkYM9XJct1bnBRSpDsgHsRJ4ia9Z4rHzjNLBRhTagzKpnPQ/132"]
[621,"hey jude","https://wx.qlogo.cn/mmopen/vi_32/Q0j4TwGTfTKnqHpnFe3vR6QCuX6vbny4flDjvP1AkEicjst51Zr9V4U0fLV4b9Vyy7lvXicfpDDP5d68pWTf3vrQ/132"]
[622,"张正宁","https://wx.qlogo.cn/mmopen/vi_32/JVXNVBm8EZetp3APylEPibfGZBMv6Q9FlclJia0txAlgq6XgQIPSsfOWAjOUBE0F7N8tZj7KcXSteEIYgNRPk8DA/132"]
[623,"孙菊","https://wx.qlogo.cn/mmopen/vi_32/DYAIOgq83eoerxrkTFT16PoPHBf94OQr8MB2OicoJ85loS0mMksic4YOVyk3naFLVO10mZW6cq5CJ2p4c41x2ialw/132"]
[624,"AG.星泪","https://wx.qlogo.cn/mmopen/vi_32/iaDXltFylKJtsiaOpGWHAhrwNK4vrPohc3GgY7vcu7PpAREDdsQ5zBkWl6pd7Uvsia9m59dHp9cicSvX48kyibXdjSQ/132"]
[625,"L.Y","https://wx.qlogo.cn/mmopen/vi_32/Q0j4TwGTfTLB5eWFtGyNJ54iafEsJRamZglPYdGUmibqAVEFhJ3wfeibH9XCMTYU9FT4rXhtVcwhmNcU62jKKOgVQ/132"]
[626,"陈双","https://wx.qlogo.cn/mmopen/vi_32/n8QDxaKGrjK984CNWNp25zybluOtPNvtke1jeXhh6nuBSWb6FzUcP9e8VMToJVBvlJs7ZFpqRqwdkYhmnpTfpQ/132"]
[627,"Ｓmile墨沫ゞ","https://wx.qlogo.cn/mmopen/vi_32/SxXbDNa96M4A7z3aOPj8SMmWxbiaibVcIktCgZPL7nPKwHLZyib3t4puPocRhQe7HPL36icAHibK4OxPzUIsqCpTqXQ/132"]
[628,"伍妹","https://wx.qlogo.cn/mmopen/vi_32/DYAIOgq83eqOxUjIvX263un8HSq0f2MywwWKgfoKLOt6AoBXMNn4LyCQeicKZXXSXo9hBbqicMX18eHbibic1JTL9w/132"]
[629,"小小绘画家","https://wx.qlogo.cn/mmopen/vi_32/Q0j4TwGTfTLp2bMbENCd1VuyACA35a53kHTt1G7DYkhvJib0NWWV9kHRvI3ut1gUu0qcNFXu7fEJF92pP5dHuibg/132"]
[630,"连","https://wx.qlogo.cn/mmopen/vi_32/kLo4yBYtQic346nTKdwTZ2zuzU3HF2MicdAaJibgAZicA4GRztiaiaIJwd1osJtVCL1k2YEppsHTBVCNIuicnJ0D3KW9A/132"]
[631,"嫚～","https://wx.qlogo.cn/mmopen/vi_32/DYAIOgq83eoATREdQR3H4qPv2xjNibh91MWEWraSAgzOlzafGviaQdeoyQOMfbnE7nvbVW4YGYXdM70jMgwG1Cibw/132"]
[632,"呵呵","https://wx.qlogo.cn/mmopen/vi_32/A9WkGiaeicmfflfRNOuzNxRS0lCuib4AdtMchPjdfYcRakpVmbUUPtaIK5dhh3ueY2oOLMxIr94Zsibq7c06YEic0sQ/132"]
[633,"我的天空","https://wx.qlogo.cn/mmopen/vi_32/TOTiajvLdMpsBd1SRKLP46hz4hjwMkDiabrpt0oyxFprdcfLiaeu1icoTYSxOzKPrl7tDg9pQDWPYdz87h2NdoA9xA/132"]
[634,"有你们:我快乐","https://wx.qlogo.cn/mmopen/vi_32/u2Iq0o8MJWMht2ic2MZnfjTLicx4PxO56iaxoVBAKNmVuVDnQUbo0wo3RST0xxXyrfFAxxOs48CvB6kGQpsuUTnsA/132"]
[635,"诗诗～","https://wx.qlogo.cn/mmopen/vi_32/rm7NFy3rbnOcdTqkUZv3lxWLDGCRAF71nEJL1iaLianj1XCUKULjDota2vk165RuIHMyjepJbzDFnolRKj6e8h4w/132"]
[636,"杨海宏","https://wx.qlogo.cn/mmopen/vi_32/Q0j4TwGTfTKia5OzUUIiaQcqibp1PnlWhoMdShIYjLnxia7tURek3QCPUDibuso7ib2aWeCfibdTv0PooH6YSYAHlXjaw/132"]
[637,"王爰群","https://wx.qlogo.cn/mmopen/vi_32/bjIRMBXrvqiceVVv7KyNiafe4XlL1Byl4P5dBl2wVb1icXqIxjc5yhMUlG7K32t9paEqUe1ZfHlLVzxR6ymzxZh6g/132"]
[638,"陈海凤","https://wx.qlogo.cn/mmopen/vi_32/vyQzs83RD7iayjWedwicEtE2Yx4KtzUtbWFKTDEcxp1d9bcIvZEGJxyWLXyqzAdMj99VhMpZyYP82Aiaru8coc9icQ/132"]
[639,"爱","https://wx.qlogo.cn/mmopen/vi_32/ug640YEdO0HJtI27icuGJxY1qU2WVkC86oZoAlAr9aEHf6mPFibaTMTeB84Xn9zzyuTduH89iaDgbz7MnaTez4Xfg/132"]
[640,"安宁","https://wx.qlogo.cn/mmopen/vi_32/LLOqPftkdOia20Xb0l0BJPlbvQHhk1xdtkPEadjuTnh7gEEpSjXwKbxf8pibaI2GBL6NQEcEa4rf8h0OlPn8I0yw/132"]
[641,"四叶草","https://wx.qlogo.cn/mmopen/vi_32/ug640YEdO0HJtI27icuGJxabIuZYD5Zfias7g4Zuag1lDeyLmcXBccqvwTGl30EGWvPVxZqxB4yU8coibRYQnvl1A/132"]
[642,"D","https://wx.qlogo.cn/mmopen/vi_32/R2z5Baw4dxleNtFq4ngcbV5zhPkubBJZsnXL7rGdugAVySBmCZKpIk0H3UMRm5qE7e68tSvGaQgU56gianJxbxQ/132"]
[643,"呵呵","https://wx.qlogo.cn/mmopen/vi_32/FTz7mjkPTg2zoD5r9A8mzENsJOG5IPwRWmKUgE6uELiabR3q8AcnSPYJh07dRRXIIWb5c0seUBH5Ic2pnLo6Byg/132"]
[644,"江女士.","https://wx.qlogo.cn/mmopen/vi_32/JmSYqZ4WghspsQVUI0o7Js0otqRmPeY8PI1cX4h99DJq5kdO9MibTx2yANOcStPEfRHUr8vVtHr83WMl9icz7m0w/132"]
[645,"你是我的天使","https://wx.qlogo.cn/mmopen/vi_32/8kpO0BjOxpHrgh7ZfnKf29XQFWicv6Ts2WzjicUa4bCYHGI3NIudhXoaY8LFdHLABn2dianDs9w2zBl6tkopGXWCg/132"]
[646,"斌","https://wx.qlogo.cn/mmopen/vi_32/PiajxSqBRaEI106xSNGVKTH1FibsHrlhsRgTnw29K6DfdBH0QLRdNia5helQaZtMRlrfS4CTKkUdViaQibWDFXhlAVA/132"]
[647,"不忘初心","https://wx.qlogo.cn/mmopen/vi_32/xV3B1wWxLSpfNV4eKCxOIIRADeYpiaSiba1ibREpcVkvrOiadUmibjJaX3QXvzpClS3jNWpgItgXVXF8ibY4ngniauJgA/132"]
[648,"随风飘过烟逍而散","https://wx.qlogo.cn/mmopen/vi_32/DYAIOgq83eps5C8jaRzWFs2bno6sQH7P63QNpf4icyeeu0icAIDeOc1b9CibSQibwSRAHT44ft3RWaaWeELtnpK8SQ/132"]
[649,"雨落￡心忧伤","https://wx.qlogo.cn/mmopen/vi_32/DjwtRyjvXn2bLDaupwDk2iayqERHyIlS192TmFyLAbGq005IiaCVBNA8jdOYKjSddiafib2UHZfruRKf9gmWVCpPaQ/132"]
[650,"范凯峰","https://wx.qlogo.cn/mmopen/vi_32/xHjEic5CMPv5M4WQBic9JobEaeiavOCVIXmiboYkD9ns4VaD3wMgzMcfltmVTRV5tcMMoyiblg4mXmVPOzJMpLLugPQ/132"]
[651,"香","https://wx.qlogo.cn/mmopen/vi_32/Q0j4TwGTfTJYH1HGW0NWnwEMiafhic1ZBMF1jvgVUYryTCD7LDJscKT7gnsjgf2r10y4L2I0yVAKrQLduWeK2p8w/132"]
[652,"小杜呀","https://wx.qlogo.cn/mmopen/vi_32/Q0j4TwGTfTLQazUzD4VMtcQNhIosMGzCq5SPdA5yEXorffHrDeFhXS61USXoNpjKNia14aibrvGTGpKS99ONs9lw/132"]
[653,"幼枝","https://wx.qlogo.cn/mmopen/vi_32/KnGOOLKuS2pVDHfDNLHmzgmyNqvnaQIuCo1bezeK8LgVDQ3Nu7m8nFPOoAByQfNekInoiaUt5j8Xd8Kiaj3yJGvQ/132"]
[654,"綦帅","https://wx.qlogo.cn/mmopen/vi_32/hN2VsRia7gTqQBjb3fTnKRiceJICeibPEVwGnIIYGFyd6hMU6TC3UldEp67hEzJJbPzBMfAwerC7Y053Sm6nUAicCw/132"]
[655,"当错过成为永恒","https://wx.qlogo.cn/mmopen/vi_32/Q0j4TwGTfTIbKCwLRY5icgWUiauo7pjCgqJXPgicYzyvajv1IOvdpnkJicRGohdvibGKKf5tFLRBcMSM782jKFniaxUQ/132"]
[656,"随遇","https://wx.qlogo.cn/mmopen/vi_32/DYAIOgq83epibu2iacBrI4p9poxwWuj339E1hhBf66dtvfXIl7Eww82M3mJrjQZ3Vicn44MVJJGnjHcvf3piasNgHA/132"]
[657,"謊言。。。","https://wx.qlogo.cn/mmopen/vi_32/Q9DWbeibaAI32SGcjxPwklGHukngyY3y2uNZBJKmyU6zGGOoy0Jib3Qxx26K9lnQfzGUQyMsb1fSTiaLqIZYWkiafw/132"]
[658,"秀丽","https://wx.qlogo.cn/mmopen/vi_32/Q0j4TwGTfTKWHqcx2zIN5WuyzuOa0DPMydfbkILn3mb6RYQxFDaMJwRAoJwKQxBFFoswfqY74iaCTmlqGktRkAA/132"]
[659,"冰火两重天","https://wx.qlogo.cn/mmopen/vi_32/CVAIdiczCkyoVF4kLzJuEcI2cocxwauXXRsiaicfw5xAHLDoTSElJDfFicPiaLAIria4MNwx2S2dHfuE1XH410iaBpAgw/132"]
[660,"August～","https://wx.qlogo.cn/mmopen/vi_32/SYxHx9k1fVCJbjrdCGVqG2y210zjur0ujueBrDeNuZ0iaxX1NF1KOoibODXfk2J8nVvkJl9HHzOme4SKkXF84ndw/132"]
[661,"紫魅","https://wx.qlogo.cn/mmopen/vi_32/2ek3LDF5nfAdSQWZRzXibaiaUStZabBhAWiabwsZcpkuUk7Hicl7uyQ89JSPoenX3TNsbONlyoiaREPYIB6jFp6AgIQ/132"]
[662,"文慧","https://wx.qlogo.cn/mmopen/vi_32/DYAIOgq83eorSv1w0WwANP2v9yt9sYrXpRfAs2BmXRIY4O8qXe2eSJS9Q3hT9nrNwSiaq6YyFzz1MjXTQURROcw/132"]
[663,"暖风微微","https://wx.qlogo.cn/mmopen/vi_32/rRCSdTPyqWdL7ULBkxEdicjBCKqOAfMiaUiaXQlgDdkwbKS4xce0ooXCcsw2XPzc5JaBcupVZsWKxozibickH7PRQ3g/132"]
[664,"周大师","https://wx.qlogo.cn/mmopen/vi_32/zFWiadibF8vydHTDOyR414rNUFibMgXfGr92VulYiaKIgoJ55GZWNMzbWkn5rGNKW3ThnRqOlzOx6TsHdNJ8TJ3T9A/132"]
[665,"太平王学珍（钻石级代理人）","https://wx.qlogo.cn/mmopen/vi_32/E3FGuN7oL5RgEhhibP9E0aEXOByj4xTicT3x2QdCtkSxrI9QINQybaLIqCibRJhezg9UFxPAabnibv317Mla9NPWSQ/132"]
[666,"陈巧贞","https://wx.qlogo.cn/mmopen/vi_32/9IUbqCCa3zUgmLquopnib96GRspNib6dPzOFDOWoMHI49IJ9aicziaoC2Vz4HSo0YNHHjUd59Wdym7SOVoERsgpNaQ/132"]
[667,"Joke.x","https://wx.qlogo.cn/mmopen/vi_32/ZiaXbucKYdBgdU374K0K5DD29DaoqLPx6NquwFtF18gUhn0RXOyHrUpdyAv1Pgaibgh0uFHaYq3KjtpeE5ratqlg/132"]
[668,"奋 斗 ing","https://wx.qlogo.cn/mmopen/vi_32/Q0j4TwGTfTIC4RlUx0AhQ4YI4qF4cPmXrMAoLzfLicbqbfib4tXHcrSdbEZX7hBibDQEqRfcNRI15yesXegRGu8Gg/132"]
[669,"熊学芬","https://wx.qlogo.cn/mmopen/vi_32/Nwt7LpBz2eQhQV84B7loWjlbJEk84knpdUqibKXUIhShd9typjfLMM7F4OIeicmxDXPGlfZMaicm1cJVJsiafAwP3w/132"]
[670,"神雕侠侣","https://wx.qlogo.cn/mmopen/vi_32/cnUricCr6Nwy9tkLXJenEpiaHyib2kIVaWoZibVEoYRI8rNVOHO22jU54AetEmzZjaHuYMkN4ZKllQF9taicncMeL1g/132"]
[671,"明媚的海芋","https://wx.qlogo.cn/mmopen/vi_32/pvHrjG8NRqpKLCA6xCAUU64bTN2eRN5DxsibhKNwDS22Xf6qsxg48JgjfiaibXoahr1XFiaiaNq9LDiclXNq6jTqGMfQ/132"]
[672,"全家幸福","https://wx.qlogo.cn/mmopen/vi_32/OIjucuWUMmQvav6j0I5CdEEJKOkYPPGygPMIL4DHiaTtdFe2A5S70A30L8kRtSjWJbf6tsRFjPsdq76n0IjTNqQ/132"]
[673,"王亚轩.","https://wx.qlogo.cn/mmopen/vi_32/Q0j4TwGTfTJxhkqxtWKQeVOHuGQ3I67BU0XPYhFJlJ6jtUsnQTqLOEnbVQP4zibaPJjsribSeNz8fLz1bO2EOLqg/132"]
[674,"鲁佳宁","https://wx.qlogo.cn/mmopen/vi_32/aqTgFMuM1AlxDCLRDtEbbEPDFHiccT1VQl158gJbbF53uxndR02yZQ8rBQqxDyXudgbAxV8ibgAxO0VbX5xssbHA/132"]
[675,"甜甜、","https://wx.qlogo.cn/mmopen/vi_32/nMg3EGicm0bbZeLsadiaTr4ecE18Ktxt9zeBXJD3BbfbBeKdjOxia8xxjBsVwibLcR2eps5Too1mX8uYCJCWUn7b0g/132"]
[676,"老李","https://wx.qlogo.cn/mmopen/vi_32/DYAIOgq83eqNRAWnbckJjnjEwtmXTUYOF5Jd0ptibu51LaxgvYCSweCmKvg7XG4uGT5HGeYYDf8VYlm2pvmTafA/132"]
[677,"可爱的珠珠","https://wx.qlogo.cn/mmopen/vi_32/Q0j4TwGTfTLoFOVp6joVBJDsok0w3nfrEoSKkSvz2n9zYiaPFRRiaUPWkOxMYzHu4PVLr1Oe6l5VThYLtRCY2VAw/132"]
[678,"高亮","https://wx.qlogo.cn/mmopen/vi_32/Q0j4TwGTfTIt42zZWnCicore64pQ5a18AAxPgfHDmk9AWRCYsgxwUZQdd2wzwkv2pJJDyWZSicvtPZg7LmdiakSBA/132"]
[679,"骄傲@傲娇","https://wx.qlogo.cn/mmopen/vi_32/goW55yfj7WJdkFWpgTtwepQq5hdj316jHVFicMyvibVrJrPPlYBsGfwgH5CXLhPic3icDryjvGibEqeRzqOgUaTArQw/132"]
[680,"萌萌哒","https://wx.qlogo.cn/mmopen/vi_32/Q0j4TwGTfTJUQyU2vvOWsCl1v5uSSPa5usJnIAv9dnDm5Co26K3ic8B5tswP3tvB9XlCyR12nG0iaHRv1hn26Urg/132"]
[681,"A相约昆仑","https://wx.qlogo.cn/mmopen/vi_32/Q0j4TwGTfTJvWU5rGzQduOozkyLqyjsEPtLIZ2WN1Sfaw7y4AHX6YyK0kfIrIZFt4SicyXehnJy3l6Uo1pjUrfw/132"]
[682,"老林","https://wx.qlogo.cn/mmopen/vi_32/PiajxSqBRaEIrPbzDiaHIfxicy4tiaLic3HoS90QodHcAJWDrYCicgJ90Q7jJxbicKZXz2o62ps3fBrwK78e8QnJNkWJA/132"]
[683,"哈密瓜￼","https://wx.qlogo.cn/mmopen/vi_32/Q0j4TwGTfTIS9eiaP4otxJ7KEreqK3icb23nFant77E1gt3gcsSMkyfGPVaeq3emjd7g4j0Dk817ocfkEA2drciaQ/132"]
[684,"张世辉","https://wx.qlogo.cn/mmopen/vi_32/fHzcoic6PSKea0tOic82jq6VUSU2ECtxgibRdrYppHraCwVYpC00b0BZSVeP06HWoET33525BA23ICcFbMxlotCnA/132"]
[685,"用心去做事","https://wx.qlogo.cn/mmopen/vi_32/rvnnWqSo3fmTKwz0Mf8sdweLiaqzojibdcbyxFxuyGQibUTsAeaNJhfDSh4KMSA3YicJ0peu64TXBYTR85CqkXRQNQ/132"]
[686,"七月的沙漠","https://wx.qlogo.cn/mmopen/vi_32/8ECuXFa8icfiawbPiaUrrWAnj4GeAicjBN9AnAbcvL8FlyutK2KBmEh8W9CI2ibhd4lc8ZDiaCRgUtoZFJsicibB0aF6Ng/132"]
[687,"银生","https://wx.qlogo.cn/mmopen/vi_32/xbXUY4iayMiaMcNK9uuQpmMSRkTTlERvKnZEyicYibrjxmJFOX4ic41IT5lPpVvSlmk9VlM6qZW6E6UUa67y0SicibSHw/132"]
[688,"L :","https://wx.qlogo.cn/mmopen/vi_32/93MKwQXKEHDyfcwaccKp4gibWicD7MPMv3zL0uBMFrURCgqvJns7BStwJwFeficiaUZH5UwqJ5v7KQicCAjetBicicj4w/132"]
[689,"和我们一样享受春天","https://wx.qlogo.cn/mmopen/vi_32/E6ZmKd7wlD3jtMqt3PdsTrJ80ZID21uRpyqI1ncbkNInwcBJNt0kicZ3zjHgdaOqiaW9tpsuj0BxyooaLoUQrJ3A/132"]
[690,"小生^O^怕怕","https://wx.qlogo.cn/mmopen/vi_32/YPe27wia8OwaEibjxe0la1ibw2kO5mE3tRnNNTWSyXEiaN6xOaibgZq06JUAEcWPVF22ThJIjibR9F3MwOsAyA6G58FQ/132"]
[691,"AA  二号街角 快时尚女装","https://wx.qlogo.cn/mmopen/vi_32/KSwBbhfTAG3Dc6lAicziafJiajbkJ2YqGx3aPNlXHGg9jN6vOHrPyCUQibuOQvUpRN7ibpLFjM4t1zCx7lZzYHCGO7A/132"]
[692,"Struggling","https://wx.qlogo.cn/mmopen/vi_32/Q0j4TwGTfTLfmR4mafTv92hFtgzkqOWyWombsQKzdh0cUQOMXmNHM74lmgFKicShOAI4fV781WVfibjf488TZpmQ/132"]
[693,"若懂，请惜","https://wx.qlogo.cn/mmopen/vi_32/XErROVgjgeL3oibQcAf6XLXkjicH4a9kcKj3aiaUFIJ5n5BUT0QA47uLXxuibt7B9IGz63ya5EP2CkEwQzoCOhIdSQ/132"]
[694,"℡对着晨曦微笑","https://wx.qlogo.cn/mmopen/vi_32/npnbibxftvCic2icZE1wNJhROS7zl3tvPq2hiacdX9dzPibuia52NV1FtnambFuNxibWTmiabqOktAB8ibTwFL7MZ72ianQA/132"]
[695,"一路有你·道蒙","https://wx.qlogo.cn/mmopen/vi_32/YXWf1vRiaQn8XRibYvhpVticrknIFAMkna4y4ovWGKKE0AUTaTWs4tA1ibDu2V1cjvJ5Oe1mNw6BhicfoTKKGic0ghhg/132"]
[696,"Zzzzจุ๊บ","https://wx.qlogo.cn/mmopen/vi_32/Po7BKiceWzEhHMzQs3ibjH8iau8EE3pyhW2yO6eZjSuarq6QXzyGUBuUVONlrw5p5RCX6pDp5wnxTJAicCaQrDGZQg/132"]
[697,"ヤ雨辰~_~ ","https://wx.qlogo.cn/mmopen/vi_32/5b4xcsWNu7TMAWQA7aZUibUdgXR21oiaicDhZjxoRdAFwJcp4hdAU9TClh5lrJunJnycwUaibdukCjFTajazVNP2Tw/132"]
[698,"暝暚凉沁","https://wx.qlogo.cn/mmopen/vi_32/dibMDqnB5UCmwvMmHppChfupCianb8ym3pibpBHdIVEwq6lHQHicq85AUV2PibNXW6CnBqZNUYrfQkyJCWDkp10tXTA/132"]
[699,"ALice 娜娜","https://wx.qlogo.cn/mmopen/vi_32/RrnJGs3COaDVVeTf6AnibuoSiaY8ojzoTkFeAhFqicSicr1hIRhEXNOiaLewvT2PpURgsQRjysXpFibY6mk7xEef9byw/132"]
[700,"林云艳","https://wx.qlogo.cn/mmopen/vi_32/Q0j4TwGTfTJm8HHlDdUJib3CObiayOiaTqHWhehlOB3JkehAa0xTZUvGDRz8alUibCadKN95V3SMoFmkuTAUevNcMQ/132"]
[701,"一季樱花、落雨殇","https://wx.qlogo.cn/mmopen/vi_32/6jDr2aXhgSL49Xr2npu7X8nYzz8rMxgVNlbp4tXbUF4y8yMvOniadKGKfdbXkg3N5Hnialxf0tqo1Rmo5ib13j66A/132"]
[702,"靳海丹","https://wx.qlogo.cn/mmopen/vi_32/iabxXAydGfaC7q90EyY19FKxeBgNAWic41pW88jHafnicIDcUtKYM6EZXLO09h3kttFwUW25qye6T3mGPPbYW0BRw/132"]
[703,"孤。","https://wx.qlogo.cn/mmopen/vi_32/R7y9R3w62p9KOxJicycGtiaHdNlpRm8dF0KEIvEpFYdkib6oGSfoicBHzATKF1SGJRdStCIOAb8FY5qJMVWIuMY1tA/132"]
[704,"谢谢","https://wx.qlogo.cn/mmopen/vi_32/Q0j4TwGTfTJqRybMPxFXbpiaKxsmruM53gux9D5EDBfDJW1yzpCdOnu6iaHhwk1HJ02eJtu4fvWoicynWxIPkf2Zg/132"]
[705,"繁华哀伤终成过往","https://wx.qlogo.cn/mmopen/vi_32/ToAEjYKohHoPYibAWrrTJtwAOA7OFyb32oe9H7mh9CfaOCXa4Z4XVj6YicRicbN5BFEG7erGLIpbS0BtUiaicRpic6sw/132"]
[706,"い散落漫天回忆的碎片","https://wx.qlogo.cn/mmopen/vi_32/Q0j4TwGTfTLhlhXnHumYA77ZyXLiaauhdcqrb1TWBkyrX0VQvGUfic0rUmdu4iaLL22icibPt4OoUZ5Uic9yDGJib8RWg/132"]
[707,"Stranger:-)","https://wx.qlogo.cn/mmopen/vi_32/ZgicJsPJicbU77hjQtMcgVMBL0nDUcAxHPES6TB5gC8R84EYOSKnVa9gp9NsjqBn5HWvjaBoicqbdwvCIrziacpfHw/132"]
[708,"亮亮","https://wx.qlogo.cn/mmopen/vi_32/Q0j4TwGTfTJwBPTKg5wpZlY26whrCtxMnOWGvI0GZcqbOnkopgsDhXdOJNfQjDSOHexGlYbJicc5Sb3vIfX1TeQ/132"]
[709,"G-Dragon","https://wx.qlogo.cn/mmopen/vi_32/9c5jZickzCGMnI73WMSGNqG5P9T3KGoFa8DLTfYlLVQibM7Iiaxz2ibiabEZoqvwYXM3IvEQFjpRydmunVsev9dxD8w/132"]
[710,"守望星空","https://wx.qlogo.cn/mmopen/vi_32/cue9mA5KwznolaHpnT3Y7MpXJPzu8foSTSfvWomhbCwDXZI7u66VIicvXvcdkiblEF3ia1sNryJTGic0aVxzbjCVpw/132"]
[711,"厸","https://wx.qlogo.cn/mmopen/vi_32/BqCPu9GVaq0ULNib6gkjPbdibXdNCJaQy8Xk8nR57V51ILWZjw2qBcoeuHRjRDG23O63txChc4P2Rf2ZeHjq4F9g/132"]
[712,"지은","https://wx.qlogo.cn/mmopen/vi_32/Piar2px4Xu13ezDEJqibicAPaoYs0BsLYaJfQLicahQic4icPUFvlkNV0JnMX2LCZf22n0HicIBwSZMpnS22JQ1p8NTqQ/132"]
[713,"Jason Falcus","https://wx.qlogo.cn/mmopen/vi_32/mNCCyibfZicjag2gfVfL8gptnFt99cIITe17Vpv5NWWufaQzvJkEic8ICiavCUh1jfCx2jB8q7fWG8GPRdIxBiau5Pw/132"]
[714," 思考世界","https://wx.qlogo.cn/mmopen/vi_32/0njTiaunZxtaiarNmXicUicmB6fYY2RPxKE5zOXMVpIC6icQPlfUziblNMPlMdegcM0P2ZjEXOU05c2m9tRjXzKTw8icw/132"]
[715,"我心依旧","https://wx.qlogo.cn/mmopen/vi_32/H3qGsMRxXODOxXmeictqvTRQDrhrQ5LLJ1iaqlE5EhoicCpJGMBBYtmTDRviavia80F5yEcUjDTnB4ojMjcc1AlibxJA/132"]
[716,"李俊","https://wx.qlogo.cn/mmopen/vi_32/bHF2g9odggAK8kFEoLuT0yDFJ3h18Hj66SlxZia4XVZpwxzY8z08AibxXFLbjsiarAIYWpARkT6yjrIeH9yicn1CicA/132"]
[717,"路飞","https://wx.qlogo.cn/mmopen/vi_32/WIuGs7KgPu32zUooZLjcY0GuqJXwp1ibNE04rXq9pwH25pAicFiax0MEV7NFISic0wHY36OxCV221Er36CQ9Kv1cfQ/132"]
[718,"帅哥","https://wx.qlogo.cn/mmopen/vi_32/5WIb6qCibf6vDYn6Vvicy01eDoVx06FRBP2IBCUK0d2PoOxQWmwJ3AsicWCEKHVbRv5umxcmAA7ib9uvTe10uAkjOw/132"]
[719,"呆","https://wx.qlogo.cn/mmopen/vi_32/y8hg32SZIrEf5y187YI5YhJHMJFwTT8ktbb4vdpTN9tlqmLcsvuk8UwxLIF7Ax9nwBN0iaWddEj6ibupuNyBZrvQ/132"]
[720,"章先生and李小姐","https://wx.qlogo.cn/mmopen/vi_32/Q0j4TwGTfTIORmWDHVc7k0VNVNcwNTWdyOCQ2hG6NUjznuOUCVJAtnsj2uFX34xZm3sfIl3NldPPChdqMc0htw/132"]
[721,"斯文败类","https://wx.qlogo.cn/mmopen/vi_32/XSqic8ibNMGjoxx4vRW2KjicunDE9icdiaJ2uWMGWcOt9993jsQP6EvjNptxqrJfFQFPJzvle9bwre2mbwkugEJ83Gw/132"]
[722,"张楚君","https://wx.qlogo.cn/mmopen/vi_32/QnnDUhl3iatibFiaxiaVfibcbOS2g65t8rBzKyWMTfPoHuqdhLgNdXU5yXKFzFtkEtAnNiag8k8aiaGKtQWS3eBuQEryw/132"]
[723,"天下第一浩Darcy","https://wx.qlogo.cn/mmopen/vi_32/NKIf1oOzicP9kzvZH15S83AgI33uLq6C3r4gjDYVl0CGJW3TF0ECIzicTnFYhFGdZwYGfwuSzTNd7drib0iaz9y7Mg/132"]
[724,"是青珩啊","https://wx.qlogo.cn/mmopen/vi_32/bIibnsXvTyfBk1gm4ick8ozP9L5omvUIOM3UWB0exKMjkLfeOewVcpKWaOFxjOaaW5mEibIPHv8BKlborXibg7APzg/132"]
[725,"张甜甜","https://wx.qlogo.cn/mmopen/vi_32/CrIUSd73wOiaSD45vDsDfibYWOAX9r6uBbVLIQNgHTZ5HjFfc1F3NvibpgA8YB8qCpckTicjQdqGMcT4sk74PmDlqg/132"]
[726,"婷婷","https://wx.qlogo.cn/mmopen/vi_32/kFbNaxXYDdlzenEeANr0qa4Pz4BJg4OPIZhsSafqhR8yiaxU6sWX3TuR7iaCURia0Znv4b1picMgLricNQICV8hNWJw/132"]
[727,"甜味.","https://wx.qlogo.cn/mmopen/vi_32/DYAIOgq83eryOwjibj9Gl6UNWAic40RDGiajdQtx0A0M7t3JJdQSGQiaECvnoMomxicRXQYWqqLmxuxj2lppYvt5HoQ/132"]
[728,"AI_等等先生","https://wx.qlogo.cn/mmopen/vi_32/Q0j4TwGTfTIcqH0A7yIibHPbJZ9fTibrO4QdkbwGMPzDqCHROx6v8NJcSPGhGia1iapPAibcX2vlQ6PUC6ePBTJicaTw/132"]
[729,"晨晨","https://wx.qlogo.cn/mmopen/vi_32/fibzYSEvFhBejYsGZPZ4OLia5w3AibicVXVXYicbTtavWJse5AD1iaZxmcM4PoicDF6mXvY622DeAF3Uibv7m7Wo5WqVWw/132"]
[730,"MuTallip","https://wx.qlogo.cn/mmopen/vi_32/Q0j4TwGTfTJUqvktkiaB0psffltFGibozNlCoZCibfPiatZ6KdbEVh83NZkKmzUWbDsEgTfEKCouBY2gjryaL3DDaQ/132"]
[731,"九十五分万岁","https://wx.qlogo.cn/mmopen/vi_32/ANsWkPpsJvrdsb6AgT4SicxqhzRIicTAic5OmDqESJOb3TkGBVFa99vRs3biciay1wyTrFSQMdD478b7F81YEnw8cibQ/132"]
[732,"说你能做的，～做你所说的","https://wx.qlogo.cn/mmopen/vi_32/akLjhhFGRhbIjmTgB1WponnTaib79TWPSfzfQ4oX1KN4RZwzRzXlKtedDiau7e8svm3dxxrAzRDCSunM80MvUUBg/132"]
[733,"微微一笑","https://wx.qlogo.cn/mmopen/vi_32/h5Z3AbSHs2p32ibm3iaefLdtq1EuNm9DG7w0UrJTyfggsBjg5xfMVDZEWiapSlB1pSXa5PFButdxHanJPD3SBibgrg/132"]
[734,"小柔洁","https://wx.qlogo.cn/mmopen/vi_32/0fVJYITpbZlhqiaiaNUabKmzZ1OGsEibKvHXtlwzTGj4ibYCkejPgwoiajhela7PZPsIbM6q4PHjICmP6ROl2YP6hBg/132"]
[735,"定水宏卓药房","https://wx.qlogo.cn/mmopen/vi_32/Q0j4TwGTfTJ4RzUwExiaDvoxVr0OIMOSUw5I1rOVrKenauHSA5PysjRpBHzY7h6kIQ6opfzZrunmibKD4PgIia1HQ/132"]
[736,"晨宝","https://wx.qlogo.cn/mmopen/vi_32/icxibpghp0owenwMyoDm48ib7hGZPmdXNn6U5kHV9pDydl48e0Ulh9AibuCBvZhXOEZmB0UDachPiaDj6Zw2uBiajjpA/132"]
[737,"一杯香茗","https://wx.qlogo.cn/mmopen/vi_32/ANnbq6D0TrCg2eag1CtxM2yMcOVhYibXnxYibk6XIhxvCw7VeOjPxWDLbQrgP3ePIciaBmYnpFDWJF1R9PqOOLicyg/132"]
[738,"媛儿","https://wx.qlogo.cn/mmopen/vi_32/DYAIOgq83erxqhO0yufuYnxXAKgzTcXpdLJEmyAmB459bpo1XIBC0l53WV1xrsepymKWmOM4beDfSU8wNPJkxw/132"]
[739,"童伟琳","https://wx.qlogo.cn/mmopen/vi_32/UbnPnFq4libnMF4lwEnAEU0gmJ48D1qHqOialoBicohT4sabsbPxxOVpThMz7G9HDkicaaKBFzMwBlNQPBxkibzfaBg/132"]
[740,"女生不拽注定被甩","https://wx.qlogo.cn/mmopen/vi_32/trVDMEPYcsPcWnGTjjfyIea866XOMuJ6ia3NRibIwCvpbTTu17Ov1Sjibj5PGT8lYKvdnIWe1uZVQiaKMLBUxdq9VQ/132"]
[741,"露露","https://wx.qlogo.cn/mmopen/vi_32/5MQFhTUDgbJP5BEtKnAeVMvmlTALM4sbad24xZVYdcr9QPKInhtqxiaY1jPsD0w5OHqhicWxpiaBicicOAS1HPkaCLw/132"]
[742,"胡闯渔粉铁东路店","https://wx.qlogo.cn/mmopen/vi_32/Q0j4TwGTfTIFB7OgFB8sgY4HHjibTHLVibovyoCq8nlTaP8pxba4lcz9U7pX0J3ON82mBBSUx0HzD7Jdx8Nw1kmg/132"]
[743,"范","https://wx.qlogo.cn/mmopen/vi_32/Q0j4TwGTfTKhicnUUYIcvCcJK6Nn8AIRWdy3ic6rJZ6jKVzfzpDRib68yVib2FsSQ5KPLUMYS5skyJYWmiaE2h1X46A/132"]
[744,"淡忘","https://wx.qlogo.cn/mmopen/vi_32/Q0j4TwGTfTLT5GPHuytwyJb6jARnTEHlkicia9Cf8Osic3BYrLMas4ib5LzbOXU84YbNcKnM4TCLOLVKX4ico4gu6Cg/132"]
[745,"白云","https://wx.qlogo.cn/mmopen/vi_32/QrHu2tNJdcsMq8tlwXVkiaxscoe8TtnibVW6YlKUlquibYz5TBRibP8QiapXAwcr4NNTQNbO4tS3YNdvQomqFIj9LDQ/132"]
[746,"熊耀","https://wx.qlogo.cn/mmopen/vi_32/Q0j4TwGTfTIuZ5ltAhyaj9Xp2kC8e5EI6cMd8bmIm9rnx6dsib0fYvy8SE14Z0gk5kwgPlgiaiaMXRMDWyJ4jUq6A/132"]
[747,"木子君","https://wx.qlogo.cn/mmopen/vi_32/vfia5r1g1kDGIJzlJr0S7OK3DlPlRjDxTY5gIv9MorEmYdQGb9npUUtYSDHguImlH84ic3GX5vL8u5xrJckPn7qg/132"]
[748,"天天开心","https://wx.qlogo.cn/mmopen/vi_32/uvFiaicmVbWh5E8iazmafjEjmIqU08uUNS1VkxVBfgRaCLB5ibVgNPSgicUiaePXWRc2Tk7IR0muBc4W47TbVsaiakwdw/132"]
[749,"庞柠馨Mary","https://wx.qlogo.cn/mmopen/vi_32/jk3CHZNUhx4icqDpUCN00micp7GH029XQHjyMgP8FQcUic7QsGhbXznYNtmKZC1QW8mzbLToz0zXKVIUnw4eicuW4Q/132"]
[750,"你要快乐哟","https://wx.qlogo.cn/mmopen/vi_32/Q0j4TwGTfTID9ArXkS4HU3RMfSobxzYLI5j4ByEmYYibuc2WCN5gekVAe2EG6nHsn5qviaNyNpurlibuTOq9gjvNg/132"]
[751,"邓伦","https://wx.qlogo.cn/mmopen/vi_32/icAL9lXVicGB3cI7kDNzQkThAzD9LwX9FhyFNVbUPWooYibWea7ribRSwvGy6g9HyS17TP8S4SIEJFqaoMjkArVrng/132"]
[752,"阿妹越南一日游","https://wx.qlogo.cn/mmopen/vi_32/O7ALicZic7k30GJyZwiaCxglvYvy2U7UVAJbTrj5qJ4brOOqiaibkKpy05ns2iasgMDCrFK2sgpQLoZ8DicfpqibJbQy9g/132"]
[753,"卫轶才","https://wx.qlogo.cn/mmopen/vi_32/5OKNlJHylciaqVb4mAqb28wrle3ZASFwomaMxg56jUU5CtnCsbcDRJ6ZJORYuibkH0nHnhAhLQWXISpUcaZx0zTQ/132"]
[754,"晶晶","https://wx.qlogo.cn/mmopen/vi_32/Teia6L6TX2J051ADzqdEOkoJr97fdRbbKQXHyKtkPVx604tFwmuXm6tRiacNUMDdWpDEQWXMHticdYyzBk9CLszGg/132"]
[755,"帆布校服拽天下","https://wx.qlogo.cn/mmopen/vi_32/ic0Pe65EyHYspdzo18xdIicVMkH3U58mmcPCichTkXhTlAiach5drxCNCMZs03sGheMA0Aia5r0olnpyFhz7HgSaDSA/132"]
[756,"争争","https://wx.qlogo.cn/mmopen/vi_32/DYAIOgq83erEFRVSSdY9Y7eTNPvp7dUfzwOQzfsat9lcVy3jIiah1NZvxibvNgVgq6BvsVzs9iaprsvy6ExKKytUA/132"]
[757,"旧'汐颜","https://wx.qlogo.cn/mmopen/vi_32/PpFLIPhXcATIhK1JxlBFYP0DZGolbWxdUwWzY5VWDKDZtyq0CBoZS0jAPpHGy0xrDKJUST7thwc2uPvYbKzj4Q/132"]
[758,"韩素花","https://wx.qlogo.cn/mmopen/vi_32/skBp271XfVefnia56XXYiaouUOYyp3o8dM272qwVzLjo0CVAFpeDLsMuj0OYjvibUTZ4UaiaGkibzZI87icLPCPvp3uw/132"]
[759,"阿飞","https://wx.qlogo.cn/mmopen/vi_32/Z14PV4120aibh8hiah6hB587YBZMw5h0DzpeJakI36abzQHMIrhsSq4hLRlsBV4EF9UFa8jsLJAYzrUic7MsMLXvQ/132"]
[760,"ghost","https://wx.qlogo.cn/mmopen/vi_32/WVrnnTeJUgJzwEROQaHYtY3y81n0CmO5VR5Jpb6OCibBqBDg78Hv4yDfTNnH9pv6BhBp4sofztWm8gvWpK3R9rQ/132"]
[761,"bye 呀","https://wx.qlogo.cn/mmopen/vi_32/XSqic8ibNMGjoxx4vRW2Kjicg1U2w2jMKL9qa6rQ9KqZjGWDmywaR3ft5MRuicgTO9nhRic68Q6xlIrn6oRM7DD2zAw/132"]
[762,"时光倒流十年","https://wx.qlogo.cn/mmopen/vi_32/dZuJ3l2LcW4nHMkYKSHJloBEQfSNZC6XvwvtRUc3BgGxuLLCWq3p99AmRsyk5txXhoOQepk3GK0xw19VF4giaOg/132"]
[763,"谭清浚奶奶","https://wx.qlogo.cn/mmopen/vi_32/DYAIOgq83erPDDr4jrDs3Xp18LtaKD3ABG7FJPAIib9HvAsLcF1j2l7XjTWhtibGOgIq9t9xnnfDiccfiarYNOJJEw/132"]
[764,"宁宁","https://wx.qlogo.cn/mmopen/vi_32/Q0j4TwGTfTIhkl44PZasVHE6PrGSyStDE4O4XOyChutRgYWIXC4QE7FibIvnQekJ4MuicBnr4WGpk0Yk7hmByk0Q/132"]
[765,"慧","https://wx.qlogo.cn/mmopen/vi_32/Q0j4TwGTfTKib60RibEwtlCHk2jyO32FuqmHTibian4d6tzvjNNVyibypicDsk4megOicibdnoGjU1Fb4ambYsuVoSL2fg/132"]
[766,"可爱就杀了","https://wx.qlogo.cn/mmopen/vi_32/hUNpsQOTgoPNyJqARC6wml2MaykMpq5C0UBZDenthkR0COWr4ma02Vqsg2rLibzt0S0XPw2G9VErfWYubRIT0Hw/132"]
[767,"琉璃年华","https://wx.qlogo.cn/mmopen/vi_32/MYBSKiaNib9QFK84xCYExUsHsUSocZBmkEZwlocsLNvup7ia2D3kd7YPkcFEDA7RLQ7GvE1dzPCLnvKrxvesia3lZg/132"]
[768,"娟","https://wx.qlogo.cn/mmopen/vi_32/ETmicU1bTbJ97Fv6nibjzOUqiaZpibdy7xsrRb1TN9jjBLvKEz9xiao0fUTa1XrsHb6dB4ibf0kwXykCTnrSuAKFAeOw/132"]
[769,"陈喜娥","https://wx.qlogo.cn/mmopen/vi_32/XnsbiaydNup7RQDr44BOnHibibDn7WvicKsP7MjJA3JGBjXd7jdzA9tyzYW4ZzZfUeE5PicoW2ExA1BmX4YoZTgM9nA/132"]
[770,"吴希群","https://wx.qlogo.cn/mmopen/vi_32/e6R5f8nLnNFMLlatOu0yZbta6D8eHrA31wUlBOMT0cfYpYdzlsLw8Pu7z0kIlUyEVhSwk8qYicCb0uYrkI3icaYA/132"]
[771,"风吹屁屁凉","https://wx.qlogo.cn/mmopen/vi_32/LJQynkicp4SghvXXVibLaV0SzpsWNWqzR4FFbt3jRK9BmIHR4owd24icOUNBXDpo8VibOeaibuRqpia0cicyfN4HLBNJA/132"]
[772,"静童豆多","https://wx.qlogo.cn/mmopen/vi_32/DYAIOgq83eoFSwpoY4ehUsKeUoL5pOZX9SmcJwLx6Wh8IChshpQMPjfp7Zr3tsp7sCg5w1UYcThgUUPIlBxBlQ/132"]
[773,"诺诺","https://wx.qlogo.cn/mmopen/vi_32/Z6H7zTmvYOGSs6jseXaWuqhTyQr3OSt47XskmOI8m14JzP2JAKRY2aNbwStGdiaSATunc0Do9R2L3Lj6jOrhq6g/132"]
[774,"我","https://wx.qlogo.cn/mmopen/vi_32/PTLfK4yJEbZS52ppb019bXTesp5LwTcujgaZUrfPVCvgpuoHCAJiaMXSptTImc4ibrps38FogbGsIJfiaLyU8urEg/132"]
[775,"小豆宝*^O^*","https://wx.qlogo.cn/mmopen/vi_32/Q0j4TwGTfTL4jnwQhhibicA8sRFjPYHU1iaGGLLSUGnOk16AiboiaDuib4SLCMjUEL5k9Vaw73OVGUO3jq8iaQTqgtiavQ/132"]
[776,"手可摘星辰","https://wx.qlogo.cn/mmopen/vi_32/Q0j4TwGTfTKnqHpnFe3vR2niaY5A5XDDbZ5els64myaso7tno11RMiajibycwIopaa8q49xVPLq0dicx3iaDA9F1deQ/132"]
[777,"至尊宝","https://wx.qlogo.cn/mmopen/vi_32/0CREtia4V1ZMXfKibObzxPPlK5Vmc6IQa35UhQdqGdyJRb3rQiakcRbrJxkYXCuayibQxelQiaJyyR49TzibDqe6Qphw/132"]
[778,"丹娜（顾嘉琦妈妈）","https://wx.qlogo.cn/mmopen/vi_32/Q0j4TwGTfTJBru6Qa44qibbZdRLia35BkZrlnjLGFnOI89HYU8dXoosaT0CQo98iam6eQUQEAyup6713j5L8YGU5A/132"]
[779,"兰考童装店","https://wx.qlogo.cn/mmopen/vi_32/IxNUxicGvfiaicK6h2QfG00HXkX9pLLia5ReBia0hseTYgPOsCKD5DIP8CCvkEVenJDeF0ibjhljfXct2RlibK5RB4JyQ/132"]
[780,"九离.","https://wx.qlogo.cn/mmopen/vi_32/kStWSWm5PGgQZJQAQG4cFlbF0pHDTJgx732bgicrLcOWmgeNVBV2uBYJ1SVEQrJjOTZU6VvMiakicSR6BABPgAbAg/132"]
[781,"爱笑的女孩","https://wx.qlogo.cn/mmopen/vi_32/RRgrNLy7uV19jk5WfB9t3BqYm03vib6tkibEyI8Avt7icet0icS7YEJOTdA6nNHYtkqfJg1iaMUicMybgRzYtjVgrRyQ/132"]
[782,"笑等茶凉","https://wx.qlogo.cn/mmopen/vi_32/tMzlXA6gXGFibV3akSWUAEibvOxBiaugicL9BjFRxln7fg11bY2SuAIBH9S5tj2mib5vO5C0HCmicWWoCHDDCc3mjXkA/132"]
[783,"迷.","https://wx.qlogo.cn/mmopen/vi_32/ZI4jz3sgqYp1klwmOrp87FeIibPrmFZwFfuogDqZzDv1debNPYuHqHtSUiaHXcKYwXZEhYRTAvXWVh39kiaBDGJDg/132"]
[784,"海阔天空","https://wx.qlogo.cn/mmopen/vi_32/DYAIOgq83ep7j6CsppsbQfjmrxkyvPiaLWUJFNpPaic1pBXj96tKwYOmI9RvefGN6f0SE5eH7YqBJ8v8B5TicMhdQ/132"]
[785,"快乐每一天","https://wx.qlogo.cn/mmopen/vi_32/wRcI5T88sZr6XRUKLnna8W4crBRYIcylOXsicSpIrGlJicOGTGjToWRLMDtCUTG0MJXM6tXiaCzjOd2NP78jHNiaog/132"]
[786,"A路人甲","https://wx.qlogo.cn/mmopen/vi_32/Q0j4TwGTfTIlEZEDyXLibiaA15DNlsGMyINqwAxbRusCgXg52XdGEb5p9zT375V1gA6BuCqpTZ3II4gA5eGX8HaA/132"]
[787,"温炜斌","https://wx.qlogo.cn/mmopen/vi_32/R4DicBy8rqel6RN7XfrtWWrq4RM6caibB4FJxIJouxdtyX80OovmicuG01AEFiaz0Mjk98KLpkP0f8l5CjaKx9ErCQ/132"]
[788,"张书瑞妈妈","https://wx.qlogo.cn/mmopen/vi_32/YvjH7KQ0q2O5rf8pjIoKeNAFdiaNevfz2fUHtiasDQ2KStDbWRx6YIHbQG6QFiblJewkTw1Lx1aQsicZQYXpvHM5Zw/132"]
[789,"安安宝贝","https://wx.qlogo.cn/mmopen/vi_32/maSS4JuE2biantvBka1mduPsUJgENgeYbBXCAvYWVTDsicFJt8s3NqOhzrOl9VG8lb1QPu0bAzACvP1BXRJPAGog/132"]
[790,"¿","https://wx.qlogo.cn/mmopen/vi_32/98nrI4ibTbInYIsqWQHnYkcAmWAO1vcGHPdskO09UK5FSglOxic2NOfTjoDyhLA07yVeDZ0N3QViaialu5z0icFWicJQ/132"]
[791,"小燕子(敏)","https://wx.qlogo.cn/mmopen/vi_32/Q0j4TwGTfTJ4Lt3bQP6mjB2HJXcLrAPnH1anmzibQYHGOxc4iaLntudw0ZVoWVJFVQ8lpTrZxgVkhgeljUGI1DWQ/132"]
[792,"45°的忧伤","https://wx.qlogo.cn/mmopen/vi_32/PiajxSqBRaELzyUoPhBMyMq5DtW8LtL3diczIPe2rrRAgct2nTrHJNKaRweOB6a35QpCem7fkKzAeemia44b6Ueuw/132"]
[793,"海杰","https://wx.qlogo.cn/mmopen/vi_32/akiayWTbquH96f6d2iceW343BtI7Hv1pP0creWWrQeuqTQAfthSOyxianYia0zzKyubxGIbqvR0iaoEibOHDUe6ibQt7w/132"]
[794,"心肝宝贝","https://wx.qlogo.cn/mmopen/vi_32/oGiaxSQAjLbkV6Tfge9lVTjLIMjtVT3EjQugoeG4Grbvet8ThnYUIa9x7MnNBnEBfLrpvSKmcDdVLxzQicYNBO1w/132"]
[795,"幸福一生","https://wx.qlogo.cn/mmopen/vi_32/DYAIOgq83eoAbem0ce733Y2B4ntVFAzqe81YCgjTXZfMicNDmMTuAL9oOEYTibsmDLhHfjKI9icmEO6LE0DnBTBWA/132"]
[796,"长凤","https://wx.qlogo.cn/mmopen/vi_32/Q0j4TwGTfTKTXzqsgAaBOaaqMfBjVSIFfWqxLn8kSjwWkm9yFKf00G6GpLaId4cNbBgyTuslzUEKQZUHdrUbcg/132"]
[797,"一帆风顺","https://wx.qlogo.cn/mmopen/vi_32/Q0j4TwGTfTJrAOiaxctvTf9fL8qZpIbClkODK7FHaxNYmoDqfhRvORIQGPDRfOD9ibhtzP9zao5WXujlFWlemTEg/132"]
[798,"YY","https://wx.qlogo.cn/mmopen/vi_32/WhoLIb4HZtsyn9yAPk1wVgwpicwUD7RyLYQqojiaib09w3W2tMwyiaOFbHoojssdU7CgicXalzcdh336v1ibQZXqgSibA/132"]
[799,"唐都优尚    白象利民南路1号","https://wx.qlogo.cn/mmopen/vi_32/DYAIOgq83eo8A7mVEltWot5Q32RDKz6pAg20ey3vFiaxNXasBBicUE0hsic9dmnD1iasbh8TMXf8eEcRaj9BlVloPQ/132"]
[800,"寒冬腊月","https://wx.qlogo.cn/mmopen/vi_32/XnsbiaydNup7RQDr44BOnHxFo0ayJVQFx7eAncKmzR43tTRvR2nCcka1zA0NdNhRHGeJG2ONialzh2wScojwHZrQ/132"]
[801,"瑶瑶","https://wx.qlogo.cn/mmopen/vi_32/PCGPouib3kwCBgRkI5DicVwCC9tmzicHz328YlUaJbRLJot7HXvtZuOsRebHG6VmLgX9fROpjsGO1ol3TqvCuQYGg/132"]
[802,"陈锦","https://wx.qlogo.cn/mmopen/vi_32/Q0j4TwGTfTJT1o2KO1Ctia7yccXG2lRorTicGetLRbtibUXOEUDCr3jfDYniaia6nqTmPk5rSWqVbVxwQfibNsEq9DdQ/132"]
[803,"富贵吉祥@","https://wx.qlogo.cn/mmopen/vi_32/m32YKMpOURgk7m0sicIj3ibZoibySKuNg8yiayRUTRMzV2yLcfyjBDzDuvHR471Nkiahrullcbp7bsowJib3eptuURcw/132"]
[804,"林玖。","https://wx.qlogo.cn/mmopen/vi_32/Q0j4TwGTfTK3D9s5XYkroMsZy0cDibqpKktlpOlIlGKluDZOfiaqaKM9OQIgTSngnaxAZN1Hecno6KjITyU0NAAQ/132"]
[805,"魏良辉","https://wx.qlogo.cn/mmopen/vi_32/Q0j4TwGTfTL66weiavibx9SxPSsSPdZ12Lc96dXyjzic93AicwDRVu8V5licVmxQ5ia6qXQ8RRIuibYvg50OT8FzlnynQ/132"]
[806,"梁","https://wx.qlogo.cn/mmopen/vi_32/Q0j4TwGTfTJFmYbspIpxQs3W82s4HzO5AHh6LgxTJ0oBpGvcHNav5tOoiaOrgehEqPAD33OxBHiauzibcPSFbmY8g/132"]
[807,"DEMONS     EVILDOER","https://wx.qlogo.cn/mmopen/vi_32/Q0j4TwGTfTIr5qh5IzgYOib1IbLFR1VjTHMhC7zIakxiaQMOEqIWqM5sV0kmpRNwMYJvrMC0ib5Dv6JSSxqj02Ilw/132"]
[808,"章莉","https://wx.qlogo.cn/mmopen/vi_32/Q0j4TwGTfTKJ69yqTHoeZPBSqicSibH2WibJjLrk8vk7aIYFpFYNoNflxoTJdlhtWpErHtP6TmNGoKufvDPEiaicobQ/132"]
[809,"爆裂","https://wx.qlogo.cn/mmopen/vi_32/Uyt87EKHBHJlicg33WG2QHuPs6n544oTz1fv9bbUkM02lQiaaib4jKAUjdb0x7nD8mveoDfAbycdjZk5lxCPdNnLg/132"]
[810,"楠楠","https://wx.qlogo.cn/mmopen/vi_32/rc1x9rXz1JQrpzpYIykPR7BGMTW6ZkujVSTQxGic9Wibw5OK6YYGfokGVbGMokjWETfia3Z8FxGiasEGPEqnjLPx1Q/132"]
[811,"心海彼岸","https://wx.qlogo.cn/mmopen/vi_32/87rAP06gwZTKWQsWy2IZOX7kHBoS89OOxIpRM3kCXGd3jSKibgmHLCeZZKeIlj6tRqziae7DptPZY8GiaG5Y0IuEA/132"]
[812,"Xzj","https://wx.qlogo.cn/mmopen/vi_32/Q0j4TwGTfTKicjH9xscKBZ9icfeibcMIYwKxuCic9XUMRGkuJVKyad9GLfUyFUPQPA9Zvs3jGdG7vzibMmJrmK54wicw/132"]
[813,"楚璠","https://wx.qlogo.cn/mmopen/vi_32/NGNohO6ibmNt4XbcLXXwzX4IawhVTKtmS5rC7AwLXxDv4T3IUoI8FK5WDLibyRM8jy9xqXe9G1PoK8libtqnr9XCQ/132"]
[814,"初心不变","https://wx.qlogo.cn/mmopen/vi_32/AoUMNHUyJNlI396BPLcldWKtYZETujDiaO3LPLHHeibKhxtR8LZG8gf2Igibz3qX9ZVsSRqqyxKMmHm2gr1dfFJKQ/132"]
[815,"啊嘞","https://wx.qlogo.cn/mmopen/vi_32/n3rnndjr80yxQo6CpKBM1iaibC6UZLyg5oRXG5IOXt7SgB2CnJatsR6cYTaHI2qiaBEDPQZvVM0lURPglARu6xToA/132"]
[816,"晨","https://wx.qlogo.cn/mmopen/vi_32/rq1WRl9DdCNQJ5gibScSH8v2qz7RDibr31sU1fYzo4g7XrCZwkd5FEqm9aCV8yXDyIkuuUPV3JjhKHibibug0CLQmQ/132"]
[817,"仙草居老胡正骨推拿","https://wx.qlogo.cn/mmopen/vi_32/lyLDFWqyVPgGwYlFVJQqyfTsuXibP3kZtAeIuhO1ySA6tRXBqYMklohOoJYGMicFSBmlOKx6nuI1J8jDCYoRa6FA/132"]
[818,"好美","https://wx.qlogo.cn/mmopen/vi_32/Q0j4TwGTfTKL04SnrHqJWVXo84UQchiaH7PAKMHDgl8nBFWPURicmKub8FsjVxxibTgN8j5Jjs4uOJA7Crl8p3Wwg/132"]
[819,"󠀀󠀀","https://wx.qlogo.cn/mmopen/vi_32/dYoNWAX3zbcxz1iccicb5JGBQwm4NnXLsvHKghxiaTPgBKhIaPBmiaUlLpZb5LwLpM9gpZ7YlzP4KicbQcoEblDzCuA/132"]
[820,"盖世英雄","https://wx.qlogo.cn/mmopen/vi_32/j1LmYTicy5ianS4BdGByWg0pb7gFsuZ5u7SvAzGk1jlkFDNCGCTLSGyIL4oh6kC2fzLUy36zkSKPOLJn3ibk6Cuow/132"]
[821,"特别","https://wx.qlogo.cn/mmopen/vi_32/q5DCMIiaYCf6icLvm8mLsiaicBXqMhSJ2Ou5Y7njzO7etG27b7Jn9Aonbh7iaI1UILTPXREbm2VeenslNldibicJl9Gng/132"]
[822,"为了幸福加油","https://wx.qlogo.cn/mmopen/vi_32/1Eb0f5AR317gRNBjAeJdAGhE489PtQ9lk9iaJqUfia7UMwiaMVHYL56PBJP2YnyiaZWW0kdVjf5GbuSibvwUI28FYTw/132"]
[823,"于庆结","https://wx.qlogo.cn/mmopen/vi_32/8AdGbqzNET47Ax4tdRiaH9DlWCIkfeuDMdqHkibOb9LK60pPxf45AeZPLCEqtJG8Kow1OpEZ07u1mvs0QfBewn1g/132"]
[824,"梦吟","https://wx.qlogo.cn/mmopen/vi_32/Q0j4TwGTfTKvwAdZEaVTwMEIhB7aJfXXwLN3DBTiaoCRtlSUVIbNRn2CDDibKGuVl1Qs0GQIj9Qj1wjIlZ9lZpKw/132"]
[825,"星辰大海","https://wx.qlogo.cn/mmopen/vi_32/Q0j4TwGTfTI8oD4NR3gNrjRNtvPjhN16bw0VLkJ0RtRZ3uJHr7pY2qjTw72FMJVTDOEGiaCvibo48dRCicMFKZjKg/132"]
[826,"专业燃气改造 庆哥","https://wx.qlogo.cn/mmopen/vi_32/Q0j4TwGTfTLpfvHHpHP7oJjpZfdNvialeEreGznN3dibViagRicEunbR6sLDh5juZvzxgettEkoFDEoibNboBdUF2XQ/132"]
[827,"慢慢人生","https://wx.qlogo.cn/mmopen/vi_32/Q0j4TwGTfTKiaCqCRNOgLqVx6GUAcWXHxciaZEzzkHEAh2yJ1LQAZeKjhW5dRoRzKurVW3QpsJYh2OiarAMAY9lOQ/132"]
[828,"xhl","https://wx.qlogo.cn/mmopen/vi_32/AYXs2icuR07ShuUzfUovG8NJtTHibvsjEnOuGv9E9oKSg1Ha1VSrd8b8tLTfkJwlawYicicot3riczia9LPsYhFk585g/132"]
[829,"张艺兴","https://wx.qlogo.cn/mmopen/vi_32/gib0GnFUia0bRryh6JaSD3HEhZAsmpLAwFngSUQhxmJjkdTT6AnJibpwTPYj0nn52Sz6tvia9VXXzicseTCb1oaDvTQ/132"]
[830,"玲大姐","https://wx.qlogo.cn/mmopen/vi_32/Q0j4TwGTfTKMAviaE2ianZYHwFvMtbZkqFsCaxF0nfX2NuQq65uiat3A4YMD2OWzWHKibQT9nn9icyjnBCYcol50dqA/132"]
[831,"牛牛","https://wx.qlogo.cn/mmopen/vi_32/q9NibsiaUwicRwBZFibrUibdom6tbRbVbR9SqUDZw7MGU9JuWQFIpeLgGnWMf8BHrecKCMjfLXnia5b1SpDLlOw9EIVw/132"]
[832,"欣欣向荣","https://wx.qlogo.cn/mmopen/vi_32/Q0j4TwGTfTKcia5Wnib8RhJ9bue7cnfb8YqLDEUw3MyzcjPc3pG5bfOumw7ROVuVZXRJ5ckPnarHEuuKNqlZasWw/132"]
[833,"~浅浅々岁月~","https://wx.qlogo.cn/mmopen/vi_32/VmQlJsJetcj8YlcJfo3mSYs6XAQaM14boNN7F8ibAVyKFiawt4N0ub1t459q8cY4T1FetO3tLoibyIDzFuSG9fXaQ/132"]
[834,"浊酒醉无忧","https://wx.qlogo.cn/mmopen/vi_32/TbYAmicrxTvImUdMt9ic3FVWLzrD7ELCxd2A9x6Fe0spZYChSHUqGeSjaA3xRjbsXfOC6btvD3rX2tqmibibAaGVzg/132"]
[835,"漓殇","https://wx.qlogo.cn/mmopen/vi_32/Q0j4TwGTfTIyvSiclmyLiaRAmzYKjgx88zC6VUrujEkxh8iaA1C2YUsOVBuRRJmwgQ9PZz768icibTvT0YvBzYibE4gg/132"]
[836,"忘记过去","https://wx.qlogo.cn/mmopen/vi_32/Q0j4TwGTfTI8RpdvHdR5hKCzsibUkmQQiaVaL0WrchPrthoD4v75pFhfk3jo5uTbS7LTib39JSRbsicqOVCHVACmgg/132"]
[837,"心软只会背叛自己","https://wx.qlogo.cn/mmopen/vi_32/rCsYNR5N80VNdkNp3Q1MT7hWudyMeB8HXOlIciae1RePnMOMR1gMf3wrNBIvCG5tviadJPOc7h7h6ibu4m31yT9nQ/132"]
[838,"繁花似锦","https://wx.qlogo.cn/mmopen/vi_32/juFm4mgtpYLD9pZlkYnt0AibR4Y2gj1icw0qdCvGbCncca4kibhGGmwEUwFdMdbflVP4h7fw5uEpZ70KmJibC6Vvfg/132"]
[839,"周璐璐-婴童用品大全1号  招代理","https://wx.qlogo.cn/mmopen/vi_32/Q0j4TwGTfTKAyVlHW9EaXCmzPsYWMfoicPozwxdYJHC4aHSLb2EicFfOZL6w6PibmbCjK6YnVF9jBvuTX8MonLfAw/132"]
[840,"qrda","https://wx.qlogo.cn/mmopen/vi_32/Q0j4TwGTfTJu3f7YtP7YqG6UTekiaZWIPib0MxAhp8ibKicpYLuAszh07G0XCkoIvplMpb1L6YR84gF6MAQVYsZT9w/132"]
[841,"小可爱","https://wx.qlogo.cn/mmopen/vi_32/Vrcj1nf3y0aADiaPe6xG92kxa3b04fPKe7Wj2iaqng0emjwSQTj3p8ELuHcVlDT7167OGCrWJFttS2FocwlodCRg/132"]
[842,"梁诗玲","https://wx.qlogo.cn/mmopen/vi_32/PiajxSqBRaEIdaM7rB91AuD6LvXibAebwl3sZuZy3nXbCjh2kXdiawXAMsA4VBz7yO9QF3ph9xdic4EMMd4259pRbg/132"]
[843,"凤之凰家纺","https://wx.qlogo.cn/mmopen/vi_32/4NOsUrdClqP2AAZRiaGRvOrkEkYmPHib697vibspG44o1H6c8QR22PXpibCbibV5nKuLHn1EwJcWjtnhMElIPzNcGMg/132"]
[844,"美美","https://wx.qlogo.cn/mmopen/vi_32/ZTb6rw5weB9mmlk12aFZX7zO7VEmZsPe60hIg1uLjU50MWGPWd2gicIuZ7p2ia9aJQ1U3uHhuLXb0VGVQdlW3UGg/132"]
[845,"初音ミクの消失","https://wx.qlogo.cn/mmopen/vi_32/akLjhhFGRhbIjmTgB1WpotMdmsQx09uGTZ7jl8qMaCouXTj2ztcYD6KLMXOyZiaK9s0OA17IDG3GusLZmrUYkdg/132"]
[846,"ALEX","https://wx.qlogo.cn/mmopen/vi_32/UZJicIJqia4EEHY27YO2JibFiajJG5vUt1yhg4EkPQ7wAfZYp75SZGucMZa3zzPjsWXXibDFRTsPMwZTPV3YibOoe8fA/132"]
[847,"奔跑联盟小影【天浩】","https://wx.qlogo.cn/mmopen/vi_32/Q0j4TwGTfTLosQf52K3rscqz0iaeKlmrRUJ2icHDia5Hd80Qohy4owtvojiavr54RpTdnMXFTnnEWDutXMWLgQb2tg/132"]
[848,"韩清海","https://wx.qlogo.cn/mmopen/vi_32/DYAIOgq83eqAEskKcjX2DEv4ngqps4nOoYXBxUBRBk2Z8ibqKH0qXF5f71AkDpbrGgymobZWE7NtHOBGCAIBcsg/132"]
[849,"江非凡","https://wx.qlogo.cn/mmopen/vi_32/iaWnLibEuMJicDu5rNcLUMG3lMd5rguLs7KEg82ydGs4ELpptEkiaFnHvRpiaAwAHKnRglqicZIv5BnfqbDOWeBtLwiag/132"]
[850,"A任士强，强我中华15302011668","https://wx.qlogo.cn/mmopen/vi_32/Q0j4TwGTfTI5xh4TfWAquKGxCCIm7GwXFJKXvdmzQNscJgnu2fATWYxg7epibKy2aCBrGSKLOtU2hiaG1j98Gs7Q/132"]
[851,"诺贝尔","https://wx.qlogo.cn/mmopen/vi_32/WNJNS6TB2R3WdibXkfC9zEGyIWwysxp6WzibrmNoDM2BhzZrM2iapuNNOKxpicWkuXhibfCYsYgDibwt5RNBCFCNDRZg/132"]
[852,"喜狼少年","https://wx.qlogo.cn/mmopen/vi_32/9wMJwh9oo15Jk6Rl64XHugic73LqC5JjicosstTBCibcnykZbRpQtKvM3NsdYUXRzHZAm5Hd7Lg0HrUqf3fcZicgQw/132"]
[853,"J.H.N","https://wx.qlogo.cn/mmopen/vi_32/qu8B8Lv3tmnicG2XJNF2ibROHnnAfPsV5urD4pMfj4EQb6UwE2EZ2hlcYVQyicSCjkyrwDz0O2mBwaMshZrcbMYpA/132"]
[854,"つ゛つ","https://wx.qlogo.cn/mmopen/vi_32/DYAIOgq83eoSG3f4KANesvxiaib6ZOh6TrCYF7NpvqZjqZ7bp5qczzVibapyqVPX7eJjsTuWmcIsXMVbtebWibN5qA/132"]
[855," 蓉儿","https://wx.qlogo.cn/mmopen/vi_32/DYAIOgq83epzDZHict0iagXNRHicic4FlRCQWg5kl5mvgeHle7dhJMlM57Xq0nYLwQRaJwBqRrRM0IyAGM46RYw1cw/132"]
[856,"我是无敌战神","https://wx.qlogo.cn/mmopen/vi_32/Q0j4TwGTfTKwPPpTPNlyr2icjpeIiacdb3WMrX7z0TYbOzHWialy090wicyMj91y0VgMpDtnfUtL1dtIUGkuHfsKKQ/132"]
[857,"适可而止","https://wx.qlogo.cn/mmopen/vi_32/Q0j4TwGTfTIeb7ibo7gL9N8ulSiafUnjUpwBNYEkUIPys2RKoxOibmsvYWic6zqj9GAerI2tnzvuiadF8cRBMutqcsA/132"]
[858,"꧁༺ 流༒年 ༻꧂","https://wx.qlogo.cn/mmopen/vi_32/YTBiagAQnZiac7uN5vF6TS9ZoLlPN56YtZord0KTDaTKtJejwxvibLFKqRt1dbS9ZaiagUS4dFiab1gErmVT4VKibicLA/132"]
[859,"天天","https://wx.qlogo.cn/mmopen/vi_32/86pkScSSYvKv2ib65gSREe1ABnmLg7XgHvGHr4YAqXr8AbbAr8xicnia6YXWBtbWqChrA7ylCZZ7r2kXwwr1rMu2g/132"]
[860,"四叶草 ","https://wx.qlogo.cn/mmopen/vi_32/Q0j4TwGTfTJG0FRsNpJKYm1V4pfz0ZgKrrrhPz0jAv8ibMZF6QZbZmzdiaXXr2G6CgPPNBLg3SwNPk5gbYDrjCzQ/132"]
[861,"林佳惠","https://wx.qlogo.cn/mmopen/vi_32/uNib96tOcw583P8ZLULn2DEXTwhNOqseP4ua9ZeIoSqW5a7HWLQtibia3LT4RVBeAwNRqGUBk25BQ1AC0ThFZfTnw/132"]
[862,"翠香","https://wx.qlogo.cn/mmopen/vi_32/UWP0Af4z3ic1gEAodt3G2IFwFrBqicr6KFXA5CsGaib4scZq3icIhc8IBjt1AsCSGIibFo0vFQ1iaumMP8mtR7pzQEyw/132"]
[863,"轩宝宝","https://wx.qlogo.cn/mmopen/vi_32/9KcLTF0kKaYvibEBcghK4sCAjKJIliaQC1qiaW2GhSkGd3SF0grib9fJ4MSrT1VakQY3Bdg97sH9tLqzicgD9fhgSibQ/132"]
[864,"恋爱","https://wx.qlogo.cn/mmopen/vi_32/Q0j4TwGTfTLolI8niaJVLHvzhy0n5OTUhhfcAEuqokIcrHNGFPXRMxfTaJfa9XHja1a12ErQ2WGeibMxibicLBHstQ/132"]
[865,"秀与图   ","https://wx.qlogo.cn/mmopen/vi_32/Q0j4TwGTfTI3X8lDCGDNd94ibwUhCPnic1UbjY3ibCKX6DH2Q8a3TOJ4hFbgiaFfBkYTn7IKib3MMVZJBCQ71ocho9A/132"]
[866,"julie ","https://wx.qlogo.cn/mmopen/vi_32/Q0j4TwGTfTLljicfPWkKd5UEZCXAUA1icNxibNA6qnX08ojBxrBxzCATheiaBRoia1jgnn42iblZZHLPozbxp6qzhFVA/132"]
[867,"凌心","https://wx.qlogo.cn/mmopen/vi_32/FKIsew0rZZUxERsPdCpX9xYdgUn6dPeY2YlD9TaZEI3OylZT35W3PFd9QphjIh0kGQpbfWh3pKYQ6j1qbk44DA/132"]
[868,"LinDa","https://wx.qlogo.cn/mmopen/vi_32/dTgsQLIChPgEEBLicHH9atOtcdpKOzuqPibqTjeZX6HpHmtdjlWE9OIkfTFcTt4ibcgvjjC3JUMVJsSDZWfx6ukkA/132"]
[869,"不要低头，皇冠会掉","https://wx.qlogo.cn/mmopen/vi_32/Jv87fDfc1ghV6BneLxWpkLHM9vCMRq0ccEpHu2koE79AZeePRlHmfKSNC9o5JH9KlibB399HSs5Gibwab7KnkQhw/132"]
[870,"狗蛋.","https://wx.qlogo.cn/mmopen/vi_32/icoQs7pcrzN0TBh63ZNe69md2HqUghzK0MA0npWZiaJUGZpBDGd4APPWpLeBjf9DIZCxPks6lsnBrCqwCE994ztQ/132"]
[871,"I    never   left","https://wx.qlogo.cn/mmopen/vi_32/DYAIOgq83eq7sx1LAuQHHlvq2ZJ1ufCicEgD1EUaiaM8HXjEBd0521WpxwLqVldTfLInRK52Z00sp8dbH8uTSibww/132"]
[872,"天道酬勤","https://wx.qlogo.cn/mmopen/vi_32/DYAIOgq83er0mAxKX6eKqFx7icWlic6iad29YicUWMa3iatSmPB4sRyoiaEhWBEslPNlRJcHtJzmBDjl82V1BNeqIWeQ/132"]
[873,"白云飞雨","https://wx.qlogo.cn/mmopen/vi_32/fZju89iaia70GcQicre25mOQqt670uI8WgFFT6n8VO97xBXibL4SHMrV9vPSjxackbn5LPwOYHvQ8p6XFzNpSib339A/132"]
[874,"微笑面对生活，刘友蓝","https://wx.qlogo.cn/mmopen/vi_32/1tkrv0r2He78HVJdibMNthKyWLZyDS49BJsUFjWeg4VOnuawOibHXOdNTWdD2PHN9uyJou246crdHV4z8NibI2BZw/132"]
[875,"帅气十足的偶","https://wx.qlogo.cn/mmopen/vi_32/ZNtUyTRjQxNgvsEgk6NnzcQ36PLuKH6gAuGZ2jVltC9fV0obfzlMEWcmqN5b2Jz8Vyh05WYy0hoqxfHHicjoHBA/132"]
[876,"柠萌^ω^","https://wx.qlogo.cn/mmopen/vi_32/7kxEXDDofMluUW0Kr51OIib1vPRDnjbnRic9tcxlibmBhTy6a8p0ux8icPicx9xk8sjgsC8a4taMULicF6jL4Iz6SUSQ/132"]
[877,"Bereavement","https://wx.qlogo.cn/mmopen/vi_32/VkkT0CrrtQDVpgoCyLKkKIBgBM2icW1881xg1Cybt7CfibpluAc3cqwButBdd0IMXLiawngmicztKphE43KOFhyHeA/132"]
[878,"刘尧","https://wx.qlogo.cn/mmopen/vi_32/pnN24YAThCA4heqNFichdvIics3RMWINBPcParEMueZd9Iibg3uLaiaYCcMruZjJe2V2p9opkTInY6NzQkf7fgc0nQ/132"]
[879,"Top","https://wx.qlogo.cn/mmopen/vi_32/4r8B2yf4421Fczkvbl7EXBYFRdnsWDmzFkR6TUKFBfkebJLW1TnP0Rn1BP9SrmddtYTEc21PmeGgjibUFzkTZQQ/132"]
[880,"风神","https://wx.qlogo.cn/mmopen/vi_32/5pciaSBER90Lo1hhUHVsT9FLxPZDYG4iaR6WB0nInyZRibdAHicjwsPcSU566fpKbdibnUC79CBLMmWmwVZ9VcAYmiaA/132"]
[881,"晨曦","https://wx.qlogo.cn/mmopen/vi_32/bW3bOibtVQHbiawzomtbN1outhqFVuiaNYHDVl2jKhflLgW8xAL3MfvpIicEVAianSrrqQEXkc38vFn2juGBCj2JPxQ/132"]
[882,"梦回三国","https://wx.qlogo.cn/mmopen/vi_32/Q0j4TwGTfTIwibtCfaasrty9zeunicQRgU6LdeKkU4hfbibZiaKwXQeB1PcB4NIg7oKzvTPRI5G75t0rCTVgHaVeTw/132"]
[883,"A","https://wx.qlogo.cn/mmopen/vi_32/Q0j4TwGTfTIyNIia6IFvSwkdzGQaOZsbABXiciaibJJRznPbpib7uEaNmrWN1oBMv20Gp3IQu2icUaQsncIia1iawQwJsA/132"]
[884,"原","https://wx.qlogo.cn/mmopen/vi_32/vMoL0DhAwKWv8lGUmBHQw1xCUyyNQtJz6kNyLfq8AF6GS4FlxLv1yqo7YIW7AT6iaAmPHibLl5uZEWNx27VVmd1g/132"]
[885,"都是白开水装什么纯牛奶","https://wx.qlogo.cn/mmopen/vi_32/k5WzhLEn1AMhzQp4LelFO3FouMx0Vu09JVmf5SuUPpk9jiaejHAZbxVIiczDuNInkUr3BfbIoX3ybPfbiagAoMyXg/132"]
[886,"田海燕15096995078","https://wx.qlogo.cn/mmopen/vi_32/XZtOyNLLrVyRWU1L8qUiaYEzF3D2veMcSuX4ZxZQfdiamIP9oiaibbP3I4KNrdDcT9cia50jZtyK2D4bmiblRSZF68pA/132"]
[887,"少年的样子","https://wx.qlogo.cn/mmopen/vi_32/4aspGAwrIG27NOlhibsPRiaJ1iaOgk01XRvhqqM2PxdTvsIO5OIpoIbkfG8U5Kyw9URylSoqoKAx2h3x5xQrl3Exg/132"]
[888,"宇宙小哥","https://wx.qlogo.cn/mmopen/vi_32/PiajxSqBRaEKiaJymz0JttbiaMc4ITRibZ6SBddon5NM5y4Ljq4rB4IoYiao5hjYHW5kvcDEYQicqvWLzvuwdytCOBhg/132"]
[889,"秦莎莎","https://wx.qlogo.cn/mmopen/vi_32/ktiaV3fMR560bEEHibiaWe26hwykyFZvDjvS9o8bpjYH4tlG7BQnfDZVIExNzEj89XtLaCWJiaXd2hOicOkmpgsHTgA/132"]
[890,"奈何情深。","https://wx.qlogo.cn/mmopen/vi_32/DYAIOgq83epibZ4Kia4KGlOicBDhdoqbQmQ4icRpQZdjs91SwG4RF4RrQBnJ24aXFYoVwPicic7oOTcd1V57I9ibkdoWw/132"]
[891,"快乐三姐妹","https://wx.qlogo.cn/mmopen/vi_32/cDYUeFdKozuSwgDoODhsACyId2jZPU87ZSjDQCzcicB7iclAdyysNWJB6NKOiaVJ64ppibicCQmhBgl8UXPuPY6AGQA/132"]
[892,"鹿晗","https://wx.qlogo.cn/mmopen/vi_32/VFGl3LEqSG5u0YK2YiafWXujkBQdxUdmwcgM3hicZiaM6z8tibrvW8K0ufTQApupkRxD4YO3TA5AS71r5FdF8pICWw/132"]
[893,"彩虹","https://wx.qlogo.cn/mmopen/vi_32/PiajxSqBRaEJOBeUKlEw93QZWk1vYutQkKmVOo6aibHMtY2iaEy9V9Wf5D7xwTzG7tztNd36hjEIU8P9Z3khgWmtw/132"]
[894,"可爱的花姐","https://wx.qlogo.cn/mmopen/vi_32/IXRIPlLpv95GTAQKmnPPsKSP6mXDNGTppibicmRU3lDeySRbDzEwkK6fros1l7lyEQ9o6IicPHYyiaUQH8icibNyic1Rg/132"]
[895,"曾经沧海难为水，除却巫山不是云","https://wx.qlogo.cn/mmopen/vi_32/e9SJGeYSy2OiaFt2QWv6Yz8NOJPVdX6FBEorH68tfbTmjrI8eSDNvXeoRztl8oMIRiathjoIEgdphJnjanRq5fBw/132"]
[896,"李善心","https://wx.qlogo.cn/mmopen/vi_32/emXhd3CHHBcdxicAZZiaQ803ZwQfWYyyp8kjFrGZAmYDkjPMfnG4iaib0PJXqEh5TjkKtqFXg22LgdSRlVe3CqpurA/132"]
[897,"沉默","https://wx.qlogo.cn/mmopen/vi_32/Q0j4TwGTfTLrib7WHV0EyAgNftvHZOAcMSETvaUQgwn77c1iaCbPzJO9TkZsw2kBXMHb7IFfAz29dzOlDxCrzMuQ/132"]
[898,"Leslie。","https://wx.qlogo.cn/mmopen/vi_32/EhetbjdMqLiaAG7x1y9yKoKGldZxstrbMHO1icCgIQzBO3zQTuoJkUX5eCdhqibLAxNusNLarRVv8UZAJFhIqyZhQ/132"]
[899,"The strongest Wang Keye","https://wx.qlogo.cn/mmopen/vi_32/vamXjfMJWHYJ5UywicNPicBiaGnUOnpz0eFFIwDWicuic7dcU9DuvMjXTTNuWM9KYiaZkdiaiahmGbKl7v4TUJIEGZ8pFA/132"]
[900,"家和万事兴","https://wx.qlogo.cn/mmopen/vi_32/xVjbceo50pnPCf1XU07sibf1OtVFEXSR9FBucSfaHicQhY0tPSE7mEJvhv7xtYHyvAlggLtP4XLRfGrRicqHp5F0A/132"]
[901,"女人不是妖","https://wx.qlogo.cn/mmopen/vi_32/Q0j4TwGTfTL5fzfYa3PdQWBdT8pMYdQZHADprdn9BibicsJk7JmYvj3v9XfJG0hgBluNWlMHAWrTW166ibn7dSnVA/132"]
[902,"小～月","https://wx.qlogo.cn/mmopen/vi_32/Q0j4TwGTfTKKQ0vBuCoeQJkH4w9u1OvGSiaxQicicrQ5ERdtkrx6HUtibQUfMLf5sUlUX56AaGgPNnibuVTv15uwssw/132"]
[903,"黄鑫佁","https://wx.qlogo.cn/mmopen/vi_32/DmT3x0zRelJAgddpMCzZbW2ViaJRBV0vUiaJeTD1eiaNicSFHdU4pQ3tMBm9pwk2SIrN0FhzzpRmWCjka7Z4J49ehg/132"]
[904,"九命社会猫","https://wx.qlogo.cn/mmopen/vi_32/BZ2x6I2BXtzAQDhkyQIOwqkia9wykj68OoS0daNDfOayUlib8xsJ2sL4ecLTOOlNxMQic8C1aGwoibLN1p5FUdWbXQ/132"]
[905,"王","https://wx.qlogo.cn/mmopen/vi_32/DYAIOgq83epIz8IynichoeibSuicbxOial26BkW9QKHeWcWl6uYY0k2DLnj6lDAvrIx8u7fH81rZmFpt66jibJTNRyA/132"]
[906,"Sigh.z","https://wx.qlogo.cn/mmopen/vi_32/Q0j4TwGTfTJv5HunMDDhpe14kZkkibtkFje0P0ew3r5WicgdRVkIeFp3gciblK72atgCufUgzd7Mnns4ODTdODs7A/132"]
[907,"相遇就是缘","https://wx.qlogo.cn/mmopen/vi_32/iaTh6c0iakQv8sYUsFRXaiaLusKTVX4wngNxoaK3ohXAS1g8vvib4Ce80zOorHjib81p3MER24F4MrxyicbYkRWUcF6w/132"]
[908,"熊","https://wx.qlogo.cn/mmopen/vi_32/aiahdMNuuqDI0WSia7Tc65mP49WicH2vZ39nDMPzFYUgsIdvZqtlKdEFWWhqUiaIPiaD6iawkMoGSRVA4o55ibAic3wc4w/132"]
[909,"天空","https://wx.qlogo.cn/mmopen/vi_32/akLjhhFGRhbIjmTgB1WpohIFbh5kgFwvmx5YDJad8MYhUcWYTa1bCGCejtexwXOOLte1KKwSpp7jSwJlK1DLHA/132"]
[910,"艾薇儿","https://wx.qlogo.cn/mmopen/vi_32/Qp6EnXhUrLIL5XBMFCCS4KUWRE29b8m5gyspic63HVusRxYMjmzf0xNaPSKywrhA5j3B3kz4uBBMmM5ECOib5dCw/132"]
[911,"张永艳","https://wx.qlogo.cn/mmopen/vi_32/VTYt97zibibazQea5zibfMIzYfATRFWMwbq5ZgcLQwVzH58k5aicX2KiceyuUu9uPtQVEAOoicQgyZ16ExL2sPHKicuicQ/132"]
[912,"小丁丁猫","https://wx.qlogo.cn/mmopen/vi_32/MnRduGYIa9iarFGCZBCPaqice6x4I0UafP8EWdYtc1K2SNVVC3UsNnUdzyNNwzFl1ibIUesktNgfkTjL4TOOrkp0w/132"]
[913,"故人。","https://wx.qlogo.cn/mmopen/vi_32/qVetW8xe53RHEFGN56JlHtLBnU8UJMQmy4ibw4R27HQW02TTIPL0BQmt5lKfEnaDlYwxjM32qjiaNIzgY35QU9wg/132"]
[914,"空港","https://wx.qlogo.cn/mmopen/vi_32/vzGkibViaibSJoT9LIL6rIXL0tibWUMQyEVb6mOzVMicoskydYauL1tQD7SV1JEIibs5ajLIYhQJZ0LWkibI1CrSckdFQ/132"]
[915,"萌正太","https://wx.qlogo.cn/mmopen/vi_32/rBXshkuo2YeyvHdTiajY3C9vFgkiaibicjkN4ATKe4RSysYAiaDiaQYkRUUhJ6e2C3nSPDQEicZGrxf58EM3obZJV66MQ/132"]
[916,"梦*©","https://wx.qlogo.cn/mmopen/vi_32/7FpPuwNf67KcCicQkRQ4dxHtxTf7lyKxvH8O3u5cg9gW5RbyCw0OYZNt7evx2yhDQN409ETiaKoApQMjW6R3Qm8w/132"]
[917,"花絮心语","https://wx.qlogo.cn/mmopen/vi_32/XR0aErorWwkH7c844kPVqhOWBk8GWLcEibI2KpiaA45T9SGBHGhicIMBt0WzvqIK9DqIfNibczvqJJcNnALJyJ3tibg/132"]
[918,"A『 不完美，但从未心亏 』","https://wx.qlogo.cn/mmopen/vi_32/Q0j4TwGTfTLL6qhN5cP9Cd6U1sGH0sx9U91lA7YicrFDSBfA9gZ8Cx0ef2gc1TGLgEcv6ib8GpSeUHIMAibcdTLXw/132"]
[919,"劉","https://wx.qlogo.cn/mmopen/vi_32/DYAIOgq83eqUo6spEwFdy5jJCicRZIjKiaIMvicgQ5YZ4QvsfSiaAnZDpknLd5ErGWiaBngQLaxHg4jBiafmSnKdjHaA/132"]
[920,"郑秀芳","https://wx.qlogo.cn/mmopen/vi_32/7qAbQw3ZZL8PaKCelUtIhiarLD8AibXYYKfF4XLsB6NqGeOgaSmG17MFOic3rrPJkbFkbibibYW1HAgZsu1NFLrncsw/132"]
[921,"中国金钰装饰有限公司","https://wx.qlogo.cn/mmopen/vi_32/Y6ibjSUAqRgIAiaMgf7fx51dniawGR9Jjdia87k9ACbhFnIVbhq4zH9DTGOSwFDcB06OO1DFR9m6ZlOUZvmicbpXaCg/132"]
[922,"笑看未来","https://wx.qlogo.cn/mmopen/vi_32/Q0j4TwGTfTKXSckU9jT1skKCfljZTa2TrdrR48rwyeWZcgILq5peovibhUxma6gvgZpibOAFT71AlRs9bqAf15jw/132"]
[923,"吴汝勤","https://wx.qlogo.cn/mmopen/vi_32/Cy2Q6LjNamPNdVGn0FhVqSd8ppIGlmSHXNGsZ1vvLTQfpib97WT0YNuoye795FOU30Mu6quJiaAjWNkzAhEAbHPw/132"]
[924,"许春妮","https://wx.qlogo.cn/mmopen/vi_32/Q0j4TwGTfTKuGXibHnMIWTIc9sBhAPpnibvXCw6VPwbhr5pORgXLeJbSnQmpW1AvTOHx2I19AQBeHA07Y5ibZYzfQ/132"]
[925,"开*心*宝*贝","https://wx.qlogo.cn/mmopen/vi_32/Y50TXZDQian4pv4QWuyhHMQ2eAjwia7TNuJvGJ0Rx63IlR1FicjJFNGz2p5Z2zHJv3KibuOPrfm4doH3dcPrTicnPVg/132"]
[926,"bed","https://wx.qlogo.cn/mmopen/vi_32/GNWTIgLRicc00btRkEtdtSqWLElO3x0ic89WT7xWswKvWL6eWEyxVUmKIeVLJmr3uguvlfNeNwY67MvcwDicl5lTw/132"]
[927,"Fe","https://wx.qlogo.cn/mmopen/vi_32/MbUHzYy05SWTYBlGhAmo9WKgF7EZHiaJFuWnZ2Dz7RjPgyoOLAq4NPzlwwrs1N5YAbV8Xg2pSgicJYy1TYkcjF0w/132"]
[928,"不负众望","https://wx.qlogo.cn/mmopen/vi_32/d8h6xp5nSfwgIuicchspicWDvVofQ6evMia3hUg341OPBiaR4iaY9X9QJ0SEEDVKuQY9J93egjHh7G4MFJxK2cc7Ukg/132"]
[929,"随心","https://wx.qlogo.cn/mmopen/vi_32/DYAIOgq83erOKccUzBkMLTLpn3xlsMX3C8lpyfft8x2OtFuZUDp1yuNib5V0ZmNczc5paZW5EBdolicn7j9Vt48g/132"]
[930,"金豆儿","https://wx.qlogo.cn/mmopen/vi_32/dYf8QukhRFBMTtL19CESSauLKwkicPfxr9HhibdcoQ8G6CIPiceicJGd8C1pEWhHUfUooOwNyicS8UlyNE3LIpRYpxA/132"]
[931,"雨桐","https://wx.qlogo.cn/mmopen/vi_32/jyhWYtzW83lOBCVlnqgO4cHKL3rJH8v0zHX2lWU4w6eOr591OxQU6QGCtO4NbQ4NCZt66Z7X9ay7x1icaYyqeaA/132"]
[932,"不至于这样吧，","https://wx.qlogo.cn/mmopen/vi_32/npE2yj1qxSDyg92dZYfLEZlvSNeHFo3gtj2KvbsIlbiaWZONME6mcCJXw7OIJiaC7WsN5uKF6hvXUibwSQonj7rGQ/132"]
[933,"Betsy","https://wx.qlogo.cn/mmopen/vi_32/o9539ZDnXzdAZsUMQ9rfgPztsxOnoBcr0yAB4UlkFYQUXgRT4xmXFNSMlX1O8REWznAbJ4Pvf7ICysuYbdwFsA/132"]
[934,"贪欲无艺=欲壑难填","https://wx.qlogo.cn/mmopen/vi_32/DYAIOgq83eot6pFNPjfjeDWmqciaUnUBDVrMEjVF8HozuMXgkkX27IicLymUHgKAj38Or6EnjyrAnq9szQegTLYw/132"]
[935,"流年似水","https://wx.qlogo.cn/mmopen/vi_32/DYAIOgq83erxYKM0s3QBPoItQaJ8dHqJ9AEB48qsXCTycNiamNyQXJW5Ry0nBeNzugju0JylW0OVooicg6uict82g/132"]
[936,"马冬梅","https://wx.qlogo.cn/mmopen/vi_32/vNXCZmrJZOPib0iaeSyCGFAnm2Gh8vuAz24TZnOqDXZMicQYDYhZTFuZSiaLG9YesJHYBcAG9Fj3v03KMsica6v3JHA/132"]
[937,"fan","https://wx.qlogo.cn/mmopen/vi_32/8ynSZKHAqbqrxQRic7oNzCyossxMeVpCKneBv5I9XBD02Bovib7fBdGne30m27jMJFBjkjZrgMLFrDFUkJgCiatfQ/132"]
[938,"尘雪","https://wx.qlogo.cn/mmopen/vi_32/td0dxNfAL2j8mNBDlzbo0EjJj80siaAxZdS2ibbPyV8amIkuhjJUSTGK37p011IG50FcgQNgYmibCj3b3iaxOOiaUuA/132"]
[939,"自信","https://wx.qlogo.cn/mmopen/vi_32/icoQs7pcrzN0TBh63ZNe69tSBekmwcQZqA0eiaCRibZu2vibdj2ibmx2nAiaqJfIHcOcLwyDCrzicWVwGicsCZ81ekEoeA/132"]
[940,"刘果果","https://wx.qlogo.cn/mmopen/vi_32/DYAIOgq83epKkfI3TPfu3426qyaibONLeNx0vpg5u3jic6LxDzZ4uib6ibprbSgibwuzWzZDhjCmMszgpCceItj0guA/132"]
[941,"fss","https://wx.qlogo.cn/mmopen/vi_32/Q0j4TwGTfTJbSPetaEBiaoQBXEs6FpnHweOiaKBk3Reic5nM1U7icjMHIq8ic8Mv8tYCgH7MohLoJRDcMic4WILA2uPw/132"]
[942,"郑宇","https://wx.qlogo.cn/mmopen/vi_32/Q0j4TwGTfTLC5Ka1eZwPmicaDI6QuZicUmA0VumoicepYjTl2kJtHndbJ28acg3FUfvSs5wt3Hicmmvm2bsmb5n16A/132"]
[943,"A哟维、尼","https://wx.qlogo.cn/mmopen/vi_32/fKD3fHiaJajYOV13CqmaNq7Q04bdgbXHeMFMzmSiagTuVibmJDUMN8liaILuSCibduJgtAhdvVbeiakzJ6NOX6ClVrsQ/132"]
[944,"妞妞","https://wx.qlogo.cn/mmopen/vi_32/GbuyyY3icEfH6OgibDzS1vX3QxYpdJaDFSelIwtyqSN7bbNMFMSV1ztOqNDN58cPE3m0guXk3DqnBJ1wLfkoePEg/132"]
[945,"李俊","https://wx.qlogo.cn/mmopen/vi_32/OOlQ3QzDOUIU0M4TsSwdmibUMw0gOFR31LEcgvNdMLAc4dxyByQB86Gm9d1v2KXZaM2g6Snc65lw6wA2Jibu56FA/132"]
[946,"群群","https://wx.qlogo.cn/mmopen/vi_32/9wVIQxDlyq9bj4Pn71flHnZ6gn9MmPAcVsLXXibibrcVAlAGfN0B3OoIoKKNXR7dP4fAHYONCtb0TKQUbtrBJrUg/132"]
[947,"兰亭雅","https://wx.qlogo.cn/mmopen/vi_32/EP17340Zsaicxo3mD8XpCicmdAVMapcU59qOqQsbMdXwkH0Wwda8tlXLdLhwaticRDNicGk8bLgVhrK3tjxHMQXOtg/132"]
[948,"欣","https://wx.qlogo.cn/mmopen/vi_32/U88hZYFaBq4sow3sbDFrGzKGEt3Cbz4OM1wCwjAbQ3ibdrzGcEAicAsmWb7wdOrEYNuWxicia5WeDRydic1cbghE86Q/132"]
[949,"无悔人生","https://wx.qlogo.cn/mmopen/vi_32/Q0j4TwGTfTLYT91oOzrs5jfqsKRpbbWibQVe4yhvKRv5sricAd45BlR4GfpBRrlQept73IoId6jPrvU2icpxliaylg/132"]
[950,"萌萌15042578417","https://wx.qlogo.cn/mmopen/vi_32/Q0j4TwGTfTLia82CfGBBk5VrIoZ1wSERNmmsPqc5zpZryeoTz0mbQVPZlWwfZuJFAQtgEpNrt62w7yv4SfOz93A/132"]
[951,"冯靖楠","https://wx.qlogo.cn/mmopen/vi_32/DYAIOgq83eo0fJgjP29MwI6EeQAL2n9lSmr7UqhsjkHWZXIhGFcgMM1hLds3QQ05zymngNDPBQqrw2NVF4icC7Q/132"]
[952,"放狗的","https://wx.qlogo.cn/mmopen/vi_32/puO4hAia9hQMWicoalPM0YO2Obxib51fG01tCIvT77C8DGvmwdtZEnAS9ThwUL4yQhylbhAxmxibEkT51HxzgbSg3g/132"]
[953,"香蕉不娇、love","https://wx.qlogo.cn/mmopen/vi_32/Q0j4TwGTfTLewHQTMsib4iaYrbLh9Rl6WicDqh50gZAd34hibhsxx3zCdJ3hsm3alibmx7fEcibYIibYicNWXBKOtF393w/132"]
[954,"A0จุ๊บ李龙翔～13767097783","https://wx.qlogo.cn/mmopen/vi_32/DYAIOgq83epgSNl2cxzibGzDvrYO2mRCaHk0ib4Jia5xiblZCaSVeAUDCp4CmpZyTMkekrnzkkHPeTwH2ADqbs5iaBQ/132"]
[955,"终生难忘","https://wx.qlogo.cn/mmopen/vi_32/Q0j4TwGTfTIyNIia6IFvSwo3QvdPcJd8onxCtGD4ib2ELA9pQxZZdPib0z3MEFsPPEz6BQJI87P6ZoccW3xpR7wGA/132"]
[956,"玛雅房屋赵天桥","https://wx.qlogo.cn/mmopen/vi_32/DYAIOgq83erzyuDiaxicyr9JGia4J3DglTpWvF7MV4icHxRCEgiakbwdMXvI4Bia8ib1AriciaxP8yITSvNqJL6gPSKD36A/132"]
[957,"宋仲基","https://wx.qlogo.cn/mmopen/vi_32/DYAIOgq83er4Epg46JdKibxk5iaSXmAal6iba8d35aJuBr2YQJLetHaN0J6oSOQlyg5xdic1WeHfXRTl8IEYII2icTg/132"]
[958,"心如止水","https://wx.qlogo.cn/mmopen/vi_32/Q0j4TwGTfTL5ic5iaoLOpOlgibU7JSXiacpd2Pv6MOvZicBkP1C9lsM6ZO6nkL6CwPR3DoCMEC41iaoN80J5gTUE0rxg/132"]
[959,"马太太(代办违章)","https://wx.qlogo.cn/mmopen/vi_32/7XiaGhN7am7IuhcghibibR00SWR3BicSDDo1VTf2emoElW245LBB6Bh5VIiaTt7QNtqtH1xnhNWcZsbJGE24YFp8wVg/132"]
[960,"時石磊","https://wx.qlogo.cn/mmopen/vi_32/7qLPOD8wYLfHXMETKrRoFTuRUfMDYQDibkgr7HMeGAXdPicTBSGtQnuy3sia8pB2M0H4Ztx2shzA087UGJNx7t9mA/132"]
[961,"马浩然","https://wx.qlogo.cn/mmopen/vi_32/4JnIsBglhH7IcciaT0KbcWox5FYFibbyz46epAGSHoiaX4QYuy4RkdYATVlevs1aibA8QaXibWttNhbH2y7tw6J45gA/132"]
[962,"Chasing Dreams","https://wx.qlogo.cn/mmopen/vi_32/DYAIOgq83erGtWFlVOyWYiafDkpG3FopzPLj24FqD68ZqZyWZFQtEEBLCrMC7HDXdYic2MZGwYEaNibeSylGW12mA/132"]
[963,"往事随风","https://wx.qlogo.cn/mmopen/vi_32/utZyg8xsUkZXYiaiagmWMsfTahc2iaHHYFqxTP2icN5Vy5r4AiaY48sfBSjjXibyqVuteNUR6b67ibribS2JxwwdIV96Ew/132"]
[964,"め自醉自演","https://wx.qlogo.cn/mmopen/vi_32/Q0j4TwGTfTJm7FW7MQMb63MWpwzC5N6OxZ6r4vvAvICWE87sM4WEiazQkh4dwrctlINCiaLgJvRVwtyRzhk0eCow/132"]
[965,"罗日红","https://wx.qlogo.cn/mmopen/vi_32/ibbEck4UH7vWAR5WHubgMic8snef21ZUCUB6iaWg76sjWRicAvYsFKHGmkqMN3FQslUR1YThNGVQLEBB9ZklwANtgQ/132"]
[966,"翟智俪","https://wx.qlogo.cn/mmopen/vi_32/ZbXEXIRQYqzV45ib6MqvJEfkJK8iagC5zg4lBYK2WI1TXqwOyMPf7hcNTVtFcicgct5a8zfvXqxgWQzUbCYbUe2icQ/132"]
[967,"笨蛋々黎黎","https://wx.qlogo.cn/mmopen/vi_32/Q0j4TwGTfTKIUH9u39AqdIhwyy1xGrM4fTdbHl6wqZ0HYicJqLHaYias2xEWGZVc8mdgEFwGDPKzGvfqqqkOywjQ/132"]
[968,"诶呦瑜瑜","https://wx.qlogo.cn/mmopen/vi_32/DYAIOgq83eq1syBetkpCBibwGib2UtcpFFS7icumcdP8jL06Tb94sa1eicHP3P4psRVqwm9DBRlHtIjGHWWXcznLrw/132"]
[969,"开心的李嘉乐心胜","https://wx.qlogo.cn/mmopen/vi_32/Nwt7LpBz2eQhQV84B7loWhrV1SzhH4pUvRlKlEzjLhlQ0TUYCLnChqMicVa4HS54qmibvOMVq829iae3MNB6h2ceA/132"]
[970,"天地大相","https://wx.qlogo.cn/mmopen/vi_32/JpdOkkLSyXHVvBCHLyjsW5ke87VDvibNWEWyLJffVuhtDfzhXBq3Oya6vMuRaV5X9xgDts8jNpSEkHTEUDEyA0A/132"]
[971,"CC","https://wx.qlogo.cn/mmopen/vi_32/Q0j4TwGTfTKibSJVKjtqmHGtvDtwZMbJBaPbHL4t9C9We4FacxgSdRjCtYIy0ZmIibQjFqWWOcNtVEs26x6nVb9A/132"]
[972,"对方正在输入。。。。","https://wx.qlogo.cn/mmopen/vi_32/q13pI6KWje0Ry5Q17GXX0ck3LroZxicdjdISmNfv3ZHanuCecialrPMVno9XO251LQuu30lSqRiaicDlFFFgDNHMpA/132"]
[973,"小苹果","https://wx.qlogo.cn/mmopen/vi_32/fo79zus88qcP1eZD2HS0L9J90vrtKzyXA7Ke9HTCXhmrBwAR5XTfMOrArzCfqkJqK82ziaTntSF6qkGeaEWx3Tw/132"]
[974,"童贤","https://wx.qlogo.cn/mmopen/vi_32/kGv7UFYfvhWfKPpnp6lChqQtY4f1d4xraiaBX4Z8KetkbRiaOZo17NFKX24TNhmI1zO3hqQntnMtY2icFVPhxzEUg/132"]
[975,"cyl","https://wx.qlogo.cn/mmopen/vi_32/g2w020oMvxUw4w5iabVKFWVgDicUcIhz8vdeTTET9GZJTPn9Jamfc5TAibjuLKjmk5msVA8FtBnRjghPt5EakgEsQ/132"]
[976,"꧁༺干༒啥༒啊༻꧂","https://wx.qlogo.cn/mmopen/vi_32/dm8LIKS2OJXLHgrAgINISRs5RoJxy5VKoWLwVPgJooYyRljHEGamRcEs9QdNeVyhm31pOpGugD4pG2xDoTqD3Q/132"]
[977,"。。。。","https://wx.qlogo.cn/mmopen/vi_32/8QU1I3gZSehCpS0rymsXumwwwDBx0SmicOhB4bfesodASNPzjd6MKxFQQM13CcO9uIIkQUzzW7TtvswKibZloy7Q/132"]
[978,"A 或许","https://wx.qlogo.cn/mmopen/vi_32/g6zAHD0o88IGibBAnx7nbIT6rUhd1LSedtmS2Ch3ric3zMA6SfPaANET1OYs0alm6zKoBIfGXA1sKIBib1AVfpnhQ/132"]
[979,"田一","https://wx.qlogo.cn/mmopen/vi_32/Q0j4TwGTfTJGicglyhiaqhIiaW4bwDwdklSkTljRdD2hVlcLGlibHxwvg0OARdia4JTiboPNrStTQIl3NCrM78jrMplA/132"]
[980,"静若繁华","https://wx.qlogo.cn/mmopen/vi_32/Q0j4TwGTfTKYYsR7dVHnZ4hAehics8QuA7hRmtxXqibIX7r93HkuXiaSViaNMvFXrCIXm12jZDcnllRKbJ5nKqdpOw/132"]
[981,"健康是福","https://wx.qlogo.cn/mmopen/vi_32/XEPYl1RnuzKOaAkQCdsc3DhYPCHuqzZgQA2mwfPrsWPpQLF3SV7wlBpU6LH6b8yibibDuiaoySsDD5HjP2cQ6NmBg/132"]
[982,"夭夭","https://wx.qlogo.cn/mmopen/vi_32/TOTiajvLdMpsBd1SRKLP46l3ooW1MxHxhibnYoLUTQJy5eBa7VeD4yPar2EuLNdT05FxKqF5h2jh2goKFhev6H9Q/132"]
[983,"傲氣逼人","https://wx.qlogo.cn/mmopen/vi_32/d5fpVwsRpy6skSNd3yP5zMt9BkbtSEVGx5aDic6w2UP96rAREMialHoD9PxXZ4kjiaR4qziby1scHHfJJawfC5OpbQ/132"]
[984,"柚子","https://wx.qlogo.cn/mmopen/vi_32/x4GqBAXTpFW5Io0wNqrdyOXKQ7GCwibAo8rCmXl5qoaOnc0nqvaGvsc0Zpx3QoGU0PpmTCbclMib7IBKWmficjR3Q/132"]
[985,"倪中奥","https://wx.qlogo.cn/mmopen/vi_32/ON1ia3q8kib5fhXIGicZ7d2tckrOMNklGmnZsmCgwkrl1NAlusZia84Zhcmx7XcxicEHHRejerdticiaNMSPbTFW9sasw/132"]
[986,"霸占丶迩德爱","https://wx.qlogo.cn/mmopen/vi_32/venMOrlCJcAhiaSedVW2GBF7AWlmMvI4QUbJenjMLcYsYKWAAwrjueW0P8eic4TphH5y2ErWwIfCnw8E3QcdgHGA/132"]
[987,"何荣","https://wx.qlogo.cn/mmopen/vi_32/JoRDpE3iam69LKRg0DxpICLwvTmNBZ34NjSQdz4NoGaiaSHdHp8WsHviaBhmMnZHia4EcpnlpUpZg1ic53Cvv9mWRWw/132"]
[988,"随心随性","https://wx.qlogo.cn/mmopen/vi_32/UvQ53AJleMic9wUCaMwRq98KAnx4iawpraWKUqCxmaHEIWzCQONQvwEYniammjSibomiblBsEQAAzPpw9tiauc5YUTQw/132"]
[989,"曹安明","https://wx.qlogo.cn/mmopen/vi_32/NPIeGrAIx50qaibLe4NSggnfbfv0B0aulvF6wL6BByy7SqTnJbWYaFyvZ7xSiaky3PqAB4VZQI1RB65ic5rPD5LOg/132"]
[990,"阿兰","https://wx.qlogo.cn/mmopen/vi_32/fcHmRjznnQcL8aSlAOEiaPCzMOmW6GqMqq7AJbnASWRnX4SoIpeJEib0BH4nym2320g1CPHta76OH9hO8mhPj6Qg/132"]
[991,"ಠ_ರೃ寶寶","https://wx.qlogo.cn/mmopen/vi_32/uzcKKRHSm83MCDib45ynH6HBqamNhjiaIaALRqQGjHBmBEgjNia7ADe4icMNAGLoiaOptPScibdBMX5ZOFQy1luWibNxg/132"]
[992,"Volim te","https://wx.qlogo.cn/mmopen/vi_32/DYAIOgq83errBpD7xupeqepwI4QQzBEQqDsUcJcr1QR1CqprmNM59Pljh9oejpgWraDxsNic83P5Ug9jGcNn3dA/132"]
[993,"露露","https://wx.qlogo.cn/mmopen/vi_32/UDgsrqckBwNGUPn1mGNPiabdUj1HGSTUxhHKCWiaRoibfqicGkVqZbExwpSIVfJf1TMibAW7TYLqsRBGmy9FLVQ2Gbw/132"]
[994,"Cymei.","https://wx.qlogo.cn/mmopen/vi_32/VA3kicMcNfF5JJ0z77kic1l5ZFcYQmvXIVdeEfOAjotspQWVykkvWOSD8qyLj0XSFyxqfZ4VDiaAk82sficeuokfvA/132"]
[995,"梦梦","https://wx.qlogo.cn/mmopen/vi_32/g02zZSR3Iibia82SdsAMiavGzcz2dKEDxY0LkNibfNrUhdukjh0dYMz712Jw9SDhYzJCnYp8XlCaD20RiciahrcltTqg/132"]
[996," 小玉   ~ 汪 [小狗]","https://wx.qlogo.cn/mmopen/vi_32/zgCG51W9JPTG4UwyE1UduibfNDH28ZYKRyKuxJXtWZBPlLciaKTSoEaMRMna8oHQaNZdVz8QtA7lYKaJa6DIQ89g/132"]
[997,"茶","https://wx.qlogo.cn/mmopen/vi_32/Ozz09JhBLK3AYoyRUOZ2AJETNU6z0OS3ibDGaZXJ018pTVnW4Tc2bgkLiaRR9wo65p6JPJJ6TWbCmPydmgKpEq4g/132"]
[998,"心腐","https://wx.qlogo.cn/mmopen/vi_32/V2UUVibcI49kcwMyNoicYnVfk6TrWbyf9vPZ7VoTwqpHELarwiblx4hdp1TxVjpcvzOEfmiahAUPkXicpPJTbId66vw/132"]
[999,"勇","https://wx.qlogo.cn/mmopen/vi_32/Q0j4TwGTfTJEaibJlVrdF9utPrZ2nF1gfzeqUHU0QMQ6CNZyzMuVXzeLWPyv3FvuibATtvjXgylU5xic2rl26GKHA/132"]
[1000,"彤妍小主","https://wx.qlogo.cn/mmopen/vi_32/szicbVlwME8McrXn80etsrWgsqbEePyicCtaLg1UShtUaySwmqT6R91mjib08I5BQCV68FPetFfITm6clYpoCTDeg/132"]

{"sheet":"rank_rewards","index":15,"n_rows":13,"n_cols":4,"rows_kept":13,"cut":false,"hidden":false,"merged":[]}
["排名","等级变化","奖励内容","奖励数量"]
["id","level","rewarditem","rewardnum"]
["number","number","string","string"]
[1,1,2,50]
[2,0]
[3,0]
[4,0]
[5,0]
[6,-1]
[7,-1]
[8,-1]
[9,-1]
[10,-1]

{"sheet":"rank_level","index":16,"n_rows":24,"n_cols":3,"rows_kept":24,"cut":false,"hidden":false,"merged":[]}
["等级","称号","图片"]
["id","title","icon"]
["number","string","string"]
[1,"青铜3",{"$f":"CONCATENATE(\"icon_\",A4)","v":"icon_1"}]
[2,"青铜2",{"$f":"CONCATENATE(\"icon_\",A5)","v":"icon_2"}]
[3,"青铜1","icon_3"]
[4,"白银3","icon_4"]
[5,"白银2","icon_5"]
[6,"白银1","icon_6"]
[7,"黄金4","icon_7"]
[8,"黄金3","icon_8"]
[9,"黄金2","icon_9"]
[10,"黄金1","icon_10"]
[11,"钻石5","icon_11"]
[12,"钻石4","icon_12"]
[13,"钻石3","icon_13"]
[14,"钻石2","icon_14"]
[15,"钻石1","icon_15"]
[16,"大师5","icon_16"]
[17,"大师4","icon_17"]
[18,"大师3","icon_18"]
[19,"大师2","icon_19"]
[20,"大师1","icon_20"]
[21,"王者","icon_21"]